Workbook

Sheet Summary
B1: Coursera Enterprise Catalog Summary
F2: Total Unique Courses | G2: =IFERROR(__xludf.DUMMYFUNCTION("COUNTUNIQUE('All Enterprise Courses_15June20'!R4:R5000)-G3"),4089.0) -> 4089
F3: Total Projects | G3: =countif('All Enterprise Courses_15June20'!B:B,"Coursera Project Network") -> 199
F4: New in Last 30 Days | G4: =J63 -> 124
A5: Courses by Domain and Sub-Domain | C5: Difficulty Level
A6: Domain | B6: Sub-Domain | C6: Beginner | D6: Intermediate | E6: Advanced | F6: Not Calibrated | G6: Grand Total | H6: % of Total | I6: Projects | J6: New in Last 30 Days
A7: Business | B7: leadership-and-management | C7: =countifs('All Enterprise Courses_15June20'!$Q:$Q,$B7,'All Enterprise Courses_15June20'!$C:$C,C$6) -> 89 | D7: =countifs('All Enterprise Courses_15June20'!$Q:$Q,$B7,'All Enterprise Courses_15June20'!$C:$C,D$6) -> 50 | E7: =countifs('All Enterprise Courses_15June20'!$Q:$Q,$B7,'All Enterprise Courses_15June20'!$C:$C,E$6) -> 82 | F7: =countifs('All Enterprise Courses_15June20'!$Q:$Q,$B7,'All Enterprise Courses_15June20'!$C:$C,F$6) -> 2 | G7: =sum(C7:F7) -> 223 | I7: =if(countif(Projects!Q:Q,B7)=0,"No","Yes") -> Yes | J7: =countifs('All Enterprise Courses_15June20'!Q:Q,B7,'All Enterprise Courses_15June20'!T:T,"TRUE") -> 3
B8: business-essentials | C8: =countifs('All Enterprise Courses_15June20'!$Q:$Q,$B8,'All Enterprise Courses_15June20'!$C:$C,C$6) -> 69 | D8: =countifs('All Enterprise Courses_15June20'!$Q:$Q,$B8,'All Enterprise Courses_15June20'!$C:$C,D$6) -> 41 | E8: =countifs('All Enterprise Courses_15June20'!$Q:$Q,$B8,'All Enterprise Courses_15June20'!$C:$C,E$6) -> 68 | F8: =countifs('All Enterprise Courses_15June20'!$Q:$Q,$B8,'All Enterprise Courses_15June20'!$C:$C,F$6) -> 2 | G8: 180 | I8: =if(countif(Projects!Q:Q,B8)=0,"No","Yes") -> Yes | J8: =countifs('All Enterprise Courses_15June20'!Q:Q,B8,'All Enterprise Courses_15June20'!T:T,"TRUE") -> 7
B9: finance | C9: =countifs('All Enterprise Courses_15June20'!$Q:$Q,$B9,'All Enterprise Courses_15June20'!$C:$C,C$6) -> 52 | D9: =countifs('All Enterprise Courses_15June20'!$Q:$Q,$B9,'All Enterprise Courses_15June20'!$C:$C,D$6) -> 53 | E9: =countifs('All Enterprise Courses_15June20'!$Q:$Q,$B9,'All Enterprise Courses_15June20'!$C:$C,E$6) -> 48 | F9: =countifs('All Enterprise Courses_15June20'!$Q:$Q,$B9,'All Enterprise Courses_15June20'!$C:$C,F$6) -> 0 | G9: 153 | I9: =if(countif(Projects!Q:Q,B9)=0,"No","Yes") -> Yes | J9: =countifs('All Enterprise Courses_15June20'!Q:Q,B9,'All Enterprise Courses_15June20'!T:T,"TRUE") -> 5
B10: business-strategy | C10: =countifs('All Enterprise Courses_15June20'!$Q:$Q,$B10,'All Enterprise Courses_15June20'!$C:$C,C$6) -> 54 | D10: =countifs('All Enterprise Courses_15June20'!$Q:$Q,$B10,'All Enterprise Courses_15June20'!$C:$C,D$6) -> 44 | E10: =countifs('All Enterprise Courses_15June20'!$Q:$Q,$B10,'All Enterprise Courses_15June20'!$C:$C,E$6) -> 52 | F10: =countifs('All Enterprise Courses_15June20'!$Q:$Q,$B10,'All Enterprise Courses_15June20'!$C:$C,F$6) -> 0 | G10: 150 | I10: =if(countif(Projects!Q:Q,B10)=0,"No","Yes") -> Yes | J10: =countifs('All Enterprise Courses_15June20'!Q:Q,B10,'All Enterprise Courses_15June20'!T:T,"TRUE") -> 5
B11: marketing | C11: =countifs('All Enterprise Courses_15June20'!$Q:$Q,$B11,'All Enterprise Courses_15June20'!$C:$C,C$6) -> 57 | D11: =countifs('All Enterprise Courses_15June20'!$Q:$Q,$B11,'All Enterprise Courses_15June20'!$C:$C,D$6) -> 34 | E11: =countifs('All Enterprise Courses_15June20'!$Q:$Q,$B11,'All Enterprise Courses_15June20'!$C:$C,E$6) -> 41 | F11: =countifs('All Enterprise Courses_15June20'!$Q:$Q,$B11,'All Enterprise Courses_15June20'!$C:$C,F$6) -> 0 | G11: 132 | I11: =if(countif(Projects!Q:Q,B11)=0,"No","Yes") -> Yes | J11: =countifs('All Enterprise Courses_15June20'!Q:Q,B11,'All Enterprise Courses_15June20'!T:T,"TRUE") -> 2
B12: entrepreneurship | C12: =countifs('All Enterprise Courses_15June20'!$Q:$Q,$B12,'All Enterprise Courses_15June20'!$C:$C,C$6) -> 41 | D12: =countifs('All Enterprise Courses_15June20'!$Q:$Q,$B12,'All Enterprise Courses_15June20'!$C:$C,D$6) -> 25 | E12: =countifs('All Enterprise Courses_15June20'!$Q:$Q,$B12,'All Enterprise Courses_15June20'!$C:$C,E$6) -> 53 | F12: =countifs('All Enterprise Courses_15June20'!$Q:$Q,$B12,'All Enterprise Courses_15June20'!$C:$C,F$6) -> 3 | G12: 122 | I12: =if(countif(Projects!Q:Q,B12)=0,"No","Yes") -> No | J12: =countifs('All Enterprise Courses_15June20'!Q:Q,B12,'All Enterprise Courses_15June20'!T:T,"TRUE") -> 0
A13: business Total | C13: =sum(C7:C12) -> 362 | D13: 247 | E13: 344 | F13: 7 | G13: 960 | H13: =G13/$G$63 -> 0.2277039848 | J13: =sum(J7:J12) -> 22
A14: Computer Science | B14: software-development | C14: =countifs('All Enterprise Courses_15June20'!$Q:$Q,$B14,'All Enterprise Courses_15June20'!$C:$C,C$6) -> 105 | D14: =countifs('All Enterprise Courses_15June20'!$Q:$Q,$B14,'All Enterprise Courses_15June20'!$C:$C,D$6) -> 49 | E14: =countifs('All Enterprise Courses_15June20'!$Q:$Q,$B14,'All Enterprise Courses_15June20'!$C:$C,E$6) -> 128 | F14: =countifs('All Enterprise Courses_15June20'!$Q:$Q,$B14,'All Enterprise Courses_15June20'!$C:$C,F$6) -> 3 | G14: 285 | I14: =if(countif(Projects!Q:Q,B14)=0,"No","Yes") -> Yes | J14: =countifs('All Enterprise Courses_15June20'!Q:Q,B14,'All Enterprise Courses_15June20'!T:T,"TRUE") -> 16
B15: mobile-and-web-development | C15: =countifs('All Enterprise Courses_15June20'!$Q:$Q,$B15,'All Enterprise Courses_15June20'!$C:$C,C$6) -> 30 | D15: =countifs('All Enterprise Courses_15June20'!$Q:$Q,$B15,'All Enterprise Courses_15June20'!$C:$C,D$6) -> 23 | E15: =countifs('All Enterprise Courses_15June20'!$Q:$Q,$B15,'All Enterprise Courses_15June20'!$C:$C,E$6) -> 43 | F15: =countifs('All Enterprise Courses_15June20'!$Q:$Q,$B15,'All Enterprise Courses_15June20'!$C:$C,F$6) -> 0 | G15: 96 | I15: =if(countif(Projects!Q:Q,B15)=0,"No","Yes") -> Yes | J15: =countifs('All Enterprise Courses_15June20'!Q:Q,B15,'All Enterprise Courses_15June20'!T:T,"TRUE") -> 3
B16: design-and-product | C16: =countifs('All Enterprise Courses_15June20'!$Q:$Q,$B16,'All Enterprise Courses_15June20'!$C:$C,C$6) -> 36 | D16: =countifs('All Enterprise Courses_15June20'!$Q:$Q,$B16,'All Enterprise Courses_15June20'!$C:$C,D$6) -> 15 | E16: =countifs('All Enterprise Courses_15June20'!$Q:$Q,$B16,'All Enterprise Courses_15June20'!$C:$C,E$6) -> 35 | F16: =countifs('All Enterprise Courses_15June20'!$Q:$Q,$B16,'All Enterprise Courses_15June20'!$C:$C,F$6) -> 0 | G16: 86 | I16: =if(countif(Projects!Q:Q,B16)=0,"No","Yes") -> Yes | J16: =countifs('All Enterprise Courses_15June20'!Q:Q,B16,'All Enterprise Courses_15June20'!T:T,"TRUE") -> 3
B17: computer-security-and-networks | C17: =countifs('All Enterprise Courses_15June20'!$Q:$Q,$B17,'All Enterprise Courses_15June20'!$C:$C,C$6) -> 25 | D17: =countifs('All Enterprise Courses_15June20'!$Q:$Q,$B17,'All Enterprise Courses_15June20'!$C:$C,D$6) -> 36 | E17: =countifs('All Enterprise Courses_15June20'!$Q:$Q,$B17,'All Enterprise Courses_15June20'!$C:$C,E$6) -> 22 | F17: =countifs('All Enterprise Courses_15June20'!$Q:$Q,$B17,'All Enterprise Courses_15June20'!$C:$C,F$6) -> 0 | G17: 83 | I17: =if(countif(Projects!Q:Q,B17)=0,"No","Yes") -> Yes | J17: =countifs('All Enterprise Courses_15June20'!Q:Q,B17,'All Enterprise Courses_15June20'!T:T,"TRUE") -> 2
B18: algorithms | C18: =countifs('All Enterprise Courses_15June20'!$Q:$Q,$B18,'All Enterprise Courses_15June20'!$C:$C,C$6) -> 14 | D18: =countifs('All Enterprise Courses_15June20'!$Q:$Q,$B18,'All Enterprise Courses_15June20'!$C:$C,D$6) -> 25 | E18: =countifs('All Enterprise Courses_15June20'!$Q:$Q,$B18,'All Enterprise Courses_15June20'!$C:$C,E$6) -> 37 | F18: =countifs('All Enterprise Courses_15June20'!$Q:$Q,$B18,'All Enterprise Courses_15June20'!$C:$C,F$6) -> 2 | G18: 78 | I18: =if(countif(Projects!Q:Q,B18)=0,"No","Yes") -> Yes | J18: =countifs('All Enterprise Courses_15June20'!Q:Q,B18,'All Enterprise Courses_15June20'!T:T,"TRUE") -> 0
A19: computer-science Total | C19: =sum(C14:C18) -> 210 | D19: 148 | E19: 265 | F19: 5 | G19: 628 | H19: =G19/$G$63 -> 0.1489563567 | J19: =sum(J14:J18) -> 24
A20: Life Sciences | B20: basic-science | C20: =countifs('All Enterprise Courses_15June20'!$Q:$Q,$B20,'All Enterprise Courses_15June20'!$C:$C,C$6) -> 34 | D20: =countifs('All Enterprise Courses_15June20'!$Q:$Q,$B20,'All Enterprise Courses_15June20'!$C:$C,D$6) -> 41 | E20: =countifs('All Enterprise Courses_15June20'!$Q:$Q,$B20,'All Enterprise Courses_15June20'!$C:$C,E$6) -> 20 | F20: =countifs('All Enterprise Courses_15June20'!$Q:$Q,$B20,'All Enterprise Courses_15June20'!$C:$C,F$6) -> 10 | G20: 105 | I20: =if(countif(Projects!Q:Q,B20)=0,"No","Yes") -> No | J20: =countifs('All Enterprise Courses_15June20'!Q:Q,B20,'All Enterprise Courses_15June20'!T:T,"TRUE") -> 0
B21: public-health | C21: =countifs('All Enterprise Courses_15June20'!$Q:$Q,$B21,'All Enterprise Courses_15June20'!$C:$C,C$6) -> 40 | D21: =countifs('All Enterprise Courses_15June20'!$Q:$Q,$B21,'All Enterprise Courses_15June20'!$C:$C,D$6) -> 50 | E21: =countifs('All Enterprise Courses_15June20'!$Q:$Q,$B21,'All Enterprise Courses_15June20'!$C:$C,E$6) -> 12 | F21: =countifs('All Enterprise Courses_15June20'!$Q:$Q,$B21,'All Enterprise Courses_15June20'!$C:$C,F$6) -> 5 | G21: 107 | I21: =if(countif(Projects!Q:Q,B21)=0,"No","Yes") -> No | J21: =countifs('All Enterprise Courses_15June20'!Q:Q,B21,'All Enterprise Courses_15June20'!T:T,"TRUE") -> 4
B22: patient-care | C22: =countifs('All Enterprise Courses_15June20'!$Q:$Q,$B22,'All Enterprise Courses_15June20'!$C:$C,C$6) -> 18 | D22: =countifs('All Enterprise Courses_15June20'!$Q:$Q,$B22,'All Enterprise Courses_15June20'!$C:$C,D$6) -> 38 | E22: =countifs('All Enterprise Courses_15June20'!$Q:$Q,$B22,'All Enterprise Courses_15June20'!$C:$C,E$6) -> 12 | F22: =countifs('All Enterprise Courses_15June20'!$Q:$Q,$B22,'All Enterprise Courses_15June20'!$C:$C,F$6) -> 6 | G22: 74 | I22: =if(countif(Projects!Q:Q,B22)=0,"No","Yes") -> No | J22: =countifs('All Enterprise Courses_15June20'!Q:Q,B22,'All Enterprise Courses_15June20'!T:T,"TRUE") -> 1
B23: psychology | C23: =countifs('All Enterprise Courses_15June20'!$Q:$Q,$B23,'All Enterprise Courses_15June20'!$C:$C,C$6) -> 23 | D23: =countifs('All Enterprise Courses_15June20'!$Q:$Q,$B23,'All Enterprise Courses_15June20'!$C:$C,D$6) -> 14 | E23: =countifs('All Enterprise Courses_15June20'!$Q:$Q,$B23,'All Enterprise Courses_15June20'!$C:$C,E$6) -> 14 | F23: =countifs('All Enterprise Courses_15June20'!$Q:$Q,$B23,'All Enterprise Courses_15June20'!$C:$C,F$6) -> 7 | G23: 58 | I23: =if(countif(Projects!Q:Q,B23)=0,"No","Yes") -> No | J23: =countifs('All Enterprise Courses_15June20'!Q:Q,B23,'All Enterprise Courses_15June20'!T:T,"TRUE") -> 2
B24: health-informatics | C24: =countifs('All Enterprise Courses_15June20'!$Q:$Q,$B24,'All Enterprise Courses_15June20'!$C:$C,C$6) -> 5 | D24: =countifs('All Enterprise Courses_15June20'!$Q:$Q,$B24,'All Enterprise Courses_15June20'!$C:$C,D$6) -> 14 | E24: =countifs('All Enterprise Courses_15June20'!$Q:$Q,$B24,'All Enterprise Courses_15June20'!$C:$C,E$6) -> 17 | F24: =countifs('All Enterprise Courses_15June20'!$Q:$Q,$B24,'All Enterprise Courses_15June20'!$C:$C,F$6) -> 0 | G24: 36 | I24: =if(countif(Projects!Q:Q,B24)=0,"No","Yes") -> No | J24: =countifs('All Enterprise Courses_15June20'!Q:Q,B24,'All Enterprise Courses_15June20'!T:T,"TRUE") -> 0
B25: healthcare-management | C25: =countifs('All Enterprise Courses_15June20'!$Q:$Q,$B25,'All Enterprise Courses_15June20'!$C:$C,C$6) -> 15 | D25: =countifs('All Enterprise Courses_15June20'!$Q:$Q,$B25,'All Enterprise Courses_15June20'!$C:$C,D$6) -> 13 | E25: =countifs('All Enterprise Courses_15June20'!$Q:$Q,$B25,'All Enterprise Courses_15June20'!$C:$C,E$6) -> 5 | F25: =countifs('All Enterprise Courses_15June20'!$Q:$Q,$B25,'All Enterprise Courses_15June20'!$C:$C,F$6) -> 1 | G25: 34 | I25: =if(countif(Projects!Q:Q,B25)=0,"No","Yes") -> No | J25: =countifs('All Enterprise Courses_15June20'!Q:Q,B25,'All Enterprise Courses_15June20'!T:T,"TRUE") -> 0
B26: research | C26: =countifs('All Enterprise Courses_15June20'!$Q:$Q,$B26,'All Enterprise Courses_15June20'!$C:$C,C$6) -> 8 | D26: =countifs('All Enterprise Courses_15June20'!$Q:$Q,$B26,'All Enterprise Courses_15June20'!$C:$C,D$6) -> 10 | E26: =countifs('All Enterprise Courses_15June20'!$Q:$Q,$B26,'All Enterprise Courses_15June20'!$C:$C,E$6) -> 3 | F26: =countifs('All Enterprise Courses_15June20'!$Q:$Q,$B26,'All Enterprise Courses_15June20'!$C:$C,F$6) -> 1 | G26: 22 | I26: =if(countif(Projects!Q:Q,B26)=0,"No","Yes") -> No | J26: =countifs('All Enterprise Courses_15June20'!Q:Q,B26,'All Enterprise Courses_15June20'!T:T,"TRUE") -> 0
B27: nutrition | C27: =countifs('All Enterprise Courses_15June20'!$Q:$Q,$B27,'All Enterprise Courses_15June20'!$C:$C,C$6) -> 6 | D27: =countifs('All Enterprise Courses_15June20'!$Q:$Q,$B27,'All Enterprise Courses_15June20'!$C:$C,D$6) -> 6 | E27: =countifs('All Enterprise Courses_15June20'!$Q:$Q,$B27,'All Enterprise Courses_15June20'!$C:$C,E$6) -> 2 | F27: =countifs('All Enterprise Courses_15June20'!$Q:$Q,$B27,'All Enterprise Courses_15June20'!$C:$C,F$6) -> 2 | G27: 16 | I27: =if(countif(Projects!Q:Q,B27)=0,"No","Yes") -> No | J27: =countifs('All Enterprise Courses_15June20'!Q:Q,B27,'All Enterprise Courses_15June20'!T:T,"TRUE") -> 0
B28: animal-health | C28: =countifs('All Enterprise Courses_15June20'!$Q:$Q,$B28,'All Enterprise Courses_15June20'!$C:$C,C$6) -> 8 | D28: =countifs('All Enterprise Courses_15June20'!$Q:$Q,$B28,'All Enterprise Courses_15June20'!$C:$C,D$6) -> 1 | E28: =countifs('All Enterprise Courses_15June20'!$Q:$Q,$B28,'All Enterprise Courses_15June20'!$C:$C,E$6) -> 0 | F28: =countifs('All Enterprise Courses_15June20'!$Q:$Q,$B28,'All Enterprise Courses_15June20'!$C:$C,F$6) -> 0 | G28: 9 | I28: =if(countif(Projects!Q:Q,B28)=0,"No","Yes") -> No | J28: =countifs('All Enterprise Courses_15June20'!Q:Q,B28,'All Enterprise Courses_15June20'!T:T,"TRUE") -> 0
A29: life-sciences Total | C29: =sum(C20:C28) -> 157 | D29: 187 | E29: 85 | F29: 32 | G29: 461 | H29: =G29/$G$63 -> 0.109345351 | J29: =sum(J20:J28) -> 7
A30: Data Science | B30: data-analysis | C30: =countifs('All Enterprise Courses_15June20'!$Q:$Q,$B30,'All Enterprise Courses_15June20'!$C:$C,C$6) -> 109 | D30: =countifs('All Enterprise Courses_15June20'!$Q:$Q,$B30,'All Enterprise Courses_15June20'!$C:$C,D$6) -> 32 | E30: =countifs('All Enterprise Courses_15June20'!$Q:$Q,$B30,'All Enterprise Courses_15June20'!$C:$C,E$6) -> 92 | F30: =countifs('All Enterprise Courses_15June20'!$Q:$Q,$B30,'All Enterprise Courses_15June20'!$C:$C,F$6) -> 1 | G30: 234 | I30: =if(countif(Projects!Q:Q,B30)=0,"No","Yes") -> Yes | J30: =countifs('All Enterprise Courses_15June20'!Q:Q,B30,'All Enterprise Courses_15June20'!T:T,"TRUE") -> 13
B31: machine-learning | C31: =countifs('All Enterprise Courses_15June20'!$Q:$Q,$B31,'All Enterprise Courses_15June20'!$C:$C,C$6) -> 120 | D31: =countifs('All Enterprise Courses_15June20'!$Q:$Q,$B31,'All Enterprise Courses_15June20'!$C:$C,D$6) -> 39 | E31: =countifs('All Enterprise Courses_15June20'!$Q:$Q,$B31,'All Enterprise Courses_15June20'!$C:$C,E$6) -> 50 | F31: =countifs('All Enterprise Courses_15June20'!$Q:$Q,$B31,'All Enterprise Courses_15June20'!$C:$C,F$6) -> 0 | G31: 209 | I31: =if(countif(Projects!Q:Q,B31)=0,"No","Yes") -> Yes | J31: =countifs('All Enterprise Courses_15June20'!Q:Q,B31,'All Enterprise Courses_15June20'!T:T,"TRUE") -> 5
B32: probability-and-statistics | C32: =countifs('All Enterprise Courses_15June20'!$Q:$Q,$B32,'All Enterprise Courses_15June20'!$C:$C,C$6) -> 6 | D32: =countifs('All Enterprise Courses_15June20'!$Q:$Q,$B32,'All Enterprise Courses_15June20'!$C:$C,D$6) -> 12 | E32: =countifs('All Enterprise Courses_15June20'!$Q:$Q,$B32,'All Enterprise Courses_15June20'!$C:$C,E$6) -> 13 | F32: =countifs('All Enterprise Courses_15June20'!$Q:$Q,$B32,'All Enterprise Courses_15June20'!$C:$C,F$6) -> 0 | G32: 31 | I32: =if(countif(Projects!Q:Q,B32)=0,"No","Yes") -> Yes | J32: =countifs('All Enterprise Courses_15June20'!Q:Q,B32,'All Enterprise Courses_15June20'!T:T,"TRUE") -> 0
A33: data-science Total | C33: =sum(C30:C32) -> 235 | D33: 83 | E33: 155 | F33: 1 | G33: 474 | H33: =G33/$G$63 -> 0.1124288425 | J33: =sum(J30:J32) -> 18
A34: Physical Science and Engineering | B34: electrical-engineering | C34: =countifs('All Enterprise Courses_15June20'!$Q:$Q,$B34,'All Enterprise Courses_15June20'!$C:$C,C$6) -> 14 | D34: =countifs('All Enterprise Courses_15June20'!$Q:$Q,$B34,'All Enterprise Courses_15June20'!$C:$C,D$6) -> 26 | E34: =countifs('All Enterprise Courses_15June20'!$Q:$Q,$B34,'All Enterprise Courses_15June20'!$C:$C,E$6) -> 47 | F34: =countifs('All Enterprise Courses_15June20'!$Q:$Q,$B34,'All Enterprise Courses_15June20'!$C:$C,F$6) -> 3 | G34: 90 | I34: =if(countif(Projects!Q:Q,B34)=0,"No","Yes") -> No | J34: =countifs('All Enterprise Courses_15June20'!Q:Q,B34,'All Enterprise Courses_15June20'!T:T,"TRUE") -> 0
B35: environmental-science-and-sustainability | C35: =countifs('All Enterprise Courses_15June20'!$Q:$Q,$B35,'All Enterprise Courses_15June20'!$C:$C,C$6) -> 38 | D35: =countifs('All Enterprise Courses_15June20'!$Q:$Q,$B35,'All Enterprise Courses_15June20'!$C:$C,D$6) -> 32 | E35: =countifs('All Enterprise Courses_15June20'!$Q:$Q,$B35,'All Enterprise Courses_15June20'!$C:$C,E$6) -> 16 | F35: =countifs('All Enterprise Courses_15June20'!$Q:$Q,$B35,'All Enterprise Courses_15June20'!$C:$C,F$6) -> 7 | G35: 93 | I35: =if(countif(Projects!Q:Q,B35)=0,"No","Yes") -> No | J35: =countifs('All Enterprise Courses_15June20'!Q:Q,B35,'All Enterprise Courses_15June20'!T:T,"TRUE") -> 1
B36: mechanical-engineering | C36: =countifs('All Enterprise Courses_15June20'!$Q:$Q,$B36,'All Enterprise Courses_15June20'!$C:$C,C$6) -> 28 | D36: =countifs('All Enterprise Courses_15June20'!$Q:$Q,$B36,'All Enterprise Courses_15June20'!$C:$C,D$6) -> 40 | E36: =countifs('All Enterprise Courses_15June20'!$Q:$Q,$B36,'All Enterprise Courses_15June20'!$C:$C,E$6) -> 30 | F36: =countifs('All Enterprise Courses_15June20'!$Q:$Q,$B36,'All Enterprise Courses_15June20'!$C:$C,F$6) -> 1 | G36: 99 | I36: =if(countif(Projects!Q:Q,B36)=0,"No","Yes") -> No | J36: =countifs('All Enterprise Courses_15June20'!Q:Q,B36,'All Enterprise Courses_15June20'!T:T,"TRUE") -> 3
B37: physics-and-astronomy | C37: =countifs('All Enterprise Courses_15June20'!$Q:$Q,$B37,'All Enterprise Courses_15June20'!$C:$C,C$6) -> 21 | D37: =countifs('All Enterprise Courses_15June20'!$Q:$Q,$B37,'All Enterprise Courses_15June20'!$C:$C,D$6) -> 15 | E37: =countifs('All Enterprise Courses_15June20'!$Q:$Q,$B37,'All Enterprise Courses_15June20'!$C:$C,E$6) -> 36 | F37: =countifs('All Enterprise Courses_15June20'!$Q:$Q,$B37,'All Enterprise Courses_15June20'!$C:$C,F$6) -> 6 | G37: 78 | I37: =if(countif(Projects!Q:Q,B37)=0,"No","Yes") -> No | J37: =countifs('All Enterprise Courses_15June20'!Q:Q,B37,'All Enterprise Courses_15June20'!T:T,"TRUE") -> 0
B38: chemistry | C38: =countifs('All Enterprise Courses_15June20'!$Q:$Q,$B38,'All Enterprise Courses_15June20'!$C:$C,C$6) -> 4 | D38: =countifs('All Enterprise Courses_15June20'!$Q:$Q,$B38,'All Enterprise Courses_15June20'!$C:$C,D$6) -> 8 | E38: =countifs('All Enterprise Courses_15June20'!$Q:$Q,$B38,'All Enterprise Courses_15June20'!$C:$C,E$6) -> 9 | F38: =countifs('All Enterprise Courses_15June20'!$Q:$Q,$B38,'All Enterprise Courses_15June20'!$C:$C,F$6) -> 4 | G38: 25 | I38: =if(countif(Projects!Q:Q,B38)=0,"No","Yes") -> No | J38: =countifs('All Enterprise Courses_15June20'!Q:Q,B38,'All Enterprise Courses_15June20'!T:T,"TRUE") -> 0
B39: research-methods | C39: =countifs('All Enterprise Courses_15June20'!$Q:$Q,$B39,'All Enterprise Courses_15June20'!$C:$C,C$6) -> 5 | D39: =countifs('All Enterprise Courses_15June20'!$Q:$Q,$B39,'All Enterprise Courses_15June20'!$C:$C,D$6) -> 9 | E39: =countifs('All Enterprise Courses_15June20'!$Q:$Q,$B39,'All Enterprise Courses_15June20'!$C:$C,E$6) -> 5 | F39: =countifs('All Enterprise Courses_15June20'!$Q:$Q,$B39,'All Enterprise Courses_15June20'!$C:$C,F$6) -> 1 | G39: 20 | I39: =if(countif(Projects!Q:Q,B39)=0,"No","Yes") -> Yes | J39: =countifs('All Enterprise Courses_15June20'!Q:Q,B39,'All Enterprise Courses_15June20'!T:T,"TRUE") -> 2
A40: physical-science-and-engineering Total | C40: =sum(C34:C39) -> 110 | D40: 130 | E40: 143 | F40: 22 | G40: 405 | H40: =G40/$G$63 -> 0.0960626186 | J40: =sum(J34:J39) -> 6
A41: Social Sciences | B41: education | C41: =countifs('All Enterprise Courses_15June20'!$Q:$Q,$B41,'All Enterprise Courses_15June20'!$C:$C,C$6) -> 45 | D41: =countifs('All Enterprise Courses_15June20'!$Q:$Q,$B41,'All Enterprise Courses_15June20'!$C:$C,D$6) -> 54 | E41: =countifs('All Enterprise Courses_15June20'!$Q:$Q,$B41,'All Enterprise Courses_15June20'!$C:$C,E$6) -> 46 | F41: =countifs('All Enterprise Courses_15June20'!$Q:$Q,$B41,'All Enterprise Courses_15June20'!$C:$C,F$6) -> 14 | G41: 159 | I41: =if(countif(Projects!Q:Q,B41)=0,"No","Yes") -> No | J41: =countifs('All Enterprise Courses_15June20'!Q:Q,B41,'All Enterprise Courses_15June20'!T:T,"TRUE") -> 2
B42: governance-and-society | C42: =countifs('All Enterprise Courses_15June20'!$Q:$Q,$B42,'All Enterprise Courses_15June20'!$C:$C,C$6) -> 50 | D42: =countifs('All Enterprise Courses_15June20'!$Q:$Q,$B42,'All Enterprise Courses_15June20'!$C:$C,D$6) -> 51 | E42: =countifs('All Enterprise Courses_15June20'!$Q:$Q,$B42,'All Enterprise Courses_15June20'!$C:$C,E$6) -> 22 | F42: =countifs('All Enterprise Courses_15June20'!$Q:$Q,$B42,'All Enterprise Courses_15June20'!$C:$C,F$6) -> 11 | G42: 134 | I42: =if(countif(Projects!Q:Q,B42)=0,"No","Yes") -> No | J42: =countifs('All Enterprise Courses_15June20'!Q:Q,B42,'All Enterprise Courses_15June20'!T:T,"TRUE") -> 0
B43: economics | C43: =countifs('All Enterprise Courses_15June20'!$Q:$Q,$B43,'All Enterprise Courses_15June20'!$C:$C,C$6) -> 18 | D43: =countifs('All Enterprise Courses_15June20'!$Q:$Q,$B43,'All Enterprise Courses_15June20'!$C:$C,D$6) -> 26 | E43: =countifs('All Enterprise Courses_15June20'!$Q:$Q,$B43,'All Enterprise Courses_15June20'!$C:$C,E$6) -> 11 | F43: =countifs('All Enterprise Courses_15June20'!$Q:$Q,$B43,'All Enterprise Courses_15June20'!$C:$C,F$6) -> 3 | G43: 58 | I43: =if(countif(Projects!Q:Q,B43)=0,"No","Yes") -> No | J43: =countifs('All Enterprise Courses_15June20'!Q:Q,B43,'All Enterprise Courses_15June20'!T:T,"TRUE") -> 3
B44: law | C44: =countifs('All Enterprise Courses_15June20'!$Q:$Q,$B44,'All Enterprise Courses_15June20'!$C:$C,C$6) -> 21 | D44: =countifs('All Enterprise Courses_15June20'!$Q:$Q,$B44,'All Enterprise Courses_15June20'!$C:$C,D$6) -> 16 | E44: =countifs('All Enterprise Courses_15June20'!$Q:$Q,$B44,'All Enterprise Courses_15June20'!$C:$C,E$6) -> 8 | F44: =countifs('All Enterprise Courses_15June20'!$Q:$Q,$B44,'All Enterprise Courses_15June20'!$C:$C,F$6) -> 4 | G44: 49 | I44: =if(countif(Projects!Q:Q,B44)=0,"No","Yes") -> No | J44: =countifs('All Enterprise Courses_15June20'!Q:Q,B44,'All Enterprise Courses_15June20'!T:T,"TRUE") -> 3
A45: social-sciences Total | C45: =sum(C41:C44) -> 134 | D45: 147 | E45: 87 | F45: 32 | G45: 400 | H45: =G45/$G$63 -> 0.09487666034 | J45: =sum(J41:J44) -> 8
A46: Arts and Humanities | B46: music-and-art | C46: =countifs('All Enterprise Courses_15June20'!$Q:$Q,$B46,'All Enterprise Courses_15June20'!$C:$C,C$6) -> 51 | D46: =countifs('All Enterprise Courses_15June20'!$Q:$Q,$B46,'All Enterprise Courses_15June20'!$C:$C,D$6) -> 64 | E46: =countifs('All Enterprise Courses_15June20'!$Q:$Q,$B46,'All Enterprise Courses_15June20'!$C:$C,E$6) -> 36 | F46: =countifs('All Enterprise Courses_15June20'!$Q:$Q,$B46,'All Enterprise Courses_15June20'!$C:$C,F$6) -> 15 | G46: 166 | I46: =if(countif(Projects!Q:Q,B46)=0,"No","Yes") -> No | J46: =countifs('All Enterprise Courses_15June20'!Q:Q,B46,'All Enterprise Courses_15June20'!T:T,"TRUE") -> 2
B47: history | C47: =countifs('All Enterprise Courses_15June20'!$Q:$Q,$B47,'All Enterprise Courses_15June20'!$C:$C,C$6) -> 49 | D47: =countifs('All Enterprise Courses_15June20'!$Q:$Q,$B47,'All Enterprise Courses_15June20'!$C:$C,D$6) -> 29 | E47: =countifs('All Enterprise Courses_15June20'!$Q:$Q,$B47,'All Enterprise Courses_15June20'!$C:$C,E$6) -> 13 | F47: =countifs('All Enterprise Courses_15June20'!$Q:$Q,$B47,'All Enterprise Courses_15June20'!$C:$C,F$6) -> 12 | G47: 103 | I47: =if(countif(Projects!Q:Q,B47)=0,"No","Yes") -> No | J47: =countifs('All Enterprise Courses_15June20'!Q:Q,B47,'All Enterprise Courses_15June20'!T:T,"TRUE") -> 0
B48: philosophy | C48: =countifs('All Enterprise Courses_15June20'!$Q:$Q,$B48,'All Enterprise Courses_15June20'!$C:$C,C$6) -> 29 | D48: =countifs('All Enterprise Courses_15June20'!$Q:$Q,$B48,'All Enterprise Courses_15June20'!$C:$C,D$6) -> 13 | E48: =countifs('All Enterprise Courses_15June20'!$Q:$Q,$B48,'All Enterprise Courses_15June20'!$C:$C,E$6) -> 8 | F48: =countifs('All Enterprise Courses_15June20'!$Q:$Q,$B48,'All Enterprise Courses_15June20'!$C:$C,F$6) -> 7 | G48: 57 | I48: =if(countif(Projects!Q:Q,B48)=0,"No","Yes") -> No | J48: =countifs('All Enterprise Courses_15June20'!Q:Q,B48,'All Enterprise Courses_15June20'!T:T,"TRUE") -> 1
A49: arts-and-humanities Total | C49: =sum(C46:C48) -> 129 | D49: 106 | E49: 57 | F49: 34 | G49: 326 | H49: =G49/$G$63 -> 0.07732447818 | J49: =sum(J46:J48) -> 3
A50: Information Technology | B50: cloud-computing | C50: =countifs('All Enterprise Courses_15June20'!$Q:$Q,$B50,'All Enterprise Courses_15June20'!$C:$C,C$6) -> 41 | D50: =countifs('All Enterprise Courses_15June20'!$Q:$Q,$B50,'All Enterprise Courses_15June20'!$C:$C,D$6) -> 26 | E50: =countifs('All Enterprise Courses_15June20'!$Q:$Q,$B50,'All Enterprise Courses_15June20'!$C:$C,E$6) -> 53 | F50: =countifs('All Enterprise Courses_15June20'!$Q:$Q,$B50,'All Enterprise Courses_15June20'!$C:$C,F$6) -> 0 | G50: 120 | I50: =if(countif(Projects!Q:Q,B50)=0,"No","Yes") -> No | J50: =countifs('All Enterprise Courses_15June20'!Q:Q,B50,'All Enterprise Courses_15June20'!T:T,"TRUE") -> 21
B51: security | C51: =countifs('All Enterprise Courses_15June20'!$Q:$Q,$B51,'All Enterprise Courses_15June20'!$C:$C,C$6) -> 23 | D51: =countifs('All Enterprise Courses_15June20'!$Q:$Q,$B51,'All Enterprise Courses_15June20'!$C:$C,D$6) -> 10 | E51: =countifs('All Enterprise Courses_15June20'!$Q:$Q,$B51,'All Enterprise Courses_15June20'!$C:$C,E$6) -> 13 | F51: =countifs('All Enterprise Courses_15June20'!$Q:$Q,$B51,'All Enterprise Courses_15June20'!$C:$C,F$6) -> 0 | G51: 46 | I51: =if(countif(Projects!Q:Q,B51)=0,"No","Yes") -> No | J51: =countifs('All Enterprise Courses_15June20'!Q:Q,B51,'All Enterprise Courses_15June20'!T:T,"TRUE") -> 8
B52: data-management | C52: =countifs('All Enterprise Courses_15June20'!$Q:$Q,$B52,'All Enterprise Courses_15June20'!$C:$C,C$6) -> 15 | D52: =countifs('All Enterprise Courses_15June20'!$Q:$Q,$B52,'All Enterprise Courses_15June20'!$C:$C,D$6) -> 5 | E52: =countifs('All Enterprise Courses_15June20'!$Q:$Q,$B52,'All Enterprise Courses_15June20'!$C:$C,E$6) -> 13 | F52: =countifs('All Enterprise Courses_15June20'!$Q:$Q,$B52,'All Enterprise Courses_15June20'!$C:$C,F$6) -> 0 | G52: 33 | I52: =if(countif(Projects!Q:Q,B52)=0,"No","Yes") -> Yes | J52: =countifs('All Enterprise Courses_15June20'!Q:Q,B52,'All Enterprise Courses_15June20'!T:T,"TRUE") -> 4
B53: networking | C53: =countifs('All Enterprise Courses_15June20'!$Q:$Q,$B53,'All Enterprise Courses_15June20'!$C:$C,C$6) -> 3 | D53: =countifs('All Enterprise Courses_15June20'!$Q:$Q,$B53,'All Enterprise Courses_15June20'!$C:$C,D$6) -> 3 | E53: =countifs('All Enterprise Courses_15June20'!$Q:$Q,$B53,'All Enterprise Courses_15June20'!$C:$C,E$6) -> 8 | F53: =countifs('All Enterprise Courses_15June20'!$Q:$Q,$B53,'All Enterprise Courses_15June20'!$C:$C,F$6) -> 0 | G53: 14 | I53: =if(countif(Projects!Q:Q,B53)=0,"No","Yes") -> No | J53: =countifs('All Enterprise Courses_15June20'!Q:Q,B53,'All Enterprise Courses_15June20'!T:T,"TRUE") -> 0
B54: support-and-operations | C54: =countifs('All Enterprise Courses_15June20'!$Q:$Q,$B54,'All Enterprise Courses_15June20'!$C:$C,C$6) -> 2 | D54: =countifs('All Enterprise Courses_15June20'!$Q:$Q,$B54,'All Enterprise Courses_15June20'!$C:$C,D$6) -> 4 | E54: =countifs('All Enterprise Courses_15June20'!$Q:$Q,$B54,'All Enterprise Courses_15June20'!$C:$C,E$6) -> 5 | F54: =countifs('All Enterprise Courses_15June20'!$Q:$Q,$B54,'All Enterprise Courses_15June20'!$C:$C,F$6) -> 0 | G54: 11 | I54: =if(countif(Projects!Q:Q,B54)=0,"No","Yes") -> No | J54: =countifs('All Enterprise Courses_15June20'!Q:Q,B54,'All Enterprise Courses_15June20'!T:T,"TRUE") -> 0
A55: information-technology Total | C55: =sum(C50:C54) -> 84 | D55: 48 | E55: 92 | F55: 0 | G55: 224 | H55: =G55/$G$63 -> 0.05313092979 | J55: =sum(J50:J54) -> 33
A56: Language Learning | B56: learning-english | C56: =countifs('All Enterprise Courses_15June20'!$Q:$Q,$B56,'All Enterprise Courses_15June20'!$C:$C,C$6) -> 13 | D56: =countifs('All Enterprise Courses_15June20'!$Q:$Q,$B56,'All Enterprise Courses_15June20'!$C:$C,D$6) -> 39 | E56: =countifs('All Enterprise Courses_15June20'!$Q:$Q,$B56,'All Enterprise Courses_15June20'!$C:$C,E$6) -> 32 | F56: =countifs('All Enterprise Courses_15June20'!$Q:$Q,$B56,'All Enterprise Courses_15June20'!$C:$C,F$6) -> 8 | G56: 92 | I56: =if(countif(Projects!Q:Q,B56)=0,"No","Yes") -> No | J56: =countifs('All Enterprise Courses_15June20'!Q:Q,B56,'All Enterprise Courses_15June20'!T:T,"TRUE") -> 0
B57: other-languages | C57: =countifs('All Enterprise Courses_15June20'!$Q:$Q,$B57,'All Enterprise Courses_15June20'!$C:$C,C$6) -> 20 | D57: =countifs('All Enterprise Courses_15June20'!$Q:$Q,$B57,'All Enterprise Courses_15June20'!$C:$C,D$6) -> 15 | E57: =countifs('All Enterprise Courses_15June20'!$Q:$Q,$B57,'All Enterprise Courses_15June20'!$C:$C,E$6) -> 19 | F57: =countifs('All Enterprise Courses_15June20'!$Q:$Q,$B57,'All Enterprise Courses_15June20'!$C:$C,F$6) -> 3 | G57: 57 | I57: =if(countif(Projects!Q:Q,B57)=0,"No","Yes") -> No | J57: =countifs('All Enterprise Courses_15June20'!Q:Q,B57,'All Enterprise Courses_15June20'!T:T,"TRUE") -> 0
A58: language-learning Total | C58: =sum(C56:C57) -> 33 | D58: 54 | E58: 51 | F58: 11 | G58: 149 | H58: =G58/$G$63 -> 0.03534155598 | J58: =sum(J56:J57) -> 0
A59: Personal Development | B59: personal-development | C59: =countifs('All Enterprise Courses_15June20'!$Q:$Q,$B59,'All Enterprise Courses_15June20'!$C:$C,C$6) -> 51 | D59: =countifs('All Enterprise Courses_15June20'!$Q:$Q,$B59,'All Enterprise Courses_15June20'!$C:$C,D$6) -> 34 | E59: =countifs('All Enterprise Courses_15June20'!$Q:$Q,$B59,'All Enterprise Courses_15June20'!$C:$C,E$6) -> 31 | F59: =countifs('All Enterprise Courses_15June20'!$Q:$Q,$B59,'All Enterprise Courses_15June20'!$C:$C,F$6) -> 3 | G59: 119 | I59: =if(countif(Projects!Q:Q,B59)=0,"No","Yes") -> No | J59: =countifs('All Enterprise Courses_15June20'!Q:Q,B59,'All Enterprise Courses_15June20'!T:T,"TRUE") -> 3
A60: personal-development Total | C60: =C59 -> 51 | D60: 34 | E60: 31 | F60: 3 | G60: 119 | H60: =G60/$G$63 -> 0.02822580645 | J60: =J59 -> 3
A61: Math and Logic | B61: math-and-logic | C61: =countifs('All Enterprise Courses_15June20'!$Q:$Q,$B61,'All Enterprise Courses_15June20'!$C:$C,C$6) -> 14 | D61: =countifs('All Enterprise Courses_15June20'!$Q:$Q,$B61,'All Enterprise Courses_15June20'!$C:$C,D$6) -> 28 | E61: =countifs('All Enterprise Courses_15June20'!$Q:$Q,$B61,'All Enterprise Courses_15June20'!$C:$C,E$6) -> 26 | F61: =countifs('All Enterprise Courses_15June20'!$Q:$Q,$B61,'All Enterprise Courses_15June20'!$C:$C,F$6) -> 2 | G61: 70 | I61: =if(countif(Projects!Q:Q,B61)=0,"No","Yes") -> No | J61: =countifs('All Enterprise Courses_15June20'!Q:Q,B61,'All Enterprise Courses_15June20'!T:T,"TRUE") -> 0
A62: math-and-logic Total | C62: =C61 -> 14 | D62: 28 | E62: 26 | F62: 2 | G62: 70 | H62: =G62/$G$63 -> 0.01660341556 | J62: =J61 -> 0
A63: Grand Total | C63: =sum(C62,C60,C58,C55,C49,C45,C40,C33,C29,C19,C13) -> 1519 | D63: 1212 | E63: 1336 | F63: 149 | G63: 4216 | H63: 1 | J63: =sum(J62,J60,J58,J55,J49,J45,J40,J33,J29,J19,J13) -> 124

Sheet All Enterprise Courses_15June20
A3: Course Name | B3: University / Industry Partner Name | C3: Difficulty Level | D3: Average Hours | E3: Course Rating | F3: Course URL | G3: Course Description | H3: Skills Learned | I3: Specialization | J3: Specialization Course Order | K3: Specialization URL | L3: Specialization Description | M3: Hours Range | N3: Subtitle Language | O3: Course Language | P3: Domain | Q3: Sub-Domain | R3: Course ID | S3: Specialization ID | T3: New Course in Last 30 Days
A4: Brand & Content Marketing | B4: IE Business School | C4: Advanced | D4: 10.8 | E4: 4.2 | F4: https://www.coursera.org/learn/brand-and-content-marketing | G4: Brand & Content Marketing is a IE University course for professionals who want to learn how to produce memorable content through quality storytelling.\n \nStudents will go through a learning process that will start with a deep understanding of the term Branded Content and its main differences with traditional advertising, simultaneously creating an effective story-line through powerful values. The course analyses the production of quality journalism and explores how to create memorable and long lasting connections with a given target audience in a world of constant content surplus. It concludes with a deeper insight into the term of Brand Entertainment, giving them the opportunity to amplify their knowledge about how to produce a good call to action and retain the audience's attention. | H4: gamification; Journalism; Newspaper; Digital Marketing; brand; hooking; Marketing; branded content; content marketing; film | I4: Branding: The Creative Journey | J4: 2 | K4: https://www.coursera.org/specializations/branding-the-creative-journey | L4: This Specialization aims to make branding concepts accessible to every learner and to teach them to analyze and apply all the relevant concepts, using the broad and diverse toolkit of branding. It provides you with the necessary tools so that you are able to understand the brand behavior, understand the language of a brand and learn about the rational and emotional elements behind brands. It also attempts to make you understand the language of images. The amount of audiovisual content we receive today makes it hard for brands to break through that noise. It ends up teaching how to understand branding efforts in the context of customer experience.\n\nWe must think in a strategic manner when creating brands. Branding is about co-creation and conversation between the audiences, customers and users. What is relevant is how people out there perceive and live the brand. Brands are the story, the personality and the culture of an organization; the intangible elements that form it. | M4: [6.4, 14.0] | N4: None | O4: English | P4: arts-and-humanities | Q4: history | R4: ckcx68xtEei_yhJb4Jwwlg | S4: ngnV57djEeiKOw5SJXYV1A | T4: FALSE
A5: Ideas from the History of Graphic Design | B5: California Institute of the Arts | C5: Conversant | D5: 12.8 | E5: 4.6 | F5: https://www.coursera.org/learn/graphic-design-history | G5: This condensed survey course focuses on four key periods or themes from the history of design. Together we’ll trace the emergence of design as a recognized practice, why things look the way they do, and how designers approached specific design problems in their work. \n\nEach week, a short quiz will test your knowledge of concepts, and a short reflective assignment will give you the opportunity to analyze the questions designers ask themselves today.\n\nThis is an essential course for emerging designers entering the field, or for students interested in learning more about visual culture and analysis. No previous experience is required. | H5: adobe indesign; analysis; history; illustration; i-deas; typography; Graphic Design; Art History; art; Computer Graphics | I5: Graphic Design | J5: 4 | K5: https://www.coursera.org/specializations/graphic-design | L5: Graphic design is all around us, in a myriad of forms, both on screen and in print, yet it is always made up of images and words to create a communication goal. This four-course sequence exposes students to the fundamental skills required to make sophisticated graphic design: process, historical context, and communication through image-making and typography. The sequence is completed by a capstone project that applies the skills of each course and peer feedback in a finished branding project suitable for a professional portfolio.\n\nThe goal of this specialization is to equip learners with a set of transferable formal and conceptual tools for “making and communicating” in the field of graphic design. This core skill set will equip learners for formal studies in graphic design, and a starting point for further work in interface design, motion graphics, and editorial design. | M5: [8.4, 15.0] | N5: Serbian | O5: English | P5: arts-and-humanities | Q5: history | R5: NjakpyWaEeWs4gorU6Q1Yw | S5: DmdTb5-EEeWKfBLwgrbazQ | T5: FALSE
A6: Basic Elements of Design: Design Principles and Software Overview | B6: University of Colorado Boulder | C6: Beginner | D6: 4.1 | E6: 4.7 | F6: https://www.coursera.org/learn/basic-elements-design | G6: Designing for an organization, while requiring technical skill, is not just about knowing how to use a pagination program such as InDesign or manipulate photos using Photoshop. A designer is a visual storyteller, a person who pairs words with images and typography to best convey information to an audience. Good design evokes emotion and presents the news of the day with clarity and the proper tone. A business card, brochure, or website that has good design provides content that is more inviting, more easily comprehensible and is faster to process. Design isn’t about “making it look pretty,” it’s also about content, layout and audience analysis. | H6: software; Graphic Design; event management; logo; adobe illustrator; white spaces (radio); Web Design; adobe photoshop; project; Computer Graphics | I6: Graphic Design Elements for Non-Designers | J6: 1 | K6: https://www.coursera.org/specializations/graphic-design-elements-non-designers | L6: In this hands-on specialization, you will explore basic graphic design elements, color theory, images, publication design and techniques for creating effective layouts. You will also learn about typography, the creative process, the importance of brainstorming, and how to discuss and critique design in a professional setting. Page layout software and online sites will be used to incorporate and manipulate text, color, photographs and images.\n\nIf you are curious about the design process, work on a team with designers and need to speak some of their language, or want to empower the creatives on your team to be even better, this specialization is made for you. | M6: [2.3, 5.3] | N6: None | O6: English | P6: arts-and-humanities | Q6: history | R6: 59LP7CNMEemu6Qp1FfHBJA | S6: vvjlyCNMEemnpxIguGgoZg | T6: FALSE
A7: Graphic Elements of Design: Color Theory and Image Formats | B7: University of Colorado Boulder | C7: Conversant | D7: 3.9 | E7: 4.8 | F7: https://www.coursera.org/learn/graphic-elements-design | G7: Examining and exploring the various types of images and graphic elements will be the focus of this course. We will start with color theory to distinguish between CMYK, Pantone and RGB color options and their usages. Then we will review the various types of images used in both print and digital design projects. Finally we will look at logo designs to determine what makes for the best images and graphic elements for corporate branding and imaging. | H7: web colors; web banner; illustration; Graphic Design; Color Theory; logo; adobe photoshop; vector graphics; adobe illustrator; Computer Graphics | I7: Graphic Design Elements for Non-Designers | J7: 2 | K7: https://www.coursera.org/specializations/graphic-design-elements-non-designers | L7: In this hands-on specialization, you will explore basic graphic design elements, color theory, images, publication design and techniques for creating effective layouts. You will also learn about typography, the creative process, the importance of brainstorming, and how to discuss and critique design in a professional setting. Page layout software and online sites will be used to incorporate and manipulate text, color, photographs and images.\n\nIf you are curious about the design process, work on a team with designers and need to speak some of their language, or want to empower the creatives on your team to be even better, this specialization is made for you. | M7: [1.9, 5.3] | N7: None | O7: English | P7: arts-and-humanities | Q7: history | R7: GtBnESNNEemgCw6mOm9edg | S7: vvjlyCNMEemnpxIguGgoZg | T7: FALSE
A8: Textual Elements of Design: Fonts, Typography, and Spacing | B8: University of Colorado Boulder | C8: Beginner | D8: 4.5 | E8: 4.8 | F8: https://www.coursera.org/learn/fonts-typography-spacing | G8: Graphic design is telling a story by using both images and text. With that definition in mind, this course will focus on the textual elements of graphic design. From the history of typography, the difference between type, fonts and text as well as exposure to typography spacing, students will learn the value of selecting the best kind of type and combinations of fonts to get their message across in a visually pleasing manner. | H8: illustration; adobe indesign; typography; tracking; Graphic Design; Color Theory; adobe photoshop; raw image format; logo; brochure | I8: Graphic Design Elements for Non-Designers | J8: 3 | K8: https://www.coursera.org/specializations/graphic-design-elements-non-designers | L8: In this hands-on specialization, you will explore basic graphic design elements, color theory, images, publication design and techniques for creating effective layouts. You will also learn about typography, the creative process, the importance of brainstorming, and how to discuss and critique design in a professional setting. Page layout software and online sites will be used to incorporate and manipulate text, color, photographs and images.\n\nIf you are curious about the design process, work on a team with designers and need to speak some of their language, or want to empower the creatives on your team to be even better, this specialization is made for you. | M8: [2.5, 5.7] | N8: None | O8: English | P8: arts-and-humanities | Q8: history | R8: AuVaViNNEemXywr9no0_Fg | S8: vvjlyCNMEemnpxIguGgoZg | T8: FALSE
A9: Print and Digital Elements of Design: Branding and User Experience | B9: University of Colorado Boulder | C9: Beginner | D9: 3.3 | E9: 4.8 | F9: https://www.coursera.org/learn/designing-print-digital-media | G9: Graphic design projects can be delivered in either a printed format or a digital format, or both. This course will look at how to work with creative professionals to get the ideal usage out of a design to use in print medium such as logos, brochures and larger printed projects that will also carry over as seamlessly as possible into the digital realm of websites and social media. We will also cover the user experience and how to keep the end result in mind when working on creative endeavors. | H9: career; experience; typography; Graphic Design; Color Theory; adobe illustrator; Computer Architecture; adobe photoshop; logo; digital media | I9: Graphic Design Elements for Non-Designers | J9: 4 | K9: https://www.coursera.org/specializations/graphic-design-elements-non-designers | L9: In this hands-on specialization, you will explore basic graphic design elements, color theory, images, publication design and techniques for creating effective layouts. You will also learn about typography, the creative process, the importance of brainstorming, and how to discuss and critique design in a professional setting. Page layout software and online sites will be used to incorporate and manipulate text, color, photographs and images.\n\nIf you are curious about the design process, work on a team with designers and need to speak some of their language, or want to empower the creatives on your team to be even better, this specialization is made for you. | M9: [1.7, 4.3] | N9: None | O9: English | P9: arts-and-humanities | Q9: history | R9: Mhe49CNNEemN7hLiAmzXPg | S9: vvjlyCNMEemnpxIguGgoZg | T9: FALSE
A10: Journey of the Universe: The Unfolding of Life | B10: Yale University | C10: Conversant | D10: 9.6 | E10: 4.8 | F10: https://www.coursera.org/learn/journey-of-the-universe | G10: Journey of the Universe weaves together the discoveries of the evolutionary sciences together with humanities such as history, philosophy, art, and religion. The course draws on the Emmy-award winning film, Journey of the Universe, and the book from Yale University Press. \n\nJourney explores cosmic evolution as a creative process based on connection, interdependence, and emergence. It examines a range of dynamic interactions in the unfolding of galaxies, Earth, life, and human communities. It investigates ways in which we understand evolutionary processes and the implications for humans and our ecological future. \n\nThe Journey course, thus, is based on a new integration that is emerging from the dialogue of the sciences and humanities. Journey tells the story of evolution as an epic narrative, rather than as a series of facts separated by scientific disciplines. This changes our perception so that we begin to see ourselves as an integral part of this narrative. By situating ourselves within this story we can better appreciate the complexity and beauty of processes such as self-organizing dynamics, natural selection, emergence, symbiosis, and co-evolution. As we discover these intricate processes of evolution, we awaken to the beauty and complexity of our natural environment at this critical juncture in our planetary history. | H10: Scaling; Solar Systems; chemistry; thought; species; in natura; verse protocol; religion; astronomy; film | I10: Journey of the Universe: A Story for Our Times | J10: 1 | K10: https://www.coursera.org/specializations/journey-of-the-universe | L10: Use the links below to audit the courses at no cost:\n\nCourse 1: Journey of the Universe: The Unfolding of Life\n\nCourse 2: Journey of the Universe: Weaving Knowledge and Action\n\nCourse 3: The Worldview of Thomas Berry: The Flourishing of the Earth Community\n\nJourney of the Universe: A Story for Our Times is a course series created by senior research scholars at the Yale School of Forestry and Environmental Studies, Mary Evelyn Tucker and John Grim. The courses weave the discoveries of the evolutionary sciences together with the humanities such as history, philosophy, art, and religion. The courses in this Specialization draw on the Emmy-award winning film, Journey of the Universe, the book from Yale University Press, and a series of 20 interviews with scientists and environmentalists, titled Journey Conversations.\n\nEach week there will be a brief commentary by Brian Thomas Swimme, co-author of the Journey book. | M10: [3.7, 13.7] | N10: Chinese | O10: English | P10: arts-and-humanities | Q10: history | R10: LANMc0UsEeaJwxI8cURk2w | S10: child~PCwdzcJ7EeiBoBI3d_eanA | T10: FALSE
A11: The Worldview of Thomas Berry: The Flourishing of the Earth Community | B11: Yale University | C11: Beginner | D11: 8.6 | E11: 4.8 | F11: https://www.coursera.org/learn/thomas-berry | G11: Thomas Berry (1914-2009) was a historian of world religions and an early voice awakening moral sensibilities to the environmental crisis. He is known for articulating a “new story” of the universe that explores the implications of the evolutionary sciences and cultural traditions for creating a flourishing future. \n\nThis course investigates Berry’s life and thought in relation to the Journey of the Universe project. It draws on his books, articles, and recorded lectures to examine such ideas as: the New Story, the Great Work, and the emerging Ecozoic era. The course explores Berry’s insights into cosmology as a context for locating the human in a dynamic unfolding universe and thus participating in the creative work of our times. In particular, we will examine Berry’s reflections on renewal and reform in the areas of ecology, economics, education, spirituality, and the arts.\n\n\t\nCourse Rationale:\n\n\tThomas Berry was an original, creative, and comprehensive thinker, especially regarding the critical nature of our global environmental crisis. His intellectual importance resides in his response to the ecological crisis by bringing together the humanities and science in an evolutionary narrative. In addition, he articulated the need for the moral participation of the world religions in addressing environmental issues. He came to this realization largely through his study of cosmologies embedded within religious traditions. Sensing the significance of these stories as “functional cosmologies” he explored the widespread influence that these stories transmitted through a tradition, for example, in rituals, ethics, and subsistence practices. | H11: principle; Average; ecology; dream; derivative; Culture; interview; verse protocol; spirituality; religion | I11: Journey of the Universe: A Story for Our Times | J11: 3 | K11: https://www.coursera.org/specializations/journey-of-the-universe | L11: Use the links below to audit the courses at no cost:\n\nCourse 1: Journey of the Universe: The Unfolding of Life\n\nCourse 2: Journey of the Universe: Weaving Knowledge and Action\n\nCourse 3: The Worldview of Thomas Berry: The Flourishing of the Earth Community\n\nJourney of the Universe: A Story for Our Times is a course series created by senior research scholars at the Yale School of Forestry and Environmental Studies, Mary Evelyn Tucker and John Grim. The courses weave the discoveries of the evolutionary sciences together with the humanities such as history, philosophy, art, and religion. The courses in this Specialization draw on the Emmy-award winning film, Journey of the Universe, the book from Yale University Press, and a series of 20 interviews with scientists and environmentalists, titled Journey Conversations.\n\nEach week there will be a brief commentary by Brian Thomas Swimme, co-author of the Journey book. | M11: [1.8, 12.9] | N11: Chinese | O11: English | P11: arts-and-humanities | Q11: history | R11: WXt3PEUsEeaDRhLb8lAaNw | S11: child~PCwdzcJ7EeiBoBI3d_eanA | T11: FALSE
A12: User Experience Responsive Hero in XD for Beginners | B12: Coursera Project Network | C12: Beginner | D12: 0.9 | E12: 3 | F12: https://www.coursera.org/learn/xd-responsive-hero-beginners | G12: In this 1-hour long project-based course, you will learn how to create custom content as well as resusable components for a responsive hero for a website design. There is also a UX use case in the recommended reading to understand the reason why we are creating the User Interface (UI). \n\n1. Create Artboards and Utilize the Tools Panel for Content Creation.\n2. Create a Custom Button with the Pen Tool\n3. Create a Button Component\n4. Learn Text Character Styles\n5. Resize Assets for Artboards.\n\n\nNote: This course works best for learners who are based in the North America region. We’re currently working on providing the same experience in other regions. | H12: psychology lists; x input method; experience; cognitive linguistics; project mine; interviewer effect; project; character (computing); login; asset | I12: Non Specialization | J12: Non Specialization | K12: Non Specialization | L12: Non Specialization | M12: [0.5, 1.0] | N12: None | O12: English | P12: arts-and-humanities | Q12: history | R12: Cs2W9nnSEeqslwph6Fu5Cw | S12: Non Specialization | T12: FALSE
A13: Recovering the Humankind's Past and Saving the Universal Heritage | B13: Sapienza University of Rome | C13: Not Calibrated | D13: 14.6 | E13: 4.3 | F13: https://www.coursera.org/learn/preserving-cultural-heritage | G13: Archaeology is, among human sciences, the discipline with the strongest importance for the rediscovery, but also for the preservation and protection of cultural heritage, as Humankind’s universal patrimony. You will be introduced to the way we ourselves reflect on and are engaged with the study of human past: from the practical and material recovery of ancient traces in the field to the study and interpretation. On the other hand, the discovery of human past implies the correct conservation and presentation for both experts and general public: the study and protection of the past we share every day prevent from any possible destruction, misuse, abuse and thus cancellation of human memory.\n“Recovering the Humankind's Past and Saving the Universal Heritage” presents to a large public Archaeology as a historical discipline: through an inter-disciplinary perspective you will follow the evolution and change of archaeology to the moment when natural sciences contributed to make the historical reconstructions scientifically sound; the aid of informatics and of virtual reconstructions gives new fascination to the already strong suggestion of Archaeology, as the discipline of discovery par excellence. Within this frame, Ebla, which is the glory of the Sapienza school of Oriental archaeology, will have an exemplary meaning in the course development as a long lasting experience on the field and an excellent example of the scientific results of combined researches and disciplines.\n\nMoreover, the course will focus on actual, innovative instruments to preserve, monitor and give value to cultural heritage through a multidisciplinary approach, based on a deep archaeological and historical knowledge but also on ICT technologies. The wide adoption of ICT technologies in our daily life is also impacting in the way in which we interact with our cultural heritage in particular in terms of preservation and dissemination of cultural objects.\n\nIn this course you will learn the basic techniques to digitize cultural objects and obtain 3D digital copies of a physical objects such as statues, vases or archaeological sites. We will also discuss how to structure the raw data in order to facilitate and make effective the access to digital contents. In particular, we will present the European Data Model, a framework for collecting, connecting and enriching data on cultural objects provided by a number of museum, archives, sites and libraries in Europe. | H13: diets; saving; interpretation; budget; archive site; scientific method; perception; hatred; sources; Mergers & Acquisitions | I13: Non Specialization | J13: Non Specialization | K13: Non Specialization | L13: Non Specialization | M13: [8.2, 18.3] | N13: None | O13: English | P13: arts-and-humanities | Q13: history | R13: 7dBeI8uGEeWoOwoxwyRjgQ | S13: Non Specialization | T13: FALSE
A14: Arch of Titus: Rome and the Menorah | B14: Yeshiva University | C14: Intermediate | D14: 15.8 | E14: 4.3 | F14: https://www.coursera.org/learn/archoftitus | G14: The Arch of Titus: Rome and the Menorah explores one of the most significant Roman monuments to survive from antiquity, from the perspectives of Roman, Jewish and later Christian history and art. The Arch of Titus commemorates the destruction of Jerusalem by the emperor Titus in 70 CE, an event of pivotal importance for the history of the Roman Empire, of Judaism, of Christianity and of modern nationalism. \n\nTogether with your guide, Professor Steven Fine, you will examine ancient texts and artifacts, gaining skills as a historian as you explore the continuing significance of the Arch of Titus from antiquity to the very present. Course members will accompany Professor Fine on virtual "fieldtrips" to museums and historical sites in Los Angeles and New York where you will "meet" curators, scholars and artists. You will attend an academic colloquium and even "participate" in office hours. Students will participate in the latest advancement in the study of the Arch - the restoration of its original colors. You will learn how color was used in Roman antiquity and apply that knowledge to complete your own 'color restoration' of the Arch of Titus menorah relief. | H14: Writing; analysis; interpretation; experience; Culture; reason; israel; evaluation; Autoregressive Conditional Heteroskedasticity; ordered pair | I14: Non Specialization | J14: Non Specialization | K14: Non Specialization | L14: Non Specialization | M14: [10.5, 18.9] | N14: None | O14: English | P14: arts-and-humanities | Q14: history | R14: 7wfVmobsEeWgjA5cAvYgmw | S14: Non Specialization | T14: FALSE
A15: A Brief History of Human Spaceflight | B15: University of Houston System | C15: Beginner | D15: 9.3 | E15: 4.2 | F15: https://www.coursera.org/learn/human-spaceflight | G15: This course provides a view of the history of spaceflight, from early writings telling of human's fascination of space through the early Russian and American space stations. Developed as an interesting and entertaining slice of space history that is accessible to anyone with an interest in human spaceflight | H15: Aerospace Engineering; history; Innovation; reading (process); thought; international space station; space station; generation; man; ordered pair | I15: Non Specialization | J15: Non Specialization | K15: Non Specialization | L15: Non Specialization | M15: [5.9, 11.6] | N15: None | O15: English | P15: arts-and-humanities | Q15: history | R15: pFHWsjyCEeW7GArkqhNhJw | S15: Non Specialization | T15: FALSE
A16: The Rooseveltian Century | B16: Universiteit Leiden | C16: Advanced | D16: 11.7 | E16: 4.7 | F16: https://www.coursera.org/learn/roosevelt | G16: This course uses the lives, ideals and achievements of Theodore, Franklin, and Eleanor Roosevelt to create the idea of a Rooseveltian century. It is about doing research, analyzing primary sources, and connecting all this information with a coherent and logical interpretation. It is an invitation to think critically and historically, and it wants to give you a glimpse of what it means to be a historian at work. \n\nWe are convinced that the three Roosevelts – the 3Rs, as we will refer to them throughout this course – profoundly shaped the twentieth century. This course shows you why we think so and which paradigms, ideas, and sources we use to uphold our claim. But this course also asks you to give your opinion, and ground it on your own research findings. \n\nThe structure of the course is straightforward: \n- An introductory module gives you the biographical information you need to connect the personal stories of the 3Rs with the major events of the twentieth century;\n- Module 2 explains how the 3Rs reframed our thinking on security, broadening its meaning and reconfiguring the government’s role in providing it; \n- Module 3, focusing on equality, shows how the 3Rs changed the relationship between leaders and led, rejected laissez-faire economics, and supported a politics of intervention to overcome the inequalities that undermined social cohesion;\n- Module 4 describes how the 3Rs promoted and protected the freedom of ordinary citizens, and communicated that as one of their central political goals;\n- Module 5 summarizes the long-lasting legacies of the 3Rs, and asks for your opinion on the Rooseveltian century. Do you agree with this interpretation of our recent past – and our possible futures?\n\nThe five modules contain quizzes to test your knowledge and understanding, discussion prompts to stimulate your creativity, and research guidance and assignments to sharpen up your historical skills. \n\nWe hope you will enjoy this intellectual journey! | H16: Digital Video Workflow; material flow; Audio Engineering; finite-state transducer; mealy machine; scientific equipment; international space station; wet lab; conformance testing; bang bang control | I16: Non Specialization | J16: Non Specialization | K16: Non Specialization | L16: Non Specialization | M16: [7.4, 15.6] | N16: None | O16: English | P16: arts-and-humanities | Q16: history | R16: PJg2NGKXEeWpHwqwM9Gg0w | S16: Non Specialization | T16: FALSE
A17: Antisemitism: From Its Origins to the Present | B17: Yad Vashem | C17: Beginner | D17: 15 | E17: 4.9 | F17: https://www.coursera.org/learn/antisemitism | G17: In this course, 50 leading scholars from all over the world will explore questions and issues relating to antisemitism including: what is antisemitism? How has it changed throughout history? Why can it be found among so many diverse cultures, and even among opposing ideologies? What happened to antisemitism after the Holocaust? How is antisemitism expressed today, and what are the main spheres in which it can be found? | H17: antisemitism; Russian; history; entry point; centrality; persistence; well; holocaust; denial; criticism | I17: Non Specialization | J17: Non Specialization | K17: Non Specialization | L17: Non Specialization | M17: [9.6, 18.1] | N17: French; Spanish | O17: English | P17: arts-and-humanities | Q17: history | R17: 1QloUJilEemcXhIGhfl-5A | S17: Non Specialization | T17: FALSE
A18: The Emergence of the Modern Middle East - Part II | B18: Tel Aviv University | C18: Beginner | D18: 12.1 | E18: 4.7 | F18: https://www.coursera.org/learn/modern-middle-east-2 | G18: This course will discuss the developments in the Middle East from the early 20th century to the present. It will discuss the rise and retreat of Arab nationalism, the problems of internal cohesion of the Arab states, issues of religion and state, and the evolution of Islamist politics. It will also focus on the evolution of the Arab-Israeli conflict and its impact on the region and will conclude with an in depth analysis of the “Arab Spring” by placing these contemporary revolutionary events in their historical context.\n\nPlease note that this course builds upon a previous course - The Emergence of the Modern Middle East - Part I (https://www.coursera.org/learn/modern-middle-east-1/home/welcome)\n\nLearn about the history of the Middle East for a deeper understanding of current regional developments! | H18: spring; Human Learning; experience; israel; well; arts and humanities; control characters; middle east; international relations; gratitude | I18: Non Specialization | J18: Non Specialization | K18: Non Specialization | L18: Non Specialization | M18: [6.2, 16.0] | N18: Spanish; Hebrew; Arabic | O18: English | P18: arts-and-humanities | Q18: history | R18: 8cCaMoJkEeWXJRLCDq5sWw | S18: Non Specialization | T18: FALSE
A19: Age of Cathedrals | B19: Yale University | C19: Intermediate | D19: 26.3 | E19: 4.7 | F19: https://www.coursera.org/learn/age-of-cathedrals | G19: An introduction to some of the most astonishing architectural monuments the world has ever known—Gothic cathedrals. We shall study the art, literature, intellectual life, economics, and new social arrangements that arose in the shadow of the cathedrals and that were such an important part of the revival of cities in the twelfth and thirteenth centuries. The goal of the course is a better appreciation of the High Middle Ages, a world that is still recognizably our own. | H19: glassing; history; ageing; mother; art; raw image format; Art History; architecture; religion; sources | I19: Non Specialization | J19: Non Specialization | K19: Non Specialization | L19: Non Specialization | M19: [17.4, 29.7] | N19: Spanish | O19: English | P19: arts-and-humanities | Q19: history | R19: 4c3Na4HJEeebiA46KC81FA | S19: Non Specialization | T19: FALSE
A20: L’Egitto prima e dopo i faraoni. Dalla nascita dello Stato (3000 a.C. ca.) alle prime comunità cristiane (IV secolo d.C.) | B20: Sapienza University of Rome | C20: Beginner | D20: 6.6 | E20: 4.5 | F20: https://www.coursera.org/learn/egitto | G20: L’Egitto prima e dopo i faraoni. Dalla nascita dello Stato (3000 a.C. ca.) alle prime comunità cristiane (IV secolo d.C.) | H20: joie de vivre; gustave le bon; history; minc; Art History; gratitude | I20: Non Specialization | J20: Non Specialization | K20: Non Specialization | L20: Non Specialization | M20: [3.9, 7.6] | N20: None | O20: Italian | P20: arts-and-humanities | Q20: history | R20: HW4IZWWHEeeqbxLIz9M6nA | S20: Non Specialization | T20: FALSE
A21: Soul Beliefs: Causes and Consequences - Unit 2: Belief Systems | B21: Rutgers the State University of New Jersey | C21: Intermediate | D21: 23.1 | E21: 4.5 | F21: https://www.coursera.org/learn/soulbeliefs2 | G21: Throughout history, the vast majority of people around the globe have believed they have, however defined, a “soul.” While the question of whether the soul exists cannot be answered by science, what we can study are the causes and consequences of various beliefs about the soul and its prospects of surviving the death of the body. Why are soul and afterlife beliefs so common in human history? Are there adaptive advantages to assuming souls exist? Are there brain structures that have been shaped by environmental pressures that provide the foundation of body/mind dualism that is such a prominent feature of many religions? How do these beliefs shape the worldviews of different cultures and our collective lives? What is the role of competing afterlife beliefs in religion, science, politics, and war? This course explores several facets of this relatively unexplored but profoundly important aspect of human thought and behavior.\n\nThe course consists mainly of 70 to 80 minute lectures, typically broken up into 3 segments, recorded from a course offered by Rutgers University School of Arts and Sciences. These videos include slides and some embedded video clips. Most lectures are accompanied by slides used during the lecture, also including recommended reading assignment which may provide additional opportunities to reflect on your studies.\n\nDue to the lengthiness of this class and natural progression, the online course has been separated into 3 units, this is Unit 2. | H21: elections; belief; history; recursively enumerable set; Leadership and Management; thought; Human Learning; fasting; psychologies; theory of relativity | I21: Non Specialization | J21: Non Specialization | K21: Non Specialization | L21: Non Specialization | M21: [16.8, 26.5] | N21: Romanian | O21: English | P21: arts-and-humanities | Q21: history | R21: CTlGQf2KEeSToSIACxsEgg | S21: Non Specialization | T21: FALSE
A22: 中日文化交流史 | B22: Peking University | C22: Advanced | D22: 20.1 | E22: 4.8 | F22: https://www.coursera.org/learn/zhongri-jiaoliushi | G22: 追溯日本文明发展的历史，阐明日本人独特的思考模式，解析日本独特的审美意识。本课程讲授公元前3世纪至清末的中日文化交流的历史。以文化艺术的交流为主线，以实地考察为背景展示了中日两国丰富灿烂的交流史实。通过中日双方在吸收对方文化过程中所表现出来的不同的受容方式剖析了中日文化之不同特性，可以帮助受课者准确地把握日本文化的内质，并启发其对自我民族历史文化之思考。生动的图片，倾心的讲授，可以让学习者在轻松愉快的氛围中完成六章的学习和有趣的试题，以期丰富学习者的人文积淀。 | H22: chinese language | I22: Non Specialization | J22: Non Specialization | K22: Non Specialization | L22: Non Specialization | M22: [7.0, 17.8] | N22: None | O22: Chinese (China) | P22: arts-and-humanities | Q22: history | R22: IPob__yUEea_xArNhnfrng | S22: Non Specialization | T22: FALSE
A23: Exploring Beethoven's Piano Sonatas Part 6 | B23: Curtis Institute of Music | C23: Intermediate | D23: 15.4 | E23: Not Calibrated | F23: https://www.coursera.org/learn/exploring-beethoven-piano-sonatas-6 | G23: Welcome to Exploring Beethoven's Piano Sonatas Part 6! You’re joining thousands of learners currently enrolled in the course. I'm excited to have you in the class and look forward to your contributions to the learning community.\n\nTo begin, I recommend taking a few minutes to explore the course site. Review the material we’ll cover each week, and preview the assignments you’ll need to complete to pass the course. Click Discussions to see forums where you can discuss the course material with fellow students taking the class.\n\nIf you have questions about course content, please post them in the forums to get help from others in the course community. For technical problems with the Coursera platform, visit the Learner Help Center.\n\nGood luck as you get started, and I hope you enjoy the course! | H23: prediction markets; tempest (codename); piano; chord; awe; Drama; stampede; shyness; leap motion; ecstasy (emotion) | I23: Non Specialization | J23: Non Specialization | K23: Non Specialization | L23: Non Specialization | M23: [9.7, 18.4] | N23: None | O23: English | P23: arts-and-humanities | Q23: history | R23: WQ_xuxtnEeq_igojzzC-Aw | S23: Non Specialization | T23: FALSE
A24: Moses' Face: Moses' images as reflected in Jewish literature | B24: Hebrew University of Jerusalem | C24: Not Calibrated | D24: 18.4 | E24: 4.9 | F24: https://www.coursera.org/learn/moses | G24: One was Moses but many are his faces. Starting with the Hebrew Bible, continuing with Jewish literatures throughout history (Second Temple literature, rabbinic literature, medieval commentaries, modern literature, thought and art.) the character of Moses keeps changing and developing through the eyes of the beholder, it's time, tendency and the nature of the genre. The course will follow the different phases of Moses' character and try to understand what motives are behind them.\n\nאחד היה משה אך רבים פניו. החל בגופו של המקרא והמשך בספרות עם ישראל לדורותיו (ספרות הבית השני, ספרות חז"ל, פרשני ימי הביניים ועוד) וכלה בספרות, באמנות ובהגות של העת החדשה - לובשת ופושטת דמות של משה צורות חדשות ומגוונות, על פי המתבונן, זמנו, מגמתו ואופי יצירתו. הקורס יעקב אחר גלגולי דמויותיו של משה [ביצירה שעד ראשית תקופת הגאונים] ויבקש להבין מה עומד מאחורי יצירתן. | H24: thought; deliberation; negotiation theory; Human Learning; ambiguity aversion; distancing language; bible; emotional bias; dialogue; gratitude | I24: Non Specialization | J24: Non Specialization | K24: Non Specialization | L24: Non Specialization | M24: [10.6, 25.3] | N24: None | O24: Hebrew | P24: arts-and-humanities | Q24: history | R24: GAAyKa7zEeWu-gqgbeGTiQ | S24: Non Specialization | T24: FALSE
A25: Deciphering Secrets: The Illuminated Manuscripts of Medieval Europe | B25: University of Colorado System | C25: Beginner | D25: 54.7 | E25: 4.7 | F25: https://www.coursera.org/learn/medieval-europe | G25: Perhaps no other relic of the European Middle Ages captures our imagination more than illuminated medieval manuscripts, or those documents decorated with images and colored pigments. Serving as windows unto a lost world of kings, ladies, faith, war, and culture, they communicate complex visual and textual narratives of Europe’s collective cultural heritage and patrimony. In this fashion, illuminated manuscripts are dynamic messages from our communal past that are still relevant today in fields like graphic design and typography.\n\nIn this seven-week course, students will explore the material creation, content, and historical context of illuminated medieval European manuscripts. Students will acquire an introductory knowledge of their distinguishing characteristics, their cataloguing and periodization (when they were created), the methods utilized to produce them, and their historical context and value.\n\nStudent achievement will be assessed using not only traditional multiple-choice quizzes, but more importantly will be evaluated based on individual student projects. In their final projects students will either (1) produce a board of commented images about medieval manuscripts or (2) prepare a physical manuscript using medieval methods. The best of these peer-evaluated projects will be posted on the Deciphering Secrets website, which is our collective citizen scholarship web presence that encourages and supports our global citizen scholars appreciation and contributions to transcription of medieval manuscripts.\n\nFinally, we wish to highlight that this course is an exciting international collaboration between the University of Colorado (USA) and Universidad Complutense Madrid (Spain). | H25: page layout; pageable memory; history; evolution; decipherment; Page Design; bible; art; Art History; primary source | I25: Non Specialization | J25: Non Specialization | K25: Non Specialization | L25: Non Specialization | M25: [36.3, 68.6] | N25: None | O25: English | P25: arts-and-humanities | Q25: history | R25: QuKyoTrbEeWJaxK5AT4frw | S25: Non Specialization | T25: FALSE
A26: Religion and Thought in Modern China: the Song, Jin, and Yuan | B26: The Chinese University of Hong Kong | C26: Not Calibrated | D26: 19 | E26: 4.3 | F26: https://www.coursera.org/learn/religion-thought-modern-china | G26: This sequence of four courses will propose a multi-disciplinary approach to the study of Chinese cultural history conceived of as a succession of modes of rationality (philosophical, bureaucratic, and economic). The focus will be on the moments of paradigm shift from one mode of rationality to another. For each of these moments, cultural facts and artifacts—thought, literature, ritual—will be examined in relationship to changing social, political, and economic systems.\n\nThe first two courses will cover the periods of the Warring States (481-256 BCE) and the Period of Division (220-589 CE), with a brief excursion into the Han (206 BCE-220 CE). The Warring States laid the social and cultural foundations for the emergence of the imperial mode of rationality; the Period of Division saw the Buddhist “conquest” of China and the emergence of a rationality defined by the opposition of the Three Teachings to shamanism, that is, of a clear contrast between elite and popular culture.\n\nThe third and fourth courses will focus on the emergence of modern China in the Song-Yuan (960-1368) and of today’s China 1850 to the present. We will see how the modern attack on religion, redefined as "superstition", led not only to religious reform movements but also to a society in which science and the nation became the primary value systems promoted by the state.\n\nThe courses are listed below:\n\nA Critical Cultural History of China - Early China I: Intellectual Change in the Warring States and Han (481 BCE-220 CE)\nA Critical Cultural History of China - Early China II: Religious Transformation in the Period of Division (220-589 CE)\nA Critical Cultural History of China - Modern China I: Religion and Thought in the Song, Jin, and Yuan (960-1368) \nA Critical Cultural History of China - Modern China II: Structuring Values (1850-2015) | H26: chinese language; political science; emotions; Culture; arts and humanities; Model Selection; Art History; well; Magazine Design; religion | I26: Non Specialization | J26: Non Specialization | K26: Non Specialization | L26: Non Specialization | M26: [11.7, 24.7] | N26: None | O26: English | P26: arts-and-humanities | Q26: history | R26: iUPH1m0oEeiuqw7TFTY5vg | S26: Non Specialization | T26: FALSE
A27: Introduction to Multilingual and Multicultural Education | B27: National Research University Higher School of Economics | C27: Beginner | D27: 20 | E27: 4.1 | F27: https://www.coursera.org/learn/multilingual-multicultural-education | G27: The processes of globalization are highly complex and influence the multi-layered structures of societies: economic, socio-cultural, political, linguistic and education aspects among others. A remarkable increase in global migration flows, especially over the last decade, required from the host countries to pay particular attention to the provision of equal education opportunities.\n\nChildren of migrants, frequently not being (fluent) speakers of the official/national language(s) of the host country, need, and above all, have the right, to get access to good quality education. In addition, in today’s highly competitive labour-market, learning global/international languages (e.g. English) is seen as a necessity. How and at what age should children start learning an additional language (or languages)? Do bilingual/multilingual children perform better at school than their monolingual peers? Which language/education policies are successful and which are not? What challenges students and teachers face in a multilingual/multicultural classroom? What measures do educators, schools, communities need to take in order to make the multilingual and multicultural learning space more effective? The course Introduction to Multilingual and Multicultural Learning makes an attempt to provide answers to these and other related questions with reference to the latest research and discussion of different case studies.\n\nBy the end of this course, you will be able to:\n- critically evaluate various teaching practices in multilingual and multicultural settings;\n- critically evaluate various language policies and planning programmes implemented in multilingual education settings;\n- obtain valuable insights to better understand the learning needs of students in a multilingual/multicultural classroom;\n- apply the knowledge you will have gained in this course, in multilingual/multicultural classrooms;\n- obtain essential skills to deal with immigrant/minority language students.\n\nDo you have technical problems? Write to us: coursera@hse.ru | H27: education; Bilingual; language; multiculturalism; multiliteracy; linguistics; intercultural competence; Educational Programs; child; cross-cultural communication | I27: Non Specialization | J27: Non Specialization | K27: Non Specialization | L27: Non Specialization | M27: [9.8, 22.0] | N27: None | O27: English | P27: arts-and-humanities | Q27: history | R27: WTr4hgzeEeinewrSSVSTfA | S27: Non Specialization | T27: FALSE
A28: A Journey through Western Christianity: from Persecuted Faith to Global Religion (200 - 1650) | B28: Yale University | C28: Beginner | D28: 29.3 | E28: 4.7 | F28: https://www.coursera.org/learn/western-christianity-200-1650 | G28: This course follows the extraordinary development of Western Christianity from its early persecution under the Roman Empire in the third century to its global expansion with the Jesuits of the early modern world. We explore the dynamic and diverse character of a religion with an enormous cast characters. We will meet men and women who tell stories of faith as well as of violence, suppression, and division. Along the way, we encounter Perpetua and her martyrdom in Carthage; the struggles of Augustine the bishop in North Africa; the zeal of Celtic monks and missionaries; the viciousness of the Crusades; the visions of Brigit of Sweden; and the fracturing of Christianity by Martin Luther’s protest. We hear the voices of great theologians as well as of those branded heretics by the Church, a powerful reminder that the growth of Christianity is a story with many narratives of competing visions of reform and ideals, powerful critiques of corruption and venality, and exclusion of the vanquished. The troubled history of Christian engagement with Jews and Muslims is found in pogroms and expulsions, but also in the astonishing ways in which the culture of the West was transformed by Jewish and Islamic learning.\n \nWe shall explore the stunning beauty of the Book of Kells, exquisitely prepared by monks as the Vikings terrorized the coast of England. We will experience the blue light of the windows of Chartres, and ponder the opening questions of Thomas Aquinas’ great Summa. We will read from the Gutenberg Bible of the fifteenth century, which heralded the revolution brought by the printing press. We will travel from Calvin’s Geneva to Elizabeth’s England to Trent, where a Catholic Council met to inaugurate a modern, missionary Catholic church. We will walk through the great Escorial of Philip II of Spain, hear the poetry of John of the Cross, and follow the Jesuits to Brazil and China.\n \nChristianity in the West was forged in the fires of conflict and tumult, and it brought forth both creativity and violence. It echoed with calls for God’s world to be transformed, it inspired the most sublime art and architecture, yet it also revealed the power of the union of cross and sword to destroy. The course is a journey through the formation of the West as one strand of Christianity, as one chapter in a global story. It is a journey that has shaped our world. | H28: monk; history; cultural capital; Influencing; missionary; bible; faith; Art History; religion; desert | I28: Non Specialization | J28: Non Specialization | K28: Non Specialization | L28: Non Specialization | M28: [16.5, 33.2] | N28: Romanian; Spanish | O28: English | P28: arts-and-humanities | Q28: history | R28: Ai0UE_dJEeWttArM01H4SQ | S28: Non Specialization | T28: FALSE
A29: Age of Jefferson | B29: University of Virginia | C29: Beginner | D29: 9.9 | E29: 4.6 | F29: https://www.coursera.org/learn/ageofjefferson | G29: This course provides an overview of Thomas Jefferson's work and perspectives presented by the University of Virginia in partnership with Thomas Jefferson’s Monticello. Together, UVA and Monticello are recognized internationally as a UNESCO World Heritage Site. | H29: education; plantation; future generation; constitution; history; ageing; reputation; skepticism; man; religion | I29: Non Specialization | J29: Non Specialization | K29: Non Specialization | L29: Non Specialization | M29: [7.0, 11.3] | N29: Chinese; Spanish | O29: English | P29: arts-and-humanities | Q29: history | R29: J0igZhzvEeSGAiIACxMEjA | S29: Non Specialization | T29: FALSE
A30: The Fall and Rise of Jerusalem | B30: Tel Aviv University | C30: Beginner | D30: 18.3 | E30: 4.6 | F30: https://www.coursera.org/learn/jerusalem | G30: The destruction of the First Temple in Jerusalem and the Babylonian Exile were a great catastrophe in the history of the Jewish Nation. \nWhat really happened during that dark, fateful age, and how did new opportunities arise from the ashes? | H30: canned tea; history; Culture; materials; hope; Causality; conquesting; bible; israel; religion | I30: Non Specialization | J30: Non Specialization | K30: Non Specialization | L30: Non Specialization | M30: [10.3, 22.4] | N30: Arabic; Spanish; Hebrew | O30: English | P30: arts-and-humanities | Q30: history | R30: IjmG7ah6EeWhzw6RmNsYkQ | S30: Non Specialization | T30: FALSE
A31: Iniciación a los jeroglíficos egipcios | B31: Universitat Autònoma de Barcelona | C31: Intermediate | D31: 42.5 | E31: 4.9 | F31: https://www.coursera.org/learn/iniciacion-jeroglificos-egipcios | G31: ¿Te apasiona la historia y la cultura del antiguo Egipto? ¿Sientes fascinación por las lenguas y los sistemas de escritura de las civilizaciones de la Antigüedad? ¿Te atrae la idea de adentrarte en el secreto de los jeroglíficos egipcios y comprender las claves de su lectura e interpretación? ¡Si es así, este es tu curso!\nNuestro objetivo es el de iniciarte en la escritura jeroglífica, en sus signos y su funcionamiento, así como en la gramática de la lengua egipcia clásica (la lengua de Sinuhé), con el fin de que, al término de las nueve semanas de duración del curso, seas capaz de leer e interpretar con propiedad pasajes sencillos de textos egipcios literarios y funerarios. Esto te permitirá, además, cuando viajes a Egipto o visites museos egiptológicos de todo el mundo, comprender mejor los monumentos y objetos con inscripciones jeroglíficas y, por tanto, disfrutarlos más.\nTe garantizamos un planteamiento docente y unos materiales de alto nivel académico, pensados para introducirte en la materia de una manera didáctica y progresiva, pero a la vez con la profundidad y el rigor debidos.\n¿Qué te parece, empezamos ya? | H31: Writing; Culture; denominación de origen; unos (operating system); art; ordered pair | I31: Non Specialization | J31: Non Specialization | K31: Non Specialization | L31: Non Specialization | M31: [28.1, 49.8] | N31: None | O31: Spanish | P31: arts-and-humanities | Q31: history | R31: 6gT6ruEJEeizAAq4_LeDCg | S31: Non Specialization | T31: FALSE
A32: The Emergence of the Modern Middle East - Part I | B32: Tel Aviv University | C32: Beginner | D32: 9.7 | E32: 4.7 | F32: https://www.coursera.org/learn/modern-middle-east-1 | G32: This course will review the emergence of the modern Middle East from the fall of the Ottoman Empire, at the end of the First World War to the present. We will discuss the Ottoman legacy in the region and the Western imperial impact on the creation of the Arab state system. The course will review the rise and retreat of Arab nationalism, the problems of internal cohesion of the Arab states, issues of religion and state, and the evolution of Islamist politics. We will also focus on the evolution of the Arab-Israeli conflict and its impact on the region and will conclude with an in depth analysis of the “Arab Spring” by placing these contemporary revolutionary events in their historical context.\n\nPlease note that there is a second part to this course which is a direct extension of this part. We highly recommend to continue to the second part after you finish this one (https://www.coursera.org/learn/modern-middle-east-2/home/info). | H32: speech; dwelling; analysis; history; israel; faith; foreign policy; Experiment; middle east; religion | I32: Non Specialization | J32: Non Specialization | K32: Non Specialization | L32: Non Specialization | M32: [6.5, 11.9] | N32: German; Spanish; Romanian; Arabic; Hebrew | O32: English | P32: arts-and-humanities | Q32: history | R32: PZNTj2DEEeWVEg5QpF1H_w | S32: Non Specialization | T32: FALSE
A33: The Making of the US President: A Short History in Five Elections | B33: The University of Edinburgh | C33: Intermediate | D33: 9.6 | E33: 4.6 | F33: https://www.coursera.org/learn/making-us-president | G33: As Donald Trump takes office as the forty-fifth president of the United States, this course explores presidential elections in historical perspective, via five case studies. It tells the story of key campaigns in US history, and by doing so it investigates how politics changed over time—and how understanding the past sheds light on the current campaign. From the arrival of "dirty politics" to the impact of the "digital revolution," the course looks at the historical background to some of the key phenomena that shaped the controversy-laden campaign of 2016.\n\nThe five elections that we'll investigate are among the most significant in American political history. In 1800, Thomas Jefferson won the presidency in a contest that encouraged politicians to reform the electoral college, the system by which presidents are still chosen. The election of Abraham Lincoln in 1860 prompted the outbreak of the Civil War. It's an election that helps us to understand the development of political parties. In 1968, the Vietnam War was a dominant concern for Americans, and yet foreign policy played a secondary role in Richard Nixon's victory. Twelve years later, in 1980, Ronald Reagan won an election that initiated a new era of conservatism. Finally, we'll turn our attention to the election that took Trump's predecessor, Barack Obama, to the White House in 2008. Many saw the Obama's success not only as revealing the impact of the digital revolution on campaign politics, but also as signaling a turn to progressivism. \n\nImage credits:\n\nCourse logo - "Former President Truman holds a copy of the famous Chicago Daily Tribune paper declaring 'Dewey Defeats Truman'" Harry S. Truman Library & Museum (https://www.trumanlibrary.org/photographs/view.php?id=38592).\n\nCourse banner - "US Flag Backlit" by Joshua Nathanson, CC BY-SA 3.0 (https://commons.wikimedia.org/wiki/File:US_Flag_Backlit.jpg). | H33: failure; elections; there are known knowns; Leadership and Management; time management; thought; Human Learning; system u; foreign policy; bias | I33: Non Specialization | J33: Non Specialization | K33: Non Specialization | L33: Non Specialization | M33: [5.2, 12.5] | N33: Greek | O33: English | P33: arts-and-humanities | Q33: history | R33: 8WhRBnAyEeauNQq0iWkxiw | S33: Non Specialization | T33: FALSE
A34: Exploring Beethoven’s Piano Sonatas Part 2 | B34: Curtis Institute of Music | C34: Beginner | D34: 10.9 | E34: 5 | F34: https://www.coursera.org/learn/exploring-beethoven-piano-sonatas-2 | G34: Welcome to Part 2 of Exploring Beethoven's Piano Sonatas!\n\nI'm delighted to launch another set of new lectures of this course as Part 2. As before, this class is meant for people of all levels of experience with Beethoven's music (including no experience at all!). Remember that you are able to watch the lectures as many times as you like, at whatever pace is comfortable for you.\nAs I’ve done with the first set of Beethoven lectures, I look forward to meeting with students—online and in person, in various cities. The dates and locations will be posted in the Announcements and Events section, as part of the course content. So please remember to check back there for details. \n\nIn these four new lectures, we will explore the following sonatas: \n• Sonata Op. 2, No. 3\n• Sonata Op. 13 (“Pathetique”) \n• Sonata Op. 53 (“Waldstein”) \n• Sonata Op. 90\n\n\nThe Dolfinger-McMahon Foundation supports Curtis’s lifelong learning initiatives. | H34: resource; emotions; piano; brand-new; rubygems; Drama; opus (audio format); happiness; harmony; music | I34: Non Specialization | J34: Non Specialization | K34: Non Specialization | L34: Non Specialization | M34: [7.1, 11.1] | N34: None | O34: English | P34: arts-and-humanities | Q34: history | R34: Ttk7iI8lEeaNrQrkg4diMQ | S34: Non Specialization | T34: FALSE
A35: El Valle de los Reyes | B35: Universitat Autònoma de Barcelona | C35: Intermediate | D35: 43.6 | E35: 4.9 | F35: https://www.coursera.org/learn/valle-de-los-reyes | G35: Este curso va dirigido a todos los amantes de la historia y arqueología, en general, y de manera particular a todos los interesados en egiptología, independientemente de su nivel de conocimiento inicial. \nEl Valle de los Reyes constituye uno de los yacimientos arqueológicos más importantes de Egipto y su estudio, desde diferentes enfoques, resulta muy atractivo para cualquier aficionado o profesional de la egiptología. Con este curso nos proponemos conocer su historia y evolución a lo largo de las dinastías XVIII-XX del Reino Nuevo egipcio, desde su origen hasta su abandono y desmantelamiento. \nNos introduciremos en su geología y conservación; estudiaremos su arqueología, llena de descubrimientos emocionantes, de investigaciones que no cesan, y de arqueólogos que, como Howard Carter, asociaron su vida al Valle; conoceremos la organización de los trabajadores de Deir el-Medina que excavaron y decoraron estos hipogeos; estudiaremos parte del material funerario contenido en algunas de sus tumbas, con especial atención a los sarcófagos y ushebtis reales, así como peces procedentes de la tumba de Tutankhamos; conoceremos los principales textps religiosos e iconografía que decoran las tumbas de los reyes. En definitiva, profundizando en el estudio del Valle de los Reyes conseguiremos adentrarnos un poco más en el conocimiento de la cultura y el legado el Antiguo Egipto. | H35: listening; mythology; speech; Archeology; history; Geology; indirect self-reference; well; religion; astronomy | I35: Non Specialization | J35: Non Specialization | K35: Non Specialization | L35: Non Specialization | M35: [27.1, 49.8] | N35: None | O35: Spanish | P35: arts-and-humanities | Q35: history | R35: 9tLp3ATHEee0Zgrp64zbaA | S35: Non Specialization | T35: FALSE
A36: Intellectual Change in Early China: Warring States and Han | B36: The Chinese University of Hong Kong | C36: Intermediate | D36: 16.2 | E36: 4.6 | F36: https://www.coursera.org/learn/intellectual-change-early-china-the-warring-states-han | G36: This sequence of four courses will propose a multi-disciplinary approach to the study of Chinese cultural history conceived of as a succession of modes of rationality (philosophical, bureaucratic, and economic). The focus will be on the moments of paradigm shift from one mode of rationality to another. For each of these moments, cultural facts and artifacts—thought, literature, ritual—will be examined in relationship to changing social, political, and economic systems.\n\nThe first two courses will cover the periods of the Warring States (481-256 BCE) and the Period of Division (220-589 CE), with a brief excursion into the Han (206 BCE-220 CE). The Warring States laid the social and cultural foundations for the emergence of the imperial mode of rationality; the Period of Division saw the Buddhist “conquest” of China and the emergence of a rationality defined by the opposition of the Three Teachings to shamanism, that is, of a clear contrast between elite and popular culture.\n\nThe third and fourth courses will focus on the emergence of modern China in the Song-Yuan (960-1368) and of today’s China 1850 to the present. We will see how the modern attack on religion, redefined as "superstition", led not only to religious reform movements but also to a society in which science and the nation became the primary value systems promoted by the state.\n\nThe courses are listed below:\n\nA Critical Cultural History of China - Early China I: Intellectual Change in the Warring States and Han (481 BCE-220 CE)\nA Critical Cultural History of China - Early China II: Religious Transformation in the Period of Division (220-589 CE)\nA Critical Cultural History of China - Modern China I: Religion and Thought in the Song, Jin, and Yuan (960-1368) \nA Critical Cultural History of China - Modern China II: Structuring Values (1850-2015) | H36: language; intellectual; history; chinese language; crisis; shamanism; healing; Art History; energy; religion | I36: Non Specialization | J36: Non Specialization | K36: Non Specialization | L36: Non Specialization | M36: [9.5, 18.5] | N36: None | O36: English | P36: arts-and-humanities | Q36: history | R36: KJsMZ--IEeeCjgp4IdClkg | S36: Non Specialization | T36: FALSE
A37: Exploring Beethoven's Piano Sonatas Part 4 | B37: Curtis Institute of Music | C37: Intermediate | D37: 10.2 | E37: 5 | F37: https://www.coursera.org/learn/exploring-beethoven-piano-sonatas-4 | G37: Please join us for Part 4 of Exploring Beethoven's Piano Sonatas course, taught by Curtis faculty member and extraordinary concert artist, Jonathan Biss. This course is new and contains separate sets of lectures and sonatas that we not previously discussed. Specifically, in Part 4, we will cover Beethoven's Piano Sonatas Op. 2, No. 2, Op. 10, No. 3, Op. 28 and Op. 110. As with the other three Beethoven courses, it is not necessary to have taken the previous Exploring Beethoven's Piano Sonatas courses. We think you will be perfectly comfortable to start learning with Part 4, if you wish and go from here. There is always the option to go back to earlier parts at any time. Between these courses, there exists a large amount of additional resources and learning that might be helpful as you embark on Part 4. We certainly encourage you to take Parts 1, 2 and 3, if you have not yet. In the meantime, enjoy the class and Part 4 of Exploring Beethoven’s Piano Sonatas. | H37: analysis; label; thought; flipping; chord; piano; persistence; running; Experiment; Receiving | I37: Non Specialization | J37: Non Specialization | K37: Non Specialization | L37: Non Specialization | M37: [6.9, 11.3] | N37: None | O37: English | P37: arts-and-humanities | Q37: history | R37: IQTbbPl7EeiJNw6m9GbV6g | S37: Non Specialization | T37: FALSE
A38: Chinese Culture and Contemporary China | B38: Nanjing University | C38: Beginner | D38: 5.3 | E38: 4.5 | F38: https://www.coursera.org/learn/china-culture-contemporary | G38: This course of Chinese Culture and Contemporary China will explore the foundations of Chinese civilization and the dimensions of Chinese culture. It will pay particular attention to the relationship between Chinese culture and the present-day life of the Chinese people and to the different elements of the culture which are under the present social structures, belief systems, literature, arts, customs, etc. The course aims at providing students with a deeper knowledge of Chinese culture, thus enabling them to better understand China. \nThe course will cover the following main areas of topics: (1) the foundations of Chinese civilization: its geography, language, and history; (2) the core concepts in Chinese philosophies and religions: Confucianism, Taoism, and Buddhism; (3), literature and arts, including Chinese calligraphy, painting, Tang poetry, and classical fiction; (4) society and life, including education, the role of women, Chinese food, and traditional holidays; (5) travel and landscapes, including well-known Chinese cities, mountains, ethnic regions and customs; (6) Chinese media, culture and sports, including TV and movies, fashion, Chinese gongfu and taiji. \nIn addition, students will be expected to participate in a buddy program beyond curriculum if they have a chance to come to Nanjing. Ideally they will be paired up: an international student with a Nanjing University student to allow students to learn firsthand about Chinese customs, culture, and language. Students will be required to complete various projects and homework assignments as well, which will encourage them to use Nanjing University and the city of Nanjing as a laboratory to apply what they learn during their stay at Nanjing University. | H38: education; deep history; history; chinese language; tai chi; philosophy; art; Art History; religion; music | I38: Non Specialization | J38: Non Specialization | K38: Non Specialization | L38: Non Specialization | M38: [2.7, 6.3] | N38: Spanish | O38: English | P38: arts-and-humanities | Q38: history | R38: W1GYfZBWEeaPiw57oPj_hQ | S38: Non Specialization | T38: FALSE
A39: Alle origini della civiltà mediterranea: archeologia della città dal Levante all’Occidente - III-I millennio a.C. | B39: Sapienza University of Rome | C39: Beginner | D39: 13 | E39: 4.9 | F39: https://www.coursera.org/learn/nigro-levante-occidente | G39: Quali sono le radici più profonde di quel mix di culture che chiamiamo ‘civiltà mediterranea’? Quali commistioni e quali scambi hanno prodotto il suo frutto più completo, ossia la città, come luogo delle comunità che plasmano il loro territorio e i loro spazi? Quali elementi formarono il sostrato condiviso di usanze, tradizioni, idee, scoperte ed innovazioni che hanno messo a confronto e mischiato popoli diversi per millenni. Cosa ha fatto, dalla ceramica alla metallurgia, dalla gastronomia all’architettura, dall’arte alla religione di un mare una culla di civiltà? L’archeologia può servire a sviluppare queste domande e cercare delle risposte non scontate, toccando con mano quello che gli antichi popoli del Mediterraneo ci hanno lasciato. Punto di osservazione privilegiato del corso è l’antica città fenicia di Mozia, posta al centro del “mare di mezzo”. Attraverso l’esperienza diretta dello scavo, con immagini prese dal vivo, il corso vuole far toccare a chi vorrà parteciparvi le tessere del grande mosaico della civiltà mediterranea. Il diario dello scavo - il libro dell’archeologo - e la piccozzina usata per scavare saranno i due strumenti che ci condurranno attraverso il mare a scoprire cosa furono realmente queste antiche città, e come il loro contributo è ancora parte della nostra memoria condivisa. | H39: Culture; Archeology; Human Learning; interpretation; evolution; wait list control group; decision aids; architecture; methodology; decision model | I39: Non Specialization | J39: Non Specialization | K39: Non Specialization | L39: Non Specialization | M39: [7.7, 14.7] | N39: None | O39: Italian | P39: arts-and-humanities | Q39: history | R39: KIU_MO-XEeaChwpLfdCNZA | S39: Non Specialization | T39: FALSE
A40: Roman Art and Archaeology | B40: University of Arizona | C40: Beginner | D40: 27.7 | E40: 4.6 | F40: https://www.coursera.org/learn/roman-art-archaeology | G40: The objective of this course is to provide an overview of the culture of ancient Rome beginning about 1000 BCE and ending with the so-called "Fall of Rome". We will look at some of the key people who played a role in Rome, from the time of the kings through the Roman Republic and the Roman Empire. We will also focus on the city of Rome itself, as well as Rome's expansion through Italy, the Mediterranean, and beyond. | H40: my own country; history; Archeology; spendthrift; conquesting; art; charisma; Art History; dignity; 3d lookup table | I40: Non Specialization | J40: Non Specialization | K40: Non Specialization | L40: Non Specialization | M40: [19.1, 31.2] | N40: Spanish | O40: English | P40: arts-and-humanities | Q40: history | R40: o_VGekEUEeWKOBLv1z6n9w | S40: Non Specialization | T40: FALSE
A41: The Changing Landscape of Ancient Rome. Archaeology and History of the Palatine Hill | B41: Sapienza University of Rome | C41: Beginner | D41: 12 | E41: 3.9 | F41: https://www.coursera.org/learn/palatine-hill-archaeology-history | G41: Studying ancient - as well as medieval or modern - cities basically means telling local urban stories based on the reconstruction of changing landscapes through the centuries. Given the fragmentary nature of archaeological evidence, it is necessary to create new images that would give back the physical aspect of the urban landscape and that would bring it to life again. We are not just content with analyzing the many elements still visible of the ancient city. The connections between objects and architectures, visible and non visible buildings, which have been broken through time have to be rejoined, to acknowledge the elements that compose the urban landscape. \n\nLandscape and its content are a very relevant and still vital part of any national cultural heritage. The course will introduce students to the way we have been reflecting on over the last twenty years and still are engaged with the study of the past of our cities, beginning from the most complex case in the ancient Mediterranean World: the core of Italy and of Roman Empire. On the other hand, knowledge means also preservation and defense of material remains and cultural memory.\n\n“The Changing Landscape of Ancient Rome. Archeology and History of the Palatine Hill” presents to a large public the topographical lay-out of the most relevant part of the city (according the Greek and Roman Historians Rome was founded on the Palatine). Research developed on the Palatine since the end of last century by the team of Sapienza Classical Archaeologists opened a new phase in the urban archaeological investigation and in the scientific debate about the relation between archaeological features and literary tradition as well as the “correct use“ of both kind of evidence, key issues of wide archaeological and historical significance. | H41: Landscape Architecture; know nothing; Landscape Design; history; Archeology; Historic Preservation; Art History; Map; middle east; .bit | I41: Non Specialization | J41: Non Specialization | K41: Non Specialization | L41: Non Specialization | M41: [6.6, 12.1] | N41: None | O41: English | P41: arts-and-humanities | Q41: history | R41: nT9PuhlmEeePEAqWl-RQQA | S41: Non Specialization | T41: FALSE
A42: Thomas Berry的世界观：地球社区的繁荣 (The Worldview of Thomas Berry: The Flourishing of the Earth Community) | B42: Yale University | C42: Not Calibrated | D42: 12.8 | E42: Not Calibrated | F42: https://www.coursera.org/learn/diqiu-fanrong | G42: Thomas Berry(1914-2009)是一位研究世界宗教的历史学家，并且很早就对于唤醒对于环境危机的敏感性表达意见。他最知名的研究莫过于他的关于宇宙的“新的故事”，“新的故事”包括了进化科学和传统文化用来创造繁荣的未来。\n\n这门课研究了Berry的一生并且联系到了宇宙之旅的项目之中。我们抽取了他的著作，文章还有以前的讲课录像，都是为了研究Berry的理念，包括了“新的故事”，“伟大的使命”，还有新兴的生态时代。这门课深入地研究了Berry对于宇宙的见解，\n定位人类在动态无垠的宇宙中的位置和参与到我们时代的创造工作中。我们会着重研究Berry对于生态，经济，教育，灵魂，艺术时代更新和重塑。\n\n课程的原理：\nThomas Berry是原生的创造性综合性思想家，特别关注于我们全球环境危机的本质。他对于生态危机的回应体现了他的智慧，这回应是在进化论的背景下，应该把人类和科学带到一起。另外，他解释道，我们对于世界宗教的参与的需求也是可以用来解决环境问题。\n他从研究宇宙学和宗教传统，并结合两者开始实现。感知到故事作为功能宇宙学的重要性，他开始探索这些故事的广泛影响并且通过传统进行传播，用例子来说明的话，就是仪式，道德和生存之道。 | H42: dentist; oral administration; ophthalmology; language disorders; podiatry; chiropractic; dermatology; dental floss; veterinary pathology; medical robotics | I42: Non Specialization | J42: Non Specialization | K42: Non Specialization | L42: Non Specialization | M42: [7.7, 16.1] | N42: English | O42: Chinese (China) | P42: arts-and-humanities | Q42: history | R42: naspMggtEeeZLgqyPWM7qg | S42: Non Specialization | T42: FALSE
A43: The Holocaust: The Destruction of European Jewry | B43: University of California, Santa Cruz | C43: Not Calibrated | D43: 33.3 | E43: 4.6 | F43: https://www.coursera.org/learn/the-holocaust | G43: The Holocaust: The Destruction of European Jewry is an adaptation of an on-campus course that has been co-taught by Murray Baumgarten, Distinguished Professor of English and Comparative Literature (Literature Department), and Peter Kenez, Professor Emeritus (History Department), for over 20 years at UC Santa Cruz. \n\nIn this course, you will explore the Holocaust from the overlapping perspectives of literature and history—through memoirs, historical documents, poetry, documentary footage, filmic representations, and novels. You will expand your knowledge of the literature of the Holocaust, Eastern and Western European Jewish communities, the origins and development of antisemitism, the establishment of labor and extermination camps, resistance movements, and the Holocaust as a problem for world history. \n\nThere is more than one way to take this course: You can complete all of the activities (and earn a Verified Certificate) or only the activities that are most interesting to you. Whatever you choose to do, we encourage you to find a havruta (a study partner) in your community or in the Coursera community so that you can experience the course in a more interactive and meaningful way. | H43: film studies; antisemitism; war; history; labor; experience; Art History; holocaust; Poetry Writing; film | I43: Non Specialization | J43: Non Specialization | K43: Non Specialization | L43: Non Specialization | M43: [22.0, 40.6] | N43: Spanish | O43: English | P43: arts-and-humanities | Q43: history | R43: A9OckSDZEeWXzxJxfIL00w | S43: Non Specialization | T43: FALSE
A44: Paesaggi di Roma Antica. Archeologia e storia del Palatino. | B44: Sapienza University of Rome | C44: Advanced | D44: 14 | E44: 4.8 | F44: https://www.coursera.org/learn/paesaggi-roma-antica | G44: The course presents the topographical lay-out of the most relevant part of the city. Research developed on the Palatine since the end of last century by the team of Sapienza Classical Archaeologists opened a new phase in the urban archaeological investigation and in the scientific debate about the relation between archaeological features and literary tradition as well as the “correct use“ of both kind of evidence, key issues of wide archaeological and historical significance.\n\nStudents will be introduced to methods and procedures developed and successfully applied by Sapienza School of Classical Archaeology in collection, analyses, integration and interpretation of complex and multi-stratified contexts, including actual methods and innovative instruments based on a deep archaeological and historical knowledge but also on ICT technologies.\n\nThe course will introduce students to the way we have been reflecting on over the last twenty years and still are engaged with the study of the past of our cities, beginning from the most complex case in the ancient Mediterranean World: the core of Italy and of Roman Empire. On the other hand, knowledge means also preservation and defense of material remains and cultural memory. | H44: history; Videography; Video Editing; Color Editing; editing; Copy Editing; art; Photo Processing; Art History; Photo Shoots | I44: Non Specialization | J44: Non Specialization | K44: Non Specialization | L44: Non Specialization | M44: [7.3, 14.3] | N44: None | O44: Italian | P44: arts-and-humanities | Q44: history | R44: XrCGMTroEeeAnw4ZpXnkxA | S44: Non Specialization | T44: FALSE
A45: Санкт-Петербург – столица империи Петра I | B45: National Research University Higher School of Economics | C45: Advanced | D45: 31.8 | E45: 4.8 | F45: https://www.coursera.org/learn/sankt-peterburg-petr | G45: Данный учебный курс посвящен истории Санкт-Петербурга с момента его основания в 1703 году до отъезда большевистского правительства в Москву в 1918 году. В задачи курса входит освещение политической, культурной, экономической жизни города в контексте развития Российской империи в течение двух столетий. Пройдя курс, слушатель узнает об истории создания Петербурга, его застройке, расцвете и трудностях, а также познакомится с основными событиями российской истории. В курсе показаны сложные процессы и трансформации внутренней политики российских императоров и то, как это отражалось на жизни имперской столицы и ее жителей. Особое внимание в лекциях уделено тому, как на протяжении веков менялся внешний облик города, рассказывается об архитекторах и скульпторах, создавших образы Петербурга. Кроме того, отдельные сюжеты курса посвящены развитию культуры и искусства и повседневной жизни петербуржцев. Город предстает перед слушателями как живой организм, сыгравший ключевую роль в истории России и Европы. Курс насыщен историческими образами, видами Петербурга и дает представление о мнении современников и исследователей о важнейших событиях в истории столицы Российской империи.\n\nПоявились технические трудности? Обращайтесь на адрес: coursera@hse.ru | H45: decision rule; probabilistic independence; extrapolation; estimation theory; small area estimation; kendall rank correlation coefficient; empirical evidence; probability space; random digit dialing; score (statistics) | I45: Non Specialization | J45: Non Specialization | K45: Non Specialization | L45: Non Specialization | M45: [21.0, 36.4] | N45: None | O45: Russian | P45: arts-and-humanities | Q45: history | R45: O088pyZwEeaUcgoC9e8DwQ | S45: Non Specialization | T45: FALSE
A46: L’antisémitisme : De ses origines à nos jours | B46: Yad Vashem | C46: Beginner | D46: 15.4 | E46: Not Calibrated | F46: https://www.coursera.org/learn/antisemitisme | G46: Dans ce cours, 50 éminents universitaires du monde entier examineront des questions et des problèmes liés à l’antisémitisme, notamment : qu’est-ce que l’antisémitisme ? Comment a-t-il évolué au cours de l’histoire ? Pourquoi est-il présent dans tant de cultures diverses, et même parmi des idéologies opposées ? Qu’est-il arrivé à l’antisémitisme après la Shoah? Comment l’antisémitisme s’exprime-t-il aujourd’hui et quels sont les principaux domaines dans lesquels il se manifeste ? | H46: natural experiment; news; nutrient cycle; water scarcity; low-carbon economy; resource depletion; reducing emissions from deforestation and forest degradation; renewable resources; marine energy; current solar income | I46: Non Specialization | J46: Non Specialization | K46: Non Specialization | L46: Non Specialization | M46: [9.7, 18.4] | N46: Spanish; English | O46: French | P46: arts-and-humanities | Q46: history | R46: FY_7eye2EeqBhw7fRSQ3Dw | S46: Non Specialization | T46: FALSE
A47: История и теория медиа (History and theory of media) | B47: National Research University Higher School of Economics | C47: Advanced | D47: 23.8 | E47: 4.5 | F47: https://www.coursera.org/learn/teoriya-smi | G47: Еще в конце 19 века исследователи обратили внимание на значимость роли медиа в социальных, политических, экономических, культурных процессах, а в 20 веке масс-медиа стали целой индустрией, производящей и воспроизводящей прообразы и репрезентации этих процессов, идеологии и картины мира. 21 век же ставит новые вопросы о том, что такое медиа и как они участвуют в формировании личности, конструировании социального пространства, политических режимов и в развитии экономики. \n\nОсновная цель курса – сформировать базовые представления о развитии медиа и нарисовать карту обширного поля медиатеорий. В связи с этим он состоит из двух частей – первая посвящена истории развития медиасистем, а вторая рассматривает ключевые теории медиа. \n\nПервая часть курса знакомит с основными технологическими вехами в развитии медиа и в то же время позволяет увидеть историю медиа как историю развития социального института. Основное внимание уделяется развитию институтов медиа преимущественно с момента появления национальных государств в Западной Европе до настоящего момента. Курс рассматривает роль, которую играют медиа в формировании национальных идентичностей, капиталистической экономики, представлений о гражданских свободах и т.д. Отдельный модуль посвящен истории цензуры, поскольку история медиа тесно связана с этим явлением. \n\nВторая часть курса посвящена рассмотрению ключевых теоретических подходов к изучению медиа и коммуникаций, возникавших начиная с 1940-х годов и до сегодняшнего дня. Так, слушатели познакомятся с эмпирико-функционалистской и лингвистической группами медиа теорий, с идеями критической теории, парадигмой медиадетерминизма, теориями сетевого общества, с коммуникационным аспектом социологии технических инноваций, с микросоциальными теориями коммуникации, с изучением медиа в рамках направления cultural studies и политэкономии.\n\nПоявились технические трудности? Обращайтесь на адрес: coursera@hse.ru | H47: media studies; media history | I47: Non Specialization | J47: Non Specialization | K47: Non Specialization | L47: Non Specialization | M47: [12.0, 32.4] | N47: None | O47: Russian | P47: arts-and-humanities | Q47: history | R47: ix4wfRhfEea3DxJjpF7HPw | S47: Non Specialization | T47: FALSE
A48: Curanderismo: Traditional Healing Using Plants | B48: University of New Mexico | C48: Conversant | D48: 7.4 | E48: 4.6 | F48: https://www.coursera.org/learn/curanderismo-plants | G48: COURSE DESCRIPTION\nAs one of four courses on Curanderismo, the art of Hispanic/Latino traditional medicine, this course focuses specifically on the use of plants in traditional healing. As an educational and cultural platform, this course will share the history, influences, and contributions of traditional medicine. Trained traditional healers will share their knowledge of the healing properties of plants commonly found in the Southwestern United States and Mexico through practical applications that can still be used today. \n\nLearners will not become certified traditional healers at the completion of this course but will be able apply basic principles or traditional medicine to approach health and illnesses. They will become familiar specifically with the use of plants for the digestive and nervous systems; how to prepare tinctures and microdosis for healing; how to use juice therapy and geotherapy (clay combined with plants) for treatments; and the use of herbal oils and herbal smoke for healing. \n\nFuture Curanderismo courses include:\nTraditional Healing of the Body: Intestinal blockage empacho, firecupping ventosas, and hydrotherapy (healing with water)\nTraditional Healing of the Mind, Energy and Spirit: Sweatlodge Temazcal, Energetic/Spiritual cleansings Limpias, and Laugh therapy risaterapia. \nGlobal and Cultural Influences of Traditional Healing: African tradition, Afro Latino from Cuba and Puerto Rico, Native American spiritual cleansings and Mayan acupuncture.\n\nREQUIRED TEXTS\nCuranderismo: The Art of Traditional Medicine without Borders by Eliseo Torres\n\nCurandero: Traditional Healers of Mexico and the Southwest by Eliseo Torres with Imanol Miranda\n\nWhere to buy:\nhttps://he.kendallhunt.com/product/curanderismo-art-traditional-medicine-without-borders\n\nhttps://he.kendallhunt.com/product/curandero-traditional-healers-mexico-and-southwest\n\nOPTIONAL TEXTS\nCurandero: A life in Mexican Folk Healing by Eliseo Torres & Tim Sawyer\n\nHealing with Herbs & Rituals: A Mexican Tradition, Eliseo Torres, edited by Tim Sawyer\n\nWhere to buy:\nhttps://www.barnesandnoble.com/w/curandero-torres-eliseo-cheo/1120135382?ean=9780826336415&st=PLA&sid=BNB_1341481610&sourceId=PLAGoNA&dpid=tdtve346c&2sid=Google_c&gclid=EAIaIQobChMI3_6LmYev3gIViuNkCh3IPgUyEAQYASABEgLYXfD_BwE\n\nhttps://www.barnesandnoble.com/w/healing-with-herbs-and-rituals-torres-eliseo-cheo/1120135381?ean=9780826339621&st=PLA&sid=BNB_825204424&sourceId=PLAGoNA&dpid=tdtve346c&2sid=Google_c&gclid=EAIaIQobChMIrrvswYev3gIVBsRkCh3BXQCHEAQYASABEgLnl_D_BwE | H48: disposition; history; plant; functional medicine; herbal; hypnotherapy; art; Art History; art therapy; healing | I48: Non Specialization | J48: Non Specialization | K48: Non Specialization | L48: Non Specialization | M48: [4.9, 8.2] | N48: Spanish | O48: English | P48: arts-and-humanities | Q48: history | R48: y-hFTVhoEeiRYBKSsYzhZg | S48: Non Specialization | T48: FALSE
A49: The Holocaust - An Introduction (II): The Final Solution | B49: Tel Aviv University | C49: Not Calibrated | D49: 6.3 | E49: 4.8 | F49: https://www.coursera.org/learn/holocaust-introduction-2 | G49: The Holocaust was an inconceivable historical event, which forever robbed Western culture of its innocence. As civilized human beings, we fail to understand how events of such horror could have taken place, and how an idea so inhumanly warped could have spread like wildfire through an entire continent, instigating the systematic annihilation of millions of Jews.\n\nThis free online course was produced jointly by Tel Aviv University and Yad Vashem – the World Holocaust Remembrance Center. This course is the second of the two courses and covers three themes in its three weeks:\n\nWeek 1: The Final Solution\nWe’ll look at the cultural and mental processes that paved the way to the comprehensive and systematic mass murder of Jews in Europe – that is, the Final Solution. As part of this hard lesson we will discuss the various characteristics of the murder sites and death camps, and reveal selected aspects of the horror that occurred in them. \n\nWeek 2: Jewish and Non-Jewish Responses to the Holocaust\nWe will try to explore questions regarding knowledge about the application of the Final Solution, as well as a variety of responses and annihilation of victims, local populations and perpetrators.\n\nWeek 3: The End of the War\nWe will dedicate this lesson to the events that occurred in the last years of the Holocaust, as well as questions of memory, commemoration and future research. \n\nWe strongly recommend that you register for "The Holocaust - An Introduction (I): Nazi Germany: Ideology, The Jews and the World" as well (https://www.coursera.org/learn/holocaust-introduction-1/home/welcome). Taking both parts of the course would enable you to obtain a fuller and more comprehensive knowledge about The Holocaust.\n\nThis online course is offered in an innovative, multi-level format, comprising: \n\nComprehensive lectures by leading researchers from Tel Aviv University and Yad Vashem.\nA wealth of voices and viewpoints presented by guest lecturers\nNumerous documents, photos, testimonies and works of art from the time of the Holocaust.\nNovel learning experience: Crowdsourcing – involving the learners themselves in the act of collecting and shaping information, via unique, exciting online assignments. | H49: observation; analysis; history; interpretation; reading (process); bible; Art History; holocaust; sources; gratitude | I49: Non Specialization | J49: Non Specialization | K49: Non Specialization | L49: Non Specialization | M49: [4.0, 7.9] | N49: Hebrew; Spanish | O49: English | P49: arts-and-humanities | Q49: history | R49: l37U-pjxEeWqkw5zNB248Q | S49: Non Specialization | T49: FALSE
A50: The Modern and the Postmodern (Part 2) | B50: Wesleyan University | C50: Not Calibrated | D50: 19.8 | E50: 4.7 | F50: https://www.coursera.org/learn/modern-postmodern-2 | G50: This course examines how the idea of "the modern" develops at the end of the 18th century in European philosophy and literature, and how being modern (or progressive, or hip) became one of the crucial criteria for understanding and evaluating cultural change. Are we still in modernity, or have we moved beyond the modern to the postmodern? | H50: language games; history; forgiveness; philosophy; art; Art History; instinct; civilization and its discontents; pragmatics; playfulness | I50: Non Specialization | J50: Non Specialization | K50: Non Specialization | L50: Non Specialization | M50: [14.0, 24.7] | N50: Spanish | O50: English | P50: arts-and-humanities | Q50: history | R50: s5sEkwAHEeW9ISIACxWDhA | S50: Non Specialization | T50: FALSE
A51: The Modern World, Part Two: Global History since 1910 | B51: University of Virginia | C51: Beginner | D51: 24.2 | E51: 4.8 | F51: https://www.coursera.org/learn/modern-world-2 | G51: This is a survey of modern history from a global perspective. Part Two begins early in the twentieth century, as older ways of doing things and habits of thought give way. What follows is an era of cataclysmic struggles over what ideas and institutions will take their place. The course concludes in the present day, as communities everywhere are transitioning into a new era of world history. Again we work hard to grasp what is happening and ask: Why? Again we are drawn to pivotal choices made at key moments by individuals and communities. | H51: history; Causality; curiosity; economy; evaluation; Economics; Art History; middle east; religion; international relations | I51: Non Specialization | J51: Non Specialization | K51: Non Specialization | L51: Non Specialization | M51: [12.8, 30.4] | N51: Spanish; Romanian | O51: English | P51: arts-and-humanities | Q51: history | R51: s4CUmzCqEeWPngoW78wA_Q | S51: Non Specialization | T51: FALSE
A52: Plagues, Witches, and War: The Worlds of Historical Fiction | B52: University of Virginia | C52: Intermediate | D52: 8.3 | E52: 4.5 | F52: https://www.coursera.org/learn/historical-fiction | G52: A unique and exciting introduction to the genre and craft of historical fiction, for curious students, aspiring authors--anyone with a passion for the past. Read classics of the genre, encounter bestselling writers of historical fiction, and discover your own historical archive while interacting with a global community of interested readers. | H52: film studies; mythology; history; Fiction Writing; photography; Art History; art; greek mythology; Poetry Writing; dialogue | I52: Non Specialization | J52: Non Specialization | K52: Non Specialization | L52: Non Specialization | M52: [5.3, 10.3] | N52: None | O52: English | P52: arts-and-humanities | Q52: history | R52: SxjkGailEeSy_SIAC49HnA | S52: Non Specialization | T52: FALSE
A53: Cultural and creative industries | B53: National Research University Higher School of Economics | C53: Intermediate | D53: 16.4 | E53: 3 | F53: https://www.coursera.org/learn/cultural-creative-industries | G53: Main objective of this course is to trace the development of the Cultural and Creative Industries as an idea and as concept and to identify the key points of changes within it in relations with contemporary digital connected world. Another important task of this course is to provide the deep understanding of the difference between cultural and symbolic meaning products (such as films, recorded music, book and periodicals, online media content etc) and other kind of goods. \n\nThis course will help you to: \n - Identify main peculiarities of cultural and symbolic goods in their difference with other branches of economy in terms of production chain, risks, relationship between different stages of production. \n - Be able to analyze cultural products and symbolic goods from the organizational, economic, business model point of view.\n - Be able to invent new business models and analyze cultural products in terms of their productions risk. \n - Be able to analyze cultural policies and creative industries/clusters policies.\n\nMain prerequisite to this course is to be able to produce analytical texts in humanities. Normally the course addresses all students of master level interested in peculiarities of media and cultural economy and management. This course is strongly not recommended for those who:\n - Analyse any market or industry only in microeconomic terms (supply and demand, level of competitions etc). This course is not about market but about peculiarities of symbolic goods;\n - Try to interpret culture only in terms of marketing and management (i.e. culture is considered like a simple good to be sold to the consumer). This course considers it more broadly like a human agency to produce meanings of everyday life. That’s why cultural goods are different and can not be interpreted exclusively in terms of consuming and need more or less state support;\n - Try to interpret culture like pure “art” and consequently are absolutely not preoccupied by organizational aspect of its working. \n\nThis course uses a large number of concepts coming from different fields of science: political economy of communications, cultural studies, sociology etc. Some aspects of the course are commented by known scholars in this field such as David Hesmondhalgh (University of Leeds), Phillipe Bouquillion (University Paris 13 Nord), Bernard Miege (Grenoble Alpes University).\n\nDo you have technical problems? Write to us: coursera@hse.ru | H53: hot flash; media industry; film studies; asymptomatic; history; sociology; lead poisoning; amantadine; music; financial markets | I53: Non Specialization | J53: Non Specialization | K53: Non Specialization | L53: Non Specialization | M53: [8.8, 19.9] | N53: None | O53: English | P53: arts-and-humanities | Q53: history | R53: hLD-_dTpEeeIrBKYo8RSYA | S53: Non Specialization | T53: FALSE
A54: История международных отношений | B54: National Research University Higher School of Economics | C54: Beginner | D54: 8.2 | E54: 4.5 | F54: https://www.coursera.org/learn/int-relations-history | G54: Здравствуйте!\nМы хотим предложить вам небольшой курс, назвать который можно было и так, как он озаглавлен на нашем сайте «История международных отношений». А можно было бы по-другому – «Введение в историю современных международных отношений». Дело в том, что в пределах отведенного нам времени невозможно проследить и уж тем более изучить, понять процесс становления того, что мы называем современные международные отношения. Но вполне можно попытаться обнаружить наиболее важные, «долгоиграющие» события, мысли, их авторов, сформировавших сегодняшний мир – сложный и противоречивый. \nМы постараемся обойтись без упоминания и критики различных «историзмов», оставив это занятие исследователям теории международных отношений. Нас будет главным образом интересовать фактология, распределение по хронологической шкале хорошо известных и неоправданно забытых событий мировой истории. \nМир с конца ХIХ века, а это – начало нашего курса, стремительно изменялся. Достаточно вспомнить, что итоги Первой мировой войны подводили 27 государств, преимущественно – монархии. Подписи под учредительными документами ООН по итогам Второй мировой войны поставили 51 страна, а сегодня международное сообщество насчитывает более 200 стран, из них только 19 монархий.\n Мы постараемся понять – какую роль в развитии системы международных отношений играл научно-технический прогресс, почему для большинства участников международных отношений во второй половине ХХ столетия Холодная война имела первостепенное значение, какое воздействие и почему оказала на развитие международных связей деколонизация. \nМеждународная арена, которую вполне оправданно сравнивают с большой шахматной доской, имела в разные времена разные правила игры и очень сложный состав участников. Вряд ли мы успеем и сумеем изучить все правила, но понять мотивы игроков, их цели постараемся. Вслед за Марком Твеном мы вполне можем заявить: «Прежде всего нужны факты, а уж потом их можно перевирать.» | H54: Not Calibrated | I54: Non Specialization | J54: Non Specialization | K54: Non Specialization | L54: Non Specialization | M54: [2.9, 12.0] | N54: None | O54: Russian | P54: arts-and-humanities | Q54: history | R54: Q19D58_OEemADw5AXcKNwg | S54: Non Specialization | T54: FALSE
A55: Magna Carta and its Legacies: Freedom and protest | B55: University of London | C55: Intermediate | D55: 13.7 | E55: 4.4 | F55: https://www.coursera.org/learn/magna-carta | G55: This course examines the roles that Magna Carta has played historically as well as the importance of Magna Carta today. It aims to equip students with a critical understanding of Magna Carta and its significance around the globe. Students will find out what Magna Carta is, how it came about, and why many believe that it remains one of the most significant documents in history. We will investigate why Magna Carta was perceived as 'radical' in its day, why it continues to be the source of numerous debates, and why its anniversaries are celebrated widely up until the present day. Magna Carta's most recent anniversary took place in 2015, when the 800th anniversary of Magna Carta's sealing on the meadows of Runnymede in Surrey was celebrated. | H55: land law; history; online databases; common law; constitution; go (programming language); editorial cartoon; utility; peering; historiography | I55: Non Specialization | J55: Non Specialization | K55: Non Specialization | L55: Non Specialization | M55: [7.6, 17.3] | N55: None | O55: English | P55: arts-and-humanities | Q55: history | R55: 73Lxu-fmEeWQlQrpKdAFaw | S55: Non Specialization | T55: FALSE
A56: The Modern World, Part One: Global History from 1760 to 1910 | B56: University of Virginia | C56: Beginner | D56: 22.2 | E56: 4.8 | F56: https://www.coursera.org/learn/modern-world | G56: This is a survey of modern history from a global perspective. Part One begins with the political and economic revolutions of the late 1700s and tracks the transformation of the world during the 1800s. Part One concludes as these bewildering changes seem to be running beyond the capacity of older institutions to handle them. Throughout the course we try to grasp what is happening and ask: Why? And the answers often turn on very human choices. | H56: analysis; history; Causality; english language; arts and humanities; Art History; general knowledge; middle east; Poetry Writing; film | I56: Non Specialization | J56: Non Specialization | K56: Non Specialization | L56: Non Specialization | M56: [14.3, 25.6] | N56: Romanian; Spanish | O56: English | P56: arts-and-humanities | Q56: history | R56: 3UY0FCmGEeWFggqB2SRvtQ | S56: Non Specialization | T56: FALSE
A57: Calvin - Histoire et réception d'une Réforme | B57: University of Geneva | C57: Beginner | D57: 20.5 | E57: 4.9 | F57: https://www.coursera.org/learn/calvin | G57: Course in French with English subtitles --\n\nCe cours introduit à la vie et à la pensée du réformateur Jean Calvin (1509-1564) ainsi qu’à son influence sur le monde moderne et contemporain. La démarche proposée se veut critique, il ne s’agit ni de canoniser ni de condamner Calvin, mais de comprendre sa pensée avec toute la distance requise et d’en analyser les enjeux.\n\nAu cours de la première semaine, nous explorerons les principales étapes de la vie de Calvin. Les semaines 2 et 3 seront consacrées à l’étude de sa pensée théologique et de son éthique. Enfin, lors des semaines 4 et 5, nous nous interrogerons sur la diffusion du calvinisme dans le monde et la pertinence actuelle de la pensée de Calvin.\n\n--\nThis course is an introduction to the life and thought of the reformer John Calvin (1509-1564) and to his influence on the modern and contemporary world. The approach we develop is critical: we intend neither to canonize nor to condemn Calvin or his thought. Our goal, rather, is to avoid any rash evaluation in order to understand his thought and analyze the issues at stake in it.\n\nDuring five weeks, we will explore together the life and work of the Reformer. During the first week, we will study the main aspects of Calvin’s life. Weeks 2 and 3 will focus on his theology and his ethics. During the last two weeks (weeks 4 and 5), we will ponder how Calvinism became a worldwide phenomenon and ask ourselves what kind of relevance Calvin’s thought may still have today. | H57: quadratic programming; Writing; history; Culture; Human Learning; a priori; unos (operating system); Influencing; philosophy; religion | I57: Non Specialization | J57: Non Specialization | K57: Non Specialization | L57: Non Specialization | M57: [14.6, 22.9] | N57: English | O57: French | P57: arts-and-humanities | Q57: history | R57: SSmmAtHaEeWxGA7pQdBNkw | S57: Non Specialization | T57: FALSE
A58: The History of Modern Israel - Part II: Challenges of Israel as a sovereign state | B58: Tel Aviv University | C58: Intermediate | D58: 9.9 | E58: 4.7 | F58: https://www.coursera.org/learn/history-israel-sovereign-state | G58: This course deals with the Israeli politics, economy, society and culture, since its creation in 1948 till today. It analyzes the construction of the Israeli historical narrative as an identity-building narrative, intending to inculcate a collective memory to a diverse society. We will focus on key events and essential components that shaped the Israeli society from the fifties till the present. We will also discuss the changes that the Israeli society experiences in its almost seventy years of existence and how it affects its politics and culture. Among the topics we will discuss issues such as immigration, economic transformation, political upheaval, religious Zionism and post-Zionism, privatization and Americanization, Holocaust increasing role in shaping Israel's identity, diversity and multiculturalism, as well as the enduring conflict with the Palestinians and the Arab world.\n\nThis course is a direct extension of the first part "The History of Modern Israel: From an Idea to a State", so if you have not yet taken it, we highly recommend you start your learning from there (https://www.coursera.org/learn/history-israel/).\n\nIn order to receive academic credit for this course you must successfully pass the academic exam on campus. For information on how to register for the academic exam – https://tauonline.tau.ac.il/registration\n\nAdditionally, you can apply to certain degrees using the grades you received on the courses. Read more on this here – \nhttps://go.tau.ac.il/b.a/mooc-acceptance\n\nTeachers interested in teaching this course in their class rooms are invited to explore our Academic High school program here – https://tauonline.tau.ac.il/online-highschool\n\n\n* This course is a joint effort of Tel Aviv University & Israel Institute (www.israelinstitute.org)\n* This course uses media material from various archives, courtesy to Yad Vashem Archive for their help.\n* This course is self-paced. Once you register, you can participate in the course anytime, as often as you wish and over any stretch of time | H58: history; experience; war; deadlock; Economics; evaluation; israel; expense; holocaust; project | I58: Non Specialization | J58: Non Specialization | K58: Non Specialization | L58: Non Specialization | M58: [5.4, 12.2] | N58: Hebrew; Spanish | O58: English | P58: arts-and-humanities | Q58: history | R58: mZ_Ph_cGEeW_Fg5kRHBRWw | S58: Non Specialization | T58: FALSE
A59: Curanderismo: Traditional Healing of the Body | B59: University of New Mexico | C59: Intermediate | D59: 7 | E59: 4.6 | F59: https://www.coursera.org/learn/curanderismo-traditional-healing-body | G59: As the second of four courses on Curanderismo, the art of Hispanic/Latino traditional medicine, this course focuses specifically on traditional healing of the body. As an educational and cultural platform, this course will share a number of traditional body therapies.\n\nLearners will not become certified traditional healers at the completion of this course but will be able apply basic principles or traditional medicine for health and illnesses. They will become familiar specifically with the traditional treatment of Empacho (intestinal blockage), Manteadas (shawl alignments), Ventosas (fire cupping), Hidroterapia (healing with water), and other topics such as the Huesero (bone setter).\n\nFuture Curanderismo courses include:\n\nTraditional Healing of the Mind, Energy and Spirit: Temazcal (sweatlodge), Limpias (energetic/spiritual cleansings), Risaterapia (laugh therapy) and other topics.\n\nGlobal and Cultural Influences of Traditional Healing: African tradition, Afro Latino from Cuba and Puerto Rico, Native American spiritual cleansings and Mayan acupuncture and other topics.\n\nREQUIRED TEXTS\nCuranderismo: The Art of Traditional Medicine without Borders by Eliseo Torres\n\nCurandero: Traditional Healers of Mexico and the Southwest by Eliseo Torres with Imanol Miranda\n\nWhere to buy:\nhttps://he.kendallhunt.com/product/curanderismo-art-traditional-medicine-without-borders\n\nhttps://he.kendallhunt.com/product/curandero-traditional-healers-mexico-and-southwest\n\nOPTIONAL TEXTS\nCurandero: A life in Mexican Folk Healing by Eliseo Torres & Tim Sawyer\n\nHealing with Herbs & Rituals: A Mexican Tradition, Eliseo Torres, edited by Tim Sawyer\n\nWhere to buy:\nhttps://www.barnesandnoble.com/w/curandero-torres-eliseo-cheo/1120135382?ean=9780826336415&st=PLA&sid=BNB_1341481610&sourceId=PLAGoNA&dpid=tdtve346c&2sid=Google_c&gclid=EAIaIQobChMI3_6LmYev3gIViuNkCh3IPgUyEAQYASABEgLYXfD_BwE\n\nhttps://www.barnesandnoble.com/w/healing-with-herbs-and-rituals-torres-eliseo-cheo/1120135381?ean=9780826339621&st=PLA&sid=BNB_825204424&sourceId=PLAGoNA&dpid=tdtve346c&2sid=Google_c&gclid=EAIaIQobChMIrrvswYev3gIVBsRkCh3BXQCHEAQYASABEgLnl_D_BwE\n\nPODCAST:\nBlubrry podcast - https://www.blubrry.com/normallol/41068835/normal-lol-63-depersonalization-mental-wellness-curanderismomexican-traditional-healing-with-eliseo-cheo-torres/\n\nItunes Episode 63 - https://itunes.apple.com/us/podcast/normal-lol-depersonalization-derealization-anxiety/id1065740418?mt=2 | H59: infant; constipation; diarrhea; healing; art therapy; traditional medicine; therapy; cups; hydrotherapy; numbers (spreadsheet) | I59: Non Specialization | J59: Non Specialization | K59: Non Specialization | L59: Non Specialization | M59: [3.9, 7.5] | N59: None | O59: English | P59: arts-and-humanities | Q59: history | R59: UiVQARMFEea4YAq244u_Cw | S59: Non Specialization | T59: FALSE
A60: English Composition I | B60: Duke University | C60: Beginner | D60: 31.5 | E60: 4.3 | F60: https://www.coursera.org/learn/english-composition | G60: You will gain a foundation for college-level writing valuable for nearly any field. Students will learn how to read carefully, write effective arguments, understand the writing process, engage with others' ideas, cite accurately, and craft powerful prose. \n\nCourse Learning Objectives\n•\tSummarize, analyze, question, and evaluate written and visual texts\n•\tArgue and support a position\n•\tRecognize audience and disciplinary expectations\n•\tIdentify and use the stages of the writing process\n•\tIdentify characteristics of effective prose\n•\tApply proper citation practices\n•\tDiscuss applying your writing knowledge to other writing occasions | H60: Writing; grammar; Journalism; editing; english language; essay writing; self-reflection; english grammar; Proofreading; academic writing | I60: Non Specialization | J60: Non Specialization | K60: Non Specialization | L60: Non Specialization | M60: [21.8, 38.1] | N60: Spanish; French | O60: English | P60: arts-and-humanities | Q60: history | R60: f8wh4qQ-EeWF3A6Yvo0Lpw | S60: Non Specialization | T60: FALSE
A61: Fundamentals of the Chinese character writing (Part 1) | B61: Saint Petersburg State University | C61: Advanced | D61: 10.5 | E61: 4 | F61: https://www.coursera.org/learn/chinese-character-writing | G61: The course gives a concise survey of the Chinese character-writing tradition. You’ll master the fundamentals of the Chinese writing aesthetics; learn about the main phases of the characters’ evolution and about the great calligraphers of the past. You are going to distinguish 6 types of the Chinese written symbols, become skilled in history of Chinese scripts and possibility of their modern usage. You’ll get the explanation of the 214 Chinese character radicals (the first part in Part 1 of the Course, the second — in Part 2) and can practice their writing, using the animated and static samples given in videos and on pages. Elaborate tests are going to help you regularizing the new information and filling the lacunae. \nWelcome to the mysterious world of the Chinese characters! You will definitely love it! | H61: principle; Writing; history; materials; chinese language; entry point; widget (gui); Estimation; Art History; Computer Graphics | I61: Non Specialization | J61: Non Specialization | K61: Non Specialization | L61: Non Specialization | M61: [6.2, 12.4] | N61: None | O61: English | P61: arts-and-humanities | Q61: history | R61: 2OkHR9adEeiEfRJzd0XO3g | S61: Non Specialization | T61: FALSE
A62: Religious Transformation in Early China: the Period of Division | B62: The Chinese University of Hong Kong | C62: Intermediate | D62: 25.1 | E62: 4.9 | F62: https://www.coursera.org/learn/religious-transformation-early-china-the-period-of-division | G62: This sequence of four courses will propose a multi-disciplinary approach to the study of Chinese cultural history conceived of as a succession of modes of rationality (philosophical, bureaucratic, and economic). The focus will be on the moments of paradigm shift from one mode of rationality to another. For each of these moments, cultural facts and artifacts—thought, literature, ritual—will be examined in relationship to changing social, political, and economic systems.\n\nThe first two courses will cover the periods of the Warring States (481-256 BCE) and the Period of Division (220-589 CE), with a brief excursion into the Han (206 BCE-220 CE). The Warring States laid the social and cultural foundations for the emergence of the imperial mode of rationality; the Period of Division saw the Buddhist “conquest” of China and the emergence of a rationality defined by the opposition of the Three Teachings to shamanism, that is, of a clear contrast between elite and popular culture.\n\nThe third and fourth courses will focus on the emergence of modern China in the Song-Yuan (960-1368) and of today’s China 1850 to the present. We will see how the modern attack on religion, redefined as "superstition", led not only to religious reform movements but also to a society in which science and the nation became the primary value systems promoted by the state.\n\nThe courses are listed below:\n\nA Critical Cultural History of China - Early China I: Intellectual Change in the Warring States and Han (481 BCE-220 CE)\nA Critical Cultural History of China - Early China II: Religious Transformation in the Period of Division (220-589 CE) \nA Critical Cultural History of China - Modern China I: Religion and Thought in the Song, Jin, and Yuan (960-1368) (To be launched in late 2018)\nA Critical Cultural History of China - Modern China II: Structuring Values (1850-2015) (To be launched in late 2018) | H62: centrality; bureaucracy; political science; chinese language; conquesting; shamanism; attractiveness; orality; religion; Poetry Writing | I62: Non Specialization | J62: Non Specialization | K62: Non Specialization | L62: Non Specialization | M62: [13.3, 30.3] | N62: None | O62: English | P62: arts-and-humanities | Q62: history | R62: ZhO2ilQeEeiuag4cjofrng | S62: Non Specialization | T62: FALSE
A63: 現代文學導讀：詩、散文、小說 | B63: National Taiwan University | C63: Advanced | D63: 9.7 | E63: 4.7 | F63: https://www.coursera.org/learn/poetry-prose-novel | G63: 「現代文學」，又稱白話文學、新文學，起源自五四時期的白話文學運動，更可以上溯到晚清文學革命。其體裁包含詩、散文、小說，而晚清以來的翻譯小說也佔有頗重要的位置。現代作家藉由作品表達他們對新世界、新觀念、新文化的看法，塑造新的審美觀與價值觀，形成豐富多元的文學世界，值得我們細細品味。\n本課程依照詩、散文、小說與翻譯小說四類，選取代表作家徐志摩、梁實秋與楊牧、沈從文，以及林紓等，透過作家生平介紹、文類結構分析、經典作品導讀，引導大家認識現代文學的樣貌與特色，並藉此了解如何欣賞文學、體會人文精神。\n\n修習完本課程後，你將可以：\n1. 列舉詩歌的形式與特色\n2. 列舉散文文體特徵與形式\n3. 說明沈從文小說的特色與寫作背景\n4. 說明翻譯小說的興起與影響 | H63: Training Programs; Course Development; daniel goleman; ivar jacobson; preparation time; style guide; satisficing; autoethnography; Poetry Writing; holland codes | I63: Non Specialization | J63: Non Specialization | K63: Non Specialization | L63: Non Specialization | M63: [5.7, 10.5] | N63: None | O63: Chinese (Traditional) | P63: arts-and-humanities | Q63: history | R63: OlN4rbfmEeiV3hLuYXLyZg | S63: Non Specialization | T63: FALSE
A64: The Bible's Prehistory, Purpose, and Political Future | B64: Emory University | C64: Beginner | D64: 21.5 | E64: 4.7 | F64: https://www.coursera.org/learn/bible-history | G64: With its walls razed to ground by Babylon’s armies, Jerusalem joined a long line of ancient vanquished cities—from Ur and Nineveh and Persepolis to Babylon itself. While some recovered from the destruction, others did not. But none responded to political catastrophe by fashioning the kind of elaborate and enduring monument to their own downfall that we find in the Bible. Most conquered populations viewed their subjugation as a source of shame. They consigned it to oblivion, opting instead to extol the golden ages of the past. The biblical authors in contrast reacted to loss by composing extensive writings that acknowledge collective failure, reflect deeply upon its causes, and discover thereby a ground for collective hope. \n \nWorking through colorful biblical and ancient Near Eastern texts, and drawing on an array of comparative examples, the course illustrates the thoroughgoing manner with which biblical authors responded to defeat by advancing a demotic agenda that places the community at the center. The aim of the biblical authors was to create a nation, and they sought to realize this goal via a shared text, which includes stories and songs, wisdom and laws. This corpus of writings belongs, without a doubt, to humanity’s greatest achievements. Whereas the great civilizations of the Near East invested their energies and resources into monuments of stone that could be destroyed by invading armies, the biblical authors left a literary legacy that has been intensively studied until the present day. More important, these authors’ visionary response to defeat brought to light a radical new wisdom: the notion that a people is greater than the state which governs it, and that a community can survive collapse when all of its members can claim a piece of the pie and therefore have a reason to take an active part in its collective life. | H64: bible; death; Average; history; consciousness; conquesting; israel; focal (hp-41); project; pragmatics | I64: Non Specialization | J64: Non Specialization | K64: Non Specialization | L64: Non Specialization | M64: [13.6, 27.0] | N64: Romanian; Portuguese; Spanish | O64: English | P64: arts-and-humanities | Q64: history | R64: 39iAT2nMEeSqESIAC44MZQ | S64: Non Specialization | T64: FALSE
A65: Introduction to Who Wrote Shakespeare | B65: University of London | C65: Intermediate | D65: 20.9 | E65: 4.2 | F65: https://www.coursera.org/learn/shakespeare | G65: This free course from the University of London explores critical thinking, and the interpretation of texts, through the Shakespeare authorship question. Using doubt about Shakespeare’s authorship as our playground, we will explore the key concept of authorship attribution, while developing skills in literary analysis, interpretation, and argument. Through forensic exploration of key texts, you will learn why Shakespeare’s authorship is questioned, and what evidence is cited on both sides of the debate.\n\nFor those of you interested in exploring the works of Shakespeare from a new angle, or just wanting to hone your analytical thinking skills, this course offers an introduction to a fascinating area of interest. Those of you already interested in the Shakespeare authorship question will be encouraged to question your own assumptions in fruitful ways. Whether undertaken as a standalone course, or as preparation for the University of London BA in English, this course will be food for thought. | H65: Writing; daughter; confirmation bias; hypertext; arm; doubt; man; Poetry Writing; greek mythology; cognitive dissonance | I65: Non Specialization | J65: Non Specialization | K65: Non Specialization | L65: Non Specialization | M65: [14.0, 23.8] | N65: None | O65: English | P65: arts-and-humanities | Q65: history | R65: H4Lq9DClEeeckAoFzJuh9g | S65: Non Specialization | T65: FALSE
A66: Egiptología (Egyptology) | B66: Universitat Autònoma de Barcelona | C66: Intermediate | D66: 49 | E66: 4.9 | F66: https://www.coursera.org/learn/egypt | G66: ¿Sientes curiosidad por la civilización del antiguo Egipto? ¿Eres un apasionado de su cultura e historia?\n\nEn este curso nos acercaremos a los templos de los antiguos faraones, a sus complejos funerarios, a sus ciudades, a su escritura jeroglífica, a su religión y a muchos otros aspectos de esta gran civilización. Con ello pretendemos ofrecerte una visión general de la historia y cultura de esta fascinante civilización; proporcionarte un planteamiento docente y unos materiales de alto nivel académico que te permitan introducirte en la disciplina egiptológica con una cierta profundidad y sin concesiones a los consabidos tópicos que la rodean, para, después, si lo deseas, seguir profundizando por tu cuenta. \n\nDe momento te dejamos con este vídeo: https://youtu.be/FPPhkYxWvfI\n\n¿Querrías acompañarnos en este viaje?\n\nACLARACIONES\n* Puedes realizar el curso de manera gratuita. Con ello puedes acceder a todo los contenidos (vídeos, lecturas, cuestionarios, foros). Sin embargo, no permite la opción de obtener un certificado. \n* Obtener el certificado implica cumplir una serie de requisitos, entre los cuales, abonar el coste asociado.\n\nEtiquetas: egiptología, egyptology | H66: language; mythology; history; cmos; i-deas; computer multitasking; preferred reporting items for systematic reviews and meta-analyses; art; Art History; religion | I66: Non Specialization | J66: Non Specialization | K66: Non Specialization | L66: Non Specialization | M66: [34.7, 55.3] | N66: None | O66: Spanish | P66: arts-and-humanities | Q66: history | R66: OPehmvpeEeSTISIAC3lNCw | S66: Non Specialization | T66: FALSE
A67: Археология. О чём говорят древности? | B67: Novosibirsk State University | C67: Advanced | D67: 12.4 | E67: 5 | F67: https://www.coursera.org/learn/archaeology | G67: Наверняка, многие в детстве мечтали стать новым Индиана Джонсом или Ларой Крофт и представляли себе работу археолога как приключение: разгадывать сложные загадки прошлого, сражаться с роботами и мумиями, путешествовать по разным древним местам нашей планеты в поиске сокровищ... Но задумывались ли вы когда-нибудь, а чем занимается настоящий археолог? Наш курс «Археология. О чём говорят древности?» именно об этом.\nКак именно учёные узнают о прошлом человека, какие бывают артефакты и как, например, по одному только древнему захоронению понять, был человек богатым или бедным? Мы поговорим о видах археологических памятников, их классификации и типологии, разберём этапы работы археолога от разведки до экспедиций, от лабораторных работ и до интерпретации результатов. Вы узнаете, как учёные определяют возраст находок с помощью разных естественнонаучных методов, а ещё погрузитесь в удивительный мир древнего искусства и поймёте, как мыслил древний художник, когда создавал свои наскальные шедевры. \nКурс «Археология. О чём говорят древности?» будет интересен тем, кого увлекает история и археология. Мы рекомендуем вам пройти курс, если вы только собираетесь связать свою жизнь с археологией, уже сделали это или просто интересуетесь этой наукой. В нашем курсе есть дополнительный модуль от научно-образовательного центра «Новая археология» Новосибирского государственного университета, в котором ведущие учёные расскажут об эволюции человека. Например, вы сможете разобраться, кто такой денисовский человек, и чем он отличается от нас с вами, или как и зачем древние люди переселялись из Африки в Северную Азию. Этот модуль носит ознакомительный характер и не входит в итоговое тестирование, но в нём очень много всего интересного.\nЖелаем вам удачи! | H67: usus; eurowordnet; cascading failure; trial and error; General Statistics; machine translation; mealy machine; semantic role labeling; entity linking; language acquisition | I67: Non Specialization | J67: Non Specialization | K67: Non Specialization | L67: Non Specialization | M67: [8.5, 15.6] | N67: None | O67: Russian | P67: arts-and-humanities | Q67: history | R67: LzZcNHTREeqmhwrcKRajew | S67: Non Specialization | T67: FALSE
A68: 宇宙之旅：展现生命 (Journey of the Universe: The Unfolding of Life) | B68: Yale University | C68: Intermediate | D68: 15.9 | E68: 4 | F68: https://www.coursera.org/learn/yuzhou-zhi-lu | G68: 关于这门课程：宇宙之旅是由不断进步的科学发现和人文科学交织组成的，历史、哲学、艺术、宗教统统都含括在内。这门课以艾美奖获奖影片-宇宙之旅，以及耶鲁大学出版社出版的课本作为主要教材。\n\n旅程探索了宇宙的进化，这些进化就像是一套建立在关联、独立和进化之上的奇妙过程。它带我们重新审视星系、地球、生命和人类社会之间的动态交互。它探索了我们了解进化的过程以及对人类和生态环境的启示。\n\n因此，这门旅行课程是自然科学和人文科学的融合。这趟旅行是以一种史诗旁白的形式进行推进的，而不是讲述一系列遵从自然科学的事实。这会改变我们的认知并让我们可以将自身带入到旁白之中。通过这种代入感，我们可以更好的理解这一系列过程的复杂性和美感，例如自组织演化、自然选择、进化、协作、协同进化。当我们发现了解了了这些错综复杂的进化过程之后，我们突然发现到我们所生活的地球正处在其自身历史上的重要转折点，纷繁复杂却又美轮美奂。 | H68: verse protocol | I68: Non Specialization | J68: Non Specialization | K68: Non Specialization | L68: Non Specialization | M68: [6.1, 16.1] | N68: English | O68: Chinese (China) | P68: arts-and-humanities | Q68: history | R68: XwMfpggtEeeIbxIwEXsqPA | S68: Non Specialization | T68: FALSE
A69: The History of Modern Israel – Part I: From an Idea to a State | B69: Tel Aviv University | C69: Intermediate | D69: 6.8 | E69: 4.4 | F69: https://www.coursera.org/learn/history-israel | G69: How did the State of Israel come to be? How is it that an idea, introduced in 19th century Europe, became a reality? And how does that reality prevail in the harsh complexities of the Middle East?\n\nPresented by Professor Eyal Naveh, with additional units from Professor Asher Sussers' "The Emergence of the Modern Middle East" course, This course will take you on a journey through the history of Modern Israel. In this 1st part of the course we will explore:\n\nHow did the 19th century idea of a Jewish state become a reality? \n\nSo the next time you hear about Israel in the news, you will be informed enough about the history of this area to comprehend the many sides and narratives that interact to shape the complex reality of Israel today.\n\nPlease note that there is a second part to this course "The History of Modern Israel - Part II: Challenges of Israel as a sovereign state" which is a direct extension of this part. We highly recommend to continue to the second part after you finish this one (https://www.coursera.org/learn/history-israel-sovereign-state).\n\nIn order to receive academic credit for this course you must successfully pass the academic exam on campus. For information on how to register for the academic exam – https://tauonline.tau.ac.il/registration\n\nAdditionally, you can apply to certain degrees using the grades you received on the courses. Read more on this here – \nhttps://go.tau.ac.il/b.a/mooc-acceptance\n\nTeachers interested in teaching this course in their class rooms are invited to explore our Academic High school program here – https://tauonline.tau.ac.il/online-highschool\n\n\n* This course is a joint effort of Tel Aviv University & Israel Institute (www.israelinstitute.org)\n* This course uses media material from various archives, courtesy to Yad Vashem Archive for their help.\n* This course is self-paced. Once you register, you can participate in the course anytime, as often as you wish and over any stretch of time | H69: history; i-deas; war; israel; well; phenomenon; Art History; middle east; holocaust; Planning | I69: Non Specialization | J69: Non Specialization | K69: Non Specialization | L69: Non Specialization | M69: [4.1, 8.2] | N69: Portuguese; Arabic; Spanish; Hebrew | O69: English | P69: arts-and-humanities | Q69: history | R69: wEl1EleDEeWTbwotamPtlQ | S69: Non Specialization | T69: FALSE
A70: Patrick Henry: Forgotten Founder | B70: University of Virginia | C70: Beginner | D70: 7.8 | E70: 4.9 | F70: https://www.coursera.org/learn/henry | G70: “Give me liberty, or give me death:” Remembering Patrick Henry, the Forgotten Founder\n\n\tPatrick Henry was enormously popular during the American Revolution. Even Thomas Jefferson, who over time developed a deep loathing of Henry (some would say jealousy), had to admit that “it is not now easy to say what we should have done without Patrick Henry.” Edmund Randolph, a patriot leader in his own right, explained that “It was Patrick Henry … awakening the genius of his country, and binding a band of patriots together to hurl defiance at the tyranny of so formidable a nation as Great Britain.” \n\tYet, today, Patrick Henry is ill-remembered; most Americans might recall at best perhaps a snippet from a famous speech: “give me liberty, or give me death.” The reasons for our historic forgetfulness are several: after the Revolution, Henry chose to oppose ratification of the U.S. Constitution, believing that it created a distant and too-powerful government, and he refused proffered position in George Washington’s administration, diminishing his historic memory. Equally important, Henry died in 1799 shortly after a political campaign in which, at Washington’s behest, he opposed Jefferson’s and James Madison’s ill-advised radical states’ rights attack on the U.S. government, and Jefferson spent the next twenty-six years systematically attacking Henry’s legacy.\n\tPatrick Henry, who helped to ignite a revolution, deserves better. This course will explore how he over¬came challenges to reach the pinnacle of Virginia politics and unite Americans behind a challenge to Britain – the eighteenth century’s super-power, why he opposed the U.S. Constitu¬tion, and why he then came out of retirement to defend the people’s Constitution against the attacks of Jefferson and Madison. \n\tParticipants should evaluate Henry’s role in proclaiming a revolution and consider whether he had an equally important role in saving it. The course should also develop an improved appreciation for the complex political, economic, and religious forces that shaped the early republic. As a biographical course, it also demonstrates how personalities play an important role in even the most foundational national history.\n\n\nImage Attribution:\nThe background image for this webpage is Patrick Henry before the Virginia House of Burgesses by Peter F. Rothermel (1851) with special thanks to the owner, the Patrick Henry Memorial Foundation. The painting of Patrick Henry's 1765 "Caesar had his Brutus" speech (discussed in the second lecture) is entirely romanticized -- neither Henry nor the House of Burgesses looked at all like this -- but it does show that hagiography of Henry, almost god-like veneration, began shortly after this death. | H70: resource; career; constitution; retirement; experience; Human Learning; Influencing; lecture; fundraising; sources | I70: Non Specialization | J70: Non Specialization | K70: Non Specialization | L70: Non Specialization | M70: [5.5, 8.8] | N70: None | O70: English | P70: arts-and-humanities | Q70: history | R70: iYYp3BipEeeAuQ5XyvTfVA | S70: Non Specialization | T70: FALSE
A71: Toledo: Deciphering Secrets of Medieval Spain | B71: University of Colorado System | C71: Intermediate | D71: 16.7 | E71: 4.6 | F71: https://www.coursera.org/learn/toledo-deciphering-secrets-medieval-spain | G71: This course evaluates the medieval history of Toledo from the era of the Visigoth Kingdom (6th-8th centuries) through its Islamic period (8th to 11th centuries) and into its reintegration into Christian Spain (after 1085 c.e.) In particular, we take note of the cultural and religious transformations that characterized the city with a special effort to understand how many peoples and religions came to settle and live amongst one another. We will virtually-tour the Islamic and Christian structures of the Museo de Santa Cruz, Iglesia de San Román, Sinagoga del Tránsito, Mezquita de Bab al-Mardum, Archivo Municipal de Toledo, and the Archivo Historico de la Nobleza.\n\nWe examine the Visigoths transition from Christian Arianism to Catholicism and the harsh treatment of the Jewish population. We explore Islamic governance and development of the medieval city of three faiths, with a special interest in its cultural achievements. We will study King Alfonso “The Wise” (1252-1284)’s efforts to characterize himself as the “king of three religions” via his legal codices, the creation of the Cantigas de Santa María, and his intellectual endeavor known as the Toledo School of Translators. We evaluate the robust Jewish and converso noble families of the city and appreciate their intellectual, religious, and economic contributions to Castilian life. We will bear witness to the rise of anti-Jewish blood purity statutes, the creation of the Inquisition, and the expulsion of the Jews. We also briefly introduce and study Spanish manuscripts from the municipal and cathedral archives to make new scholarly breakthroughs relating to the Jewish, Christian, and Muslim interrelations.\n\nNo knowledge of Spanish is needed to participate in the course or in our transcription efforts. | H71: r&d management; decipherment; history; Culture; conquesting; blood; choice; cleanliness; numbers (spreadsheet); Poetry Writing | I71: Non Specialization | J71: Non Specialization | K71: Non Specialization | L71: Non Specialization | M71: [9.8, 22.9] | N71: None | O71: English | P71: arts-and-humanities | Q71: history | R71: i-kvszj4Eei9dA6pYgVc7g | S71: Non Specialization | T71: FALSE
A72: The Cosmopolitan Medieval Arabic World | B72: Universiteit Leiden | C72: Beginner | D72: 12.3 | E72: 4.8 | F72: https://www.coursera.org/learn/medieval-arabia | G72: Did you know that Arabic was for centuries the lingua franca in an area stretching from the south of Spain to the Chinese border? Did you know that the Middle East under Muslim rule in those days was the world’s beating heart of trade, but also of science and scholarship? \n\nDid you know that Islam in its formative period was heavily influenced by existing cultures in the region, like Indian, Greek, Persian and Byzantine culture? Did you know that for many centuries after the establishment of the Muslim Empire the majority of the population remained largely Christian and Jewish? \n\nDid you know that they held a protected status in Islamic law? Did you know that this generally open-minded, curious and open society stimulated many great innovations and inventions? \n\nDid you know that European scholarship in the Renaissance leaned heavily on the texts and inventions from the Middle East which were the outcome of this sophisticated advanced society? \n\nIn this course we will focus on the fascinating history of the Arabic Medieval World. We will take you on a journey through the Middle Ages starting off in eighth-century Baghdad. Along the old pilgrim trails we will go to places like Mecca, Jerusalem and Najaf. We will show you the impressive markets of places like Cairo and Samarkand. However we will not hide the dark sides of society either, by introducing you to the flourishing widespread slave trade. We will visit the Abbasid court, the Harem of the caliph, and the palace of the Mamluk Sultan. We will show you some beautiful medieval manuscripts, that live on as the silent witnesses of the impressive achievements of scientists and medical doctors of this forgotten era. All along we will present you with historiographical debates and dilemma’s. Reflecting on the way we look at and interpret history. And while taking you on this journey, we will travel back and forth in time explaining to you how events of the past affected and shaped the world as we know it today. \n\nWelcome to the Cosmopolitan Medieval Arabic World! Enroll now and follow this course for free.\n\n---\n\nTestimonial:\n\nDear Prof. Sijpesteijn\n \nI am sending this email in gratitude for the Leiden University team for this course. Please thank the Faculty of Governance and Global Affairs for offering it on Coursera, the Faculty of Humanities for creating the lovely course content and the excellent reading material. Rarely have I seen an MOOC that is this well-researched and thought through. This is in addition to the excellent resources provided and the creative media. I finished the course and presently doing the honors-track.\n \nIf I may introduce myself, I am Radi Radi, a Palestinian-Jordanian who lives on "Shajaret Al Dur" St. in Amman, Jordan. It was quite an coincidence to learn about her here. I work as a pilot and currently we are not flying anywhere currently so I thought of finishing this course. I am a Bachelor of Civil Engineering from Ryerson Univeristy, Canada and this really felt like the 100-level electives I took in that it really is a university-level course. \n \nI have bought a few books that I have read about in your course and that meant that I have something else to do in this corona-imposed hiatus. After\n \nOnce aviation kicks back into gear, I hope to be flying to Amsterdam Again. When that happens, I plan on bringing you guys a gift from Amman for your efforts. \n \nMany Thanks\nRadi Radi | H72: analysis; history; empirical evidence; fundraising; Civil Engineering; Art History; middle east; inquiry; religion; criticism | I72: Non Specialization | J72: Non Specialization | K72: Non Specialization | L72: Non Specialization | M72: [7.4, 15.6] | N72: Spanish | O72: English | P72: arts-and-humanities | Q72: history | R72: l0GZUUkrEeiEvA6L-SRtXg | S72: Non Specialization | T72: FALSE
A73: A Voice of Their Own. Women's Spirituality in the Middle Ages. | B73: Universitat de Barcelona | C73: Advanced | D73: 22 | E73: 4.4 | F73: https://www.coursera.org/learn/womens-spirituality | G73: Have you ever heard about medieval mysticism or medieval heresies? Have you ever wondered about the particular role women played in medieval spirituality? Do Hildegard of Bingen, Clare of Assisi, Marguerite Porete, the Cathar ladies or Isabel de Villena ring a bell? Have you ever felt like you wanted to know more about them? If your answer to any of these questions was yes, then this MOOC, A voice of their own. Women’s spirituality in the Middle ages is what you were looking for. \n\nA Voice of their own is much more than a course. It is an invitation to follow the paths traced by the spiritual experiences of medieval women. It is a challenge that, should you let it, will take you to places where you will see and hear things that will astonish you. Here you will find medieval women playing a major role in the spiritual transformations of the Middle Ages, founding monastic movements and orders, writing about their experiences, traveling the roads of Europe to spread their ideas, creating spiritual landscapes, as well as both material an intangible architectures. In this MOOC, these women will speak to you from the past, and you'll see that their voices still hold great validity in the present. | H73: female; Writing; history; bible; photography; Art History; heresy; art; protagonist; spirituality | I73: Non Specialization | J73: Non Specialization | K73: Non Specialization | L73: Non Specialization | M73: [13.2, 22.5] | N73: Spanish | O73: English | P73: arts-and-humanities | Q73: history | R73: mKOKCRCmEeiOoxKoKNxjBg | S73: Non Specialization | T73: FALSE
A74: Heritage under Threat | B74: Universiteit Leiden | C74: Beginner | D74: 13.3 | E74: 4.6 | F74: https://www.coursera.org/learn/heritage-protection | G74: In this course you will learn to articulate your own concepts about (threatened) heritage and that of others. What is your heritage? Who defines heritage? Why is heritage under threat? How can we protect heritage? \n\nWW1, WW2, Cold war politics and contemporary conflicts as well as continuing political and socio-economic inequalities and colonial pasts are all factors playing a role in the global heritage discussions and approaches to (or lack of ) valorization and protection of heritage. Hence, issues behind destruction or threats to heritage are related to complex issues, often connected to complex landscapes of wars, the war-on-terror, fundamentalism, migration, global warming, financial crises, inequality and diverse interests of local communities. \n\nThis course, sponsored by the LDE Centre for Global Heritage and Development and the Honours Academy of Leiden University, and the Netherlands Commission for UNESCO gave its support to one of the sections of the MOOC, will explore these issues. We wish to engage global communities and widen the perspective on threatened heritage. You can help us with this. | H74: Museology; measurement; Framing; threat; Leadership and Management; hope; well; Student's t-Distribution; Experiment; digital preservation | I74: Non Specialization | J74: Non Specialization | K74: Non Specialization | L74: Non Specialization | M74: [4.7, 18.2] | N74: None | O74: English | P74: arts-and-humanities | Q74: history | R74: xbYnwBHeEea4YAq244u_Cw | S74: Non Specialization | T74: FALSE
A75: The Talmud: A Methodological Introduction | B75: Northwestern University | C75: Beginner | D75: 12.2 | E75: 4.6 | F75: https://www.coursera.org/learn/the-talmud | G75: The Talmud is one of the richest and most complicated works of literature the world has ever known. Since being composed around 1500 years ago it has inspired not only religious reverence but significant intellectual engagement. In this course learners will be introduced to the unique characteristics of this text and the challenges that inhere in studying it while studying a chapter of the Talmud. Students of the course can expect to develop an appreciation for how the Talmud works and why it continues to inspire religious and intellectual devotion. They will be challenged to employ critical reading skills and to analyze legal and historical concepts. | H75: law; logic; analysis; history; interpretation; bible; israel; scholar; religion; criticism | I75: Non Specialization | J75: Non Specialization | K75: Non Specialization | L75: Non Specialization | M75: [6.9, 14.0] | N75: Romanian | O75: English | P75: arts-and-humanities | Q75: history | R75: ORgoiNzUEeWbigpIjeBbbQ | S75: Non Specialization | T75: FALSE
A76: The Ancient Greeks | B76: Wesleyan University | C76: Beginner | D76: 23.1 | E76: 4.7 | F76: https://www.coursera.org/learn/ancient-greeks | G76: This is a survey of ancient Greek history from the Bronze Age to the death of Socrates in 399 BCE. Along with studying the most important events and personalities, we will consider broader issues such as political and cultural values and methods of historical interpretation. | H76: Benefits; history; mythology; war; ancient greece; time limit; father; Art History; art; greek mythology | I76: Non Specialization | J76: Non Specialization | K76: Non Specialization | L76: Non Specialization | M76: [14.9, 27.4] | N76: Spanish | O76: English | P76: arts-and-humanities | Q76: history | R76: zTzjmvssEeSDoyIAC1CH0g | S76: Non Specialization | T76: FALSE
A77: Речевой этикет: вежливость и коммуникативные стратегии | B77: National Research University Higher School of Economics | C77: Beginner | D77: 26.8 | E77: 4.6 | F77: https://www.coursera.org/learn/rechevoj-etiket | G77: Цель курса – знакомство с устройством речевого этикета, вежливостью и коммуникативными стратегиями, которые используются в общении.\nСлушатели узнают особенности русского речевого этикета и увидят его динамику: от дореволюционного к советскому, от советского к сегодняшнему. Мы заглянем в разные сферы: работа, школа, семья, – и обнаружим в русском языке то, о чем не подозревают даже его носители.\nРусский речевой этикет рассматривается в сравнении с другими европейскими и азиатскими этикетами. Различия в них объясняются через коммуникативные стратегии и культурные шаблоны.\nНаряду с вежливостью мы обсудим и противоположные типы поведения – невежливость и анти-вежливость, то есть сознательное нарушение правил речевого поведения. К каким последствиям это может привести?\nВ заключение мы попытаемся ответить на главные вопросы. Зачем нужен речевой этикет? Что случится, если мы откажемся от вежливости и соблюдения речевого этикета?\nСреди задач курса есть и теоретические (см. выше), и практические. Слушатели узнают, как вести себя в определенных, иногда довольно нетривиальных ситуациях и как реагировать на речевое поведение собеседников. Но кроме ответа на вопрос «как», будут предложены ответы и на вопрос «почему». Почему люди себя так ведут и какие коммуникативные стратегии используют? \nНа лекциях мы постараемся достичь определенного баланса между теорией и практикой. В определенных эпизодах рядом с лектором будет находиться симпатичный собеседник, который поможет продемонстрировать как соблюдение, так и нарушение речевого этикета.\nСлушателям будут предложены задания, с помощью которых они проверят практическое усвоение правил этикета и собственную готовность к его использованию в реальной жизни.\n\nПоявились технические трудности? Обращайтесь на адрес: coursera@hse.ru | H77: Not Calibrated | I77: Non Specialization | J77: Non Specialization | K77: Non Specialization | L77: Non Specialization | M77: [16.9, 33.8] | N77: None | O77: Russian | P77: arts-and-humanities | Q77: history | R77: VOco4ZeXEea7DQoksxKcjg | S77: Non Specialization | T77: FALSE
A78: Film, Images & Historical Interpretation in the 20th Century: The Camera Never Lies | B78: University of London | C78: Beginner | D78: 20.7 | E78: 4.5 | F78: https://www.coursera.org/learn/film-images | G78: This course is a short taster on the topic of the use of Images, Film, and their use in historical interpretation in the 20th century. It is primarily provided for those who have a general interest in history that draws on photojournalism as primary evidence, and films based on historical events.\n\n\nOnce you have completed this course we hope you will be equipped to: \n\nAppreciate the significance of photographs as historical evidence in the twentieth century.\nUnderstand the limitations of the medium, and how we can attribute meaning to these individual records of 'one moment in time' while taking into account the circumstances in which any particular image was taken.\nUnderstand how individuals and institutions have looked to manipulate images to their own ends – through alteration and/or censorship – and what that meant to contemporary interpretation, as well as subsequent historical interpretation.\nPut individual images into a wider context, and in particular with reference to history written, or portrayed, beyond academia: public history. \n\n\nDo be aware that part of the contents of this course regard images and depiction of war. Real wars and real images. | H78: history; Photojournalism; photography; father; Art History; art; historiography; holocaust; sources; film | I78: Non Specialization | J78: Non Specialization | K78: Non Specialization | L78: Non Specialization | M78: [12.2, 26.1] | N78: None | O78: English | P78: arts-and-humanities | Q78: history | R78: UMooQlv8EeWzUQ41NnCQkQ | S78: Non Specialization | T78: FALSE
A79: 杏林探宝——认知中药 | B79: Shanghai Jiao Tong University | C79: Not Calibrated | D79: 25.1 | E79: 4.6 | F79: https://www.coursera.org/learn/zhong-yao-zhi-shi | G79: 《杏林探宝——认知中药》是由上海中医药大学推出的一门关于中药学的慕课课程，由上海中医药大学杨柏灿教授主讲。\n 上海中医药大学（Shanghai University of Traditional Chinese Medicine）的前身是上海中医学院，创建于1956年，是新中国诞生后国家首批建立的四所中医药高等院校之一，也是上海市属高校中唯一的一所医科类重点特色院校。\n 中药学根植于中华文化，是中医药学的重要组成部分，也凝聚着中华文明的精髓。其悠久的历史，卓越的防病治病效果，较少的毒副作用，成为中华民族防病治病不可或缺的选择。同时，中药的作用也日益引起国际社会的关注和重视。但不可否认，对中药的认识和应用存在着一些不容忽视的误区与盲区，非常有必要采取一定的方式，通过合适的平台传播、普及中药知识，使人们对中药有一个更为全面准确的认识，并能合理应用，让中药为人类的健康保健发挥更大的作用。 | H79: software peer review; chinese language; Human Learning; Peer Review; drugs; Chinese Medicine | I79: Non Specialization | J79: Non Specialization | K79: Non Specialization | L79: Non Specialization | M79: [16.4, 30.8] | N79: English | O79: Chinese (China) | P79: arts-and-humanities | Q79: history | R79: l9ryvRniEeWjrA6seF25aw | S79: Non Specialization | T79: FALSE
A80: Art of the MOOC: Experiments with Sound | B80: Duke University | C80: Beginner | D80: 10.2 | E80: 4.8 | F80: https://www.coursera.org/learn/experiments-with-sound | G80: Students of this course may try their hand at their own sound interventions and musical compositions, or simply focus on learning more about diverse musical traditions, sonic experimentation, and acoustic phenomena in everyday life. Designed by artist and Duke professor, Pedro Lasch, and UdK composer Mathias Hinke, this course is also co-taught by scholar and musician Jace Clayton (DJ Rupture) and curator Candice Hopkins (Documenta 14). The lectures link major artistic developments of recent decades to wider ideas about sound in specific social and spatial contexts.\n\nAlso included are guest presentations from key thinkers and practitioners, like: Christopher DeLaurenti, Jen Delos Reyes, Tina Haver Currin, Quran Karriem, Christina Kubisch, Thomas Kusitzky, Scott Lindroth, Mark Anthony Neal, Bill Seaman, and John Supko. As the ‘ART of the MOOC’ title implies, learners and participants are encouraged to treat the MOOC itself as a public art medium. This happens mostly through the course’s optional practical components, local project productions, global exchanges, and critical feedback. While no prior sound production or musical experience is required, projects also offer challenging options for advanced learners. \n\nFor other course offerings or language versions in this series, just search 'ART of the MOOC' in the Coursera catalog. | H80: Sound Design; Audio Board; phonology; want; acoustics; art; sound; field recording; Databases; music | I80: Non Specialization | J80: Non Specialization | K80: Non Specialization | L80: Non Specialization | M80: [5.6, 12.9] | N80: None | O80: English | P80: arts-and-humanities | Q80: history | R80: bG4hY9X1EeeiOg7RPq0TXg | S80: Non Specialization | T80: FALSE
A81: Cultural Competence - Aboriginal Sydney | B81: The University of Sydney | C81: Intermediate | D81: 9.4 | E81: 4.6 | F81: https://www.coursera.org/learn/cultural-competence-aboriginal-sydney | G81: This course explores some of the key themes and capabilities of cultural competence by exploring Aboriginal experiences and narratives of Sydney. \n \nAustralia was ‘claimed’ for the British Crown in 1770, by Captain James Cook, but the invasion began in earnest when the First Fleet of British arrived in 1788 and established a penal colony in Sydney. \n\nAs a consequence Sydney is a city rich in diverse pre-colonial, colonial and contemporary sites of significance to Aboriginal peoples. Too often though our perceptions about Aboriginal peoples consign them to an ancient past or perpetuates stereotypical imaginations that Aboriginal peoples live in remote communities (Hinkson, 2010). \n\nAt the heart of this MOOC is the theme that Sovereignty was never ceded and Sydney always was and always will be Aboriginal Land. Despite this the Aboriginal presence in the city is often invisible to non-Aboriginal eyes. This course aims to bring to light marginalised narratives of Aboriginal presence in this space.\n\nTo understand hidden and marginalised narratives and experiences it is necessary to develop cultural competence capabilities. Key elements of practicing cultural competence include being able to understand and interrogate context, which in the case of Sydney includes not only learning about the peoples, places and histories of Aboriginal Sydney but to also understand issues about how knowledge is created and how dominant narratives can exclude diverse knowledges and experiences. \n\nCourse learning outcomes\n\n1.\tDevelop knowledge about cultural competence capabilities. \n2.\tDevelop a deeper and multi-layered knowledge and understanding about Aboriginal peoples, cultures and places in Sydney.\n3.\tDevelop a greater understanding of how history, cultures and places are represented, contested and interpreted and how that relates to their own context. \n\nAcknowledgement of Country\n\nWe acknowledge that this course was developed on the land of the Gadigal Peoples of the Eora nation. We pay our respect to the Traditional Owners of this land and acknowledge that the land that the University of Sydney was built on has been a place of learning for many thousands of years. | H81: language; Average; urban areas; inner city; Writing; Anthropology; history; dam; project; ordered pair | I81: Non Specialization | J81: Non Specialization | K81: Non Specialization | L81: Non Specialization | M81: [6.5, 11.6] | N81: None | O81: English | P81: arts-and-humanities | Q81: history | R81: DxrS1hcqEeammQ6NfVLBSw | S81: Non Specialization | T81: FALSE
A82: 大學之理念 (The Idea of a University) | B82: National Taiwan University | C82: Advanced | D82: 20.6 | E82: Not Calibrated | F82: https://www.coursera.org/learn/idea-of-a-university | G82: 本課程旨在探討現代大學之起源、發展及其當前問題，分析當前大學社群之內部問題，以及大學社群與非學術社群（如政治、經濟、社會部門等）之互動關係，並探討21世紀全球化時代大學的新挑戰與大學教育的新課題。 | H82: academic history; discourse analysis; medical sociologist; area studies; implementation research; veterinary professions; policy monitoring; contemporary history; healthcare proxy; intercultural communication | I82: Non Specialization | J82: Non Specialization | K82: Non Specialization | L82: Non Specialization | M82: [12.9, 24.5] | N82: None | O82: Chinese (Traditional) | P82: arts-and-humanities | Q82: history | R82: 4yVQvF9PEeq8VworBnIYMQ | S82: Non Specialization | T82: FALSE
A83: Coexistence in Medieval Spain: Jews, Christians, and Muslims | B83: University of Colorado System | C83: Beginner | D83: 19.7 | E83: 4.6 | F83: https://www.coursera.org/learn/coexistence-in-medieval-spain | G83: This course explores Jewish, Christian, and Muslim intercultural relations in Iberia from the Visigothic era (6th century CE) until the creation of Queen Isabel I and King Ferdinand II Catholic Spain (late 15th century). We evaluate the many identities of the peninsula known as Christian Hispania, Jewish Sefarad, and Islamic al-Andalus. We trace the origins and trajectory of conflict between these communities (the Muslim conquest of Spain, Christian Reconquista, prohibitions blocking intermixing of peoples, and expulsions). We aim to understand conflicts within communities as well, such as the tensions between Christian Arian Visigoths and native Catholic Iberians or the fundamentalist North African Almohad Dynasty that rejected the Spanish Umayyad Caliphate’s preference for religious tolerance. We delve into an appreciation of collaboration and coexistence among these communities. We explore the unique role of the Jewish community who Muslims and Christians depended upon as political and cultural intermediaries as well as their intellectual collaborators. We find the history of how peoples attempted to create and manage viable diverse communities. As we study this history, the Honors Track will employ an investigative process (“The Historian’s Craft”) that involves viewing, reading, analyzing, and reflecting on events, peoples, places, and artifacts. | H83: history; golden age; art; Poster Design; evaluation; Art History; middle east; Poetry Writing; historiography; music | I83: Non Specialization | J83: Non Specialization | K83: Non Specialization | L83: Non Specialization | M83: [9.4, 23.7] | N83: None | O83: English | P83: arts-and-humanities | Q83: history | R83: tw1M3SOZEeekPQ79xWJ6-A | S83: Non Specialization | T83: FALSE
A84: Диаспоры в глобальной политике | B84: Moscow State Institute of International Relations (MGIMO) / МГИМО (Московский государственный институт международных отношений МИД России) | C84: Beginner | D84: 10.4 | E84: 4.8 | F84: https://www.coursera.org/learn/diaspori-v-globalnoi-politike | G84: Курс предназначен для ознакомления обучающихся различного уровня и направлений подготовки с междисциплинарным направлением исследований, которое в зарубежной научной литературе получило наименование Diaspora Studies (диаспоральные исследования). Речь идет о функционировании в современных условиях глобальной политики сравнительно устойчивых сообществ, объединенных общим этническим или территориально-культурным происхождением. В контексте ослабления государств – с точки зрения их монополии на насилие и способность реагировать на масштабные кризисные ситуации – значение негосударственных акторов возрастает, что относится, в том числе и к диаспорам. Акцент в курсе сделан на невоенные аспекты международно-политических процессов, что отражает довольно частый спрос у обучающихся на «новые» международные темы, а не классический набор бинарных оппозиций «война и мир», «глобализация и регионализация» и тп.\nКурс нацелен на формирование у обучающихся представлений о роли диаспор в современной глобальной политике. \nВ ходе данного курса обучающиеся смогут научиться:\n- определять, что такое диаспора;\n- выбирать различные инструменты для анализа диаспор;\n- оценивать стратегии урегулирования конфликтов с ярко выраженным диаспоральным компонентом; \n- работать с данными Международной организации по миграции и других отраслевых международных организаций. | H84: methods in molecular biology; continuous optimization; Topic Model; internationalization and localization; Econometric Models; Model Selection; Document Classification; lexical databases; semantic role labeling; language identification | I84: Non Specialization | J84: Non Specialization | K84: Non Specialization | L84: Non Specialization | M84: [7.0, 12.2] | N84: None | O84: Russian | P84: arts-and-humanities | Q84: history | R84: zaZ5TfP_EemavRLbnyD9mg | S84: Non Specialization | T84: FALSE
A85: Big History: Connecting Knowledge | B85: Macquarie University | C85: Beginner | D85: 15.3 | E85: 4.7 | F85: https://www.coursera.org/learn/big-history | G85: We currently face unprecedented challenges on a global scale. These problems do not neatly fall into disciplines. They are complicated, complex, and connected. Join us on this epic journey of 13.8 billion years starting at the Big Bang and travelling through time all the way to the future. Discover the connections in our world, the power of collective learning, how our universe and our world has evolved from incredible simplicity to ever-increasing complexity. Experience our modern scientific origin story through Big History and discover the important links between past, current, and future events. You will find two different types of lectures. ‘Zooming In’ lectures from multiple specialists enable you to understand key concepts through the lens of different disciplines, whilst David Christian's ‘Big History Framework’ lectures provide the connective overview for a journey through eight thresholds of Big History. | H85: keep calm and carry on; Scaling; Geology; Critical Thinking; history; chemistry; thought; origin of life; Art History; astronomy | I85: Non Specialization | J85: Non Specialization | K85: Non Specialization | L85: Non Specialization | M85: [7.5, 19.5] | N85: Catalan; Romanian | O85: English | P85: arts-and-humanities | Q85: history | R85: EwR6zhSDEeWCWhKuhISYpw | S85: Non Specialization | T85: FALSE
A86: Russian History: from Lenin to Putin | B86: University of California, Santa Cruz | C86: Intermediate | D86: 15.1 | E86: 4.7 | F86: https://www.coursera.org/learn/russian-history-lenin-putin | G86: In this course, Peter Kenez, Professor Emeritus at UC Santa Cruz, explains the events of modern Russian history and introduces its most significant actors—from Vladimir Lenin to Vladimir Putin. | H86: interactive transcripts; Russian; history; Human Learning; error; well; foreign policy; Art History; middle east; film | I86: Non Specialization | J86: Non Specialization | K86: Non Specialization | L86: Non Specialization | M86: [10.0, 18.3] | N86: Spanish | O86: English | P86: arts-and-humanities | Q86: history | R86: 4H12VB78Eee9pAq1iMODtg | S86: Non Specialization | T86: FALSE
A87: At the Origins of the Mediterranean Civilization: Archaeology of the City from the Levant to the West - 3rd-1st millennium BC | B87: Sapienza University of Rome | C87: Intermediate | D87: 11.5 | E87: 4.4 | F87: https://www.coursera.org/learn/archaeology-city-levant-west | G87: Which are the deepest roots of that mix of cultures that we use to call ‘Mediterranean Civilization’? Which are comminglings and exchanges which produced its most complete fruit, i.e. the city, a place for landscape-modelling communities? And which elements did contribute to build up that baulk of customs, ideas, and innovations which compelled to confrontation and hybridizations different peoples for millennia? What did it made, from pottery to metallurgy, from gastronomy to architecture, from art to religion, of a sea a cradle of civilization? Archaeology may help in disentangling such questions, seeking unexpected answers , by tinkering what ancient Mediterranean peoples left buried in the ground. A privileged point of view of our course is the ancient Phoenician city of Motya, located exactly at the centre of the “sea in the middle”. Throughout the live experience of excavation, with images taken on the field, this course will let you touch the many tesserae of the great mosaic of the Mediterranean Civilization. The field diary of the archaeologist, and the handpick will be the two tools, which will lead us across the sea to discover what such early cities actually were, and how their contribute is still a major part of our shared memory. | H87: ancient greece; schedule; dwelling; Archeology; history; interpretation; evaluation; Art History; fortification; religion | I87: Non Specialization | J87: Non Specialization | K87: Non Specialization | L87: Non Specialization | M87: [6.9, 13.0] | N87: Spanish | O87: English | P87: arts-and-humanities | Q87: history | R87: uCkst_gQEeaQswpW71qb2A | S87: Non Specialization | T87: FALSE
A88: Stalin and Stalinism in Russian History | B88: National Research University Higher School of Economics | C88: Beginner | D88: 32.4 | E88: 4.6 | F88: https://www.coursera.org/learn/stalinism | G88: The course presents the life and deeds of Joseph Stalin, the leader of the Soviet Union from 1924 till 1953. It analyses the reasons for his actions and their results, as well as the causes of his popularity in Russia today. It offers an analysis of the phenomenon of Stalinism and of its significance for Russia and beyond.\n\nIn the late 1920s – early 1930s Stalin directed the massive and rapid industrialisation of the country and the forced collectivisation of its agriculture. The industrialisation was based on forced labour, and collectivisation on repression, but both helped to create the material base for the Soviet defence industry. In the late 1930s Stalin unleashed mass terror against the Soviet people, in which millions perished. In his view this helped to rid the country of any potential internal enemies on the eve of the coming war. \n\nThe USSR, together with its allies, won the Second World War, but at the cost of dozens of millions of lives. Stalin was instrumental in creating the post-war order. The system which he created in the 1930s shaped the USSR as it was during his lifetime and for decades after his death. It also influenced the lives of millions of people beyond the Soviet borders. \n\nThe course will enable those who take it to develop an informed understanding of the Stalin era and of the phenomenon of Stalinism.\n\n\nDo you have technical problems? Write to us: coursera@hse.ru | H88: death; Russian; war; history; military; Negotiation; childhood; admiration; perception; prison | I88: Non Specialization | J88: Non Specialization | K88: Non Specialization | L88: Non Specialization | M88: [22.8, 38.6] | N88: Spanish | O88: English | P88: arts-and-humanities | Q88: history | R88: AN3Z_CNZEee20hKGBTMJdA | S88: Non Specialization | T88: FALSE
A89: Contemporary Russian Literature | B89: Saint Petersburg State University | C89: Not Calibrated | D89: 25.7 | E89: 4.9 | F89: https://www.coursera.org/learn/contemporary-russian-literature | G89: We are going to talk about Contemporary literature specifically, but it doesn’t include only the literature of the most recent years. It is technically a course on the history of literature, but the history starting from the late Soviet period up until today. The goal is to show you the best writers’ names, so that you may remember them and read their works after the end of this course. The course will show you the tendencies that were developing in Russian literature in last 25 years, and finally to come to it’s present state, in this way forming a journey across the vast sea that is called Russian Literature. Good luck! | H89: Russian; risk compensation; mythology; english language; history; golden age; chemical safety; Art History; about safety; religion | I89: Non Specialization | J89: Non Specialization | K89: Non Specialization | L89: Non Specialization | M89: [17.2, 31.4] | N89: None | O89: English | P89: arts-and-humanities | Q89: history | R89: OM0q7x5TEeqI_Arg35GIcw | S89: Non Specialization | T89: FALSE
A90: Exploring Beethoven's Piano Sonatas Part 5 | B90: Curtis Institute of Music | C90: Beginner | D90: 11.6 | E90: 4.9 | F90: https://www.coursera.org/learn/exploring-beethoven-piano-sonatas-5 | G90: Welcome to Exploring Beethoven's Piano Sonatas Part 5! You’re joining thousands of learners currently enrolled in the course. I'm excited to have you in the class and look forward to your contributions to the learning community.\n\nTo begin, I recommend taking a few minutes to explore the course site. Review the material we’ll cover each week, and preview the assignments you’ll need to complete to pass the course. Click Discussions to see forums where you can discuss the course material with fellow students taking the class.\n\nIf you have questions about course content, please post them in the forums to get help from others in the course community. For technical problems with the Coursera platform, visit the Learner Help Center.\n\nGood luck as you get started, and I hope you enjoy the course! | H90: constraint inference; cerate; member variable; english language; piano; chord; soft error; strong duality; binding constraint; weak duality | I90: Non Specialization | J90: Non Specialization | K90: Non Specialization | L90: Non Specialization | M90: [7.7, 12.8] | N90: None | O90: English | P90: arts-and-humanities | Q90: history | R90: nspFRcKhEemHBw4nQRO9tg | S90: Non Specialization | T90: FALSE
A91: 史記 (Shi Ji) | B91: National Taiwan University | C91: Beginner | D91: 15.8 | E91: 5 | F91: https://www.coursera.org/learn/shiji | G91: 人文學，其特色在於「慢熱」，需要耐心細嚐、咀嚼古聖先賢的智慧結晶與其文字背後所隱含的真正意義。史記系列課程將透過對《史記》一書的導讀，引領同學們探究史學之「真」與「善」。 \n\n不管你是對中華文化感興趣者、想更深入了解傳統史學者、喜歡論理分析者、或是久仰太史公司馬遷之名之愛好者，這門課一定會讓你收穫良多。因為《史記》不僅記載了無數精彩非凡的歷史人事，更貫串了在它之前的多數古代典籍，可說是集中國上古文明精粹於一書。更重要的是，這門課程中將引導大家如何讀《史記》，進而學會如何讀中國史書、如何讀中國書。\n\n這是一場史學的思辨之旅，希望各位同學千萬不要錯過！ | H91: design science; Multimedia Design; chinese language; Architectural Techniques; computational economics; computational linguistics; semantic similarity; Architectural Problems; Environmental Graphic Design; Publication Design | I91: Non Specialization | J91: Non Specialization | K91: Non Specialization | L91: Non Specialization | M91: [9.7, 19.5] | N91: Chinese | O91: Chinese (Traditional) | P91: arts-and-humanities | Q91: history | R91: YGjPHOZYEeWGngqV7V698w | S91: Non Specialization | T91: FALSE
A92: Roman Architecture | B92: Yale University | C92: Intermediate | D92: 56.6 | E92: 4.9 | F92: https://www.coursera.org/learn/roman-architecture | G92: Roman Architecture is a course for people who love to travel and want to discover the power of architecture to shape politics, society, and culture. | H92: architectural design; wall; history; Autoregressive Conditional Heteroskedasticity; art; raw image format; Masonry; bathing; architecture; opus (audio format) | I92: Non Specialization | J92: Non Specialization | K92: Non Specialization | L92: Non Specialization | M92: [43.9, 66.3] | N92: Spanish; Chinese; Italian | O92: English | P92: arts-and-humanities | Q92: history | R92: mShQi8YfEeWg0QoHq3JjoQ | S92: Non Specialization | T92: FALSE
A93: Indigenous Canada | B93: University of Alberta | C93: Beginner | D93: 19.4 | E93: 4.7 | F93: https://www.coursera.org/learn/indigenous-canada | G93: Indigenous Canada is a 12-lesson Massive Open Online Course (MOOC) that explores Indigenous histories and contemporary issues in Canada. From an Indigenous perspective, this course explores key issues facing Indigenous peoples today from a historical and critical perspective highlighting national and local Indigenous-settler relations. Topics for the 12 lessons include the fur trade and other exchange relationships, land claims and environmental impacts, legal systems and rights, political conflicts and alliances, Indigenous political activism, and contemporary Indigenous life, art and its expressions. | H93: listening; history; Human Learning; Culture; Critical Thinking; well; art; Art History; awareness; gratitude | I93: Non Specialization | J93: Non Specialization | K93: Non Specialization | L93: Non Specialization | M93: [12.5, 22.0] | N93: None | O93: English | P93: arts-and-humanities | Q93: history | R93: jYd91UquEeWpQA4vMed_oQ | S93: Non Specialization | T93: FALSE
A94: Historia de las reglas del fútbol en Inglaterra y en Argentina | B94: Universidad Austral | C94: Intermediate | D94: 15.4 | E94: 4.7 | F94: https://www.coursera.org/learn/historia-reglas-futbol | G94: El curso es accesible para todos los aficionados al fútbol ya sean del nivel de un principiante como el de un profesional dado que describe de una manera clara y sencilla cómo se originó el fútbol en Inglaterra en el Siglo XIV y el modo en que se fueron desarrollando las reglas de juego, que comprenden la forma en que los futbolistas lo practicaban (con los pies, con las manos, con o sin arcos, el tamaño de la pelota, del campo de juego, cantidad de jugadores por lado, etc.) y las reglas de competición, que ordenan cómo se organiza una federación nacional, el formato de los campeonatos, los requisitos que deben cumplir los clubes afiliados, la fiscalización de los resultados, etc, \nLuego cómo ese sistema original de organización del fútbol, trasladado por los británicos que fueron a la Argentina a hacer negocios y a trabajar a fines del Siglo XIX, evolucionó hasta la actualidad.\nEste curso es único porque describe el origen y evolución del juego y de las estructuras deportivas que lo ordenan desde una visión jurídica pero con una perspectiva histórico sociológica que permite comprender fácilmente la peculiar especificidad del fútbol mundial tan diferente de otras expresiones deportivas modernas (ejemplo de ello es la compra y venta de jugadores de fútbol, que rememora el comercio de esclavos de la antigüedad, hoy universalmente aceptada por la sociedad). | H94: Case File Management; Professional Architect; Group Instruction; joint program in survey methodology; sociology; unos (operating system); Social Skills Instruction; Online Writing; Architectural Compliance; Legal Documentation | I94: Non Specialization | J94: Non Specialization | K94: Non Specialization | L94: Non Specialization | M94: [7.4, 19.9] | N94: None | O94: Spanish | P94: arts-and-humanities | Q94: history | R94: we2C0U9DEealsQ4S5bCf-Q | S94: Non Specialization | T94: FALSE
A95: Structuring Values in Modern China | B95: The Chinese University of Hong Kong | C95: Intermediate | D95: 15 | E95: 4.7 | F95: https://www.coursera.org/learn/structuring-values-modern-china | G95: This sequence of four courses will propose a multi-disciplinary approach to the study of Chinese cultural history conceived of as a succession of modes of rationality (philosophical, bureaucratic, and economic). The focus will be on the moments of paradigm shift from one mode of rationality to another. For each of these moments, cultural facts and artifacts—thought, literature, ritual—will be examined in relationship to changing social, political, and economic systems.\n\nThe first two courses will cover the periods of the Warring States (481-256 BCE) and the Period of Division (220-589 CE), with a brief excursion into the Han (206 BCE-220 CE). The Warring States laid the social and cultural foundations for the emergence of the imperial mode of rationality; the Period of Division saw the Buddhist “conquest” of China and the emergence of a rationality defined by the opposition of the Three Teachings to shamanism, that is, of a clear contrast between elite and popular culture.\n\nThe third and fourth courses will focus on the emergence of modern China in the Song-Yuan (960-1368) and of today’s China 1850 to the present. We will see how the modern attack on religion, redefined as "superstition", led not only to religious reform movements but also to a society in which science and the nation became the primary value systems promoted by the state.\n\nThe courses are listed below:\n\nA Critical Cultural History of China - Early China I: Intellectual Change in the Warring States and Han (481 BCE-220 CE)\nA Critical Cultural History of China - Early China II: Religious Transformation in the Period of Division (220-589 CE)\nA Critical Cultural History of China - Modern China I: Religion and Thought in the Song, Jin, and Yuan (960-1368) \nA Critical Cultural History of China - Modern China II: Structuring Values (1850-2015) | H95: usus; question answering; controlled natural language; chinese language; history; Culture; acceptance; context-free language; religion; popular culture | I95: Non Specialization | J95: Non Specialization | K95: Non Specialization | L95: Non Specialization | M95: [10.3, 18.4] | N95: None | O95: English | P95: arts-and-humanities | Q95: history | R95: IBiZ1W0pEeicFw4gaOc3_A | S95: Non Specialization | T95: FALSE
A96: America Through Foreign Eyes | B96: Rice University | C96: Beginner | D96: 10.8 | E96: 4.6 | F96: https://www.coursera.org/learn/america-through-foreign-eyes | G96: The United States has always been a source of fascination — both attraction and repulsion — for the people of France, Mexico, China, and African countries such as Nigeria, Ghana, and Sudan. "America Through Foreign Eyes" is a rich, interdisciplinary, international course that features Rice University faculty from a variety of disciplines and area studies. Focused on perceptions of America abroad, the course is a cross between World Cultures and American Studies. The course features five core modules, each covering the perceptions and interactions of particular regions with America, Americans and Americanization. | H96: gaze; intellectual; Russian; area studies; chinese language; history; Culture; Art History; opinion; public opinion | I96: Non Specialization | J96: Non Specialization | K96: Non Specialization | L96: Non Specialization | M96: [6.1, 13.6] | N96: None | O96: English | P96: arts-and-humanities | Q96: history | R96: W5EhBI5KEeWbKwo2cpwEoQ | S96: Non Specialization | T96: FALSE
A97: Burgos: Deciphering Secrets of Medieval Spain | B97: University of Colorado System | C97: Advanced | D97: 23.1 | E97: 4.2 | F97: https://www.coursera.org/learn/burgos-deciphering-secrets-medieval-spain | G97: This advanced course focuses on two primary goals: (1) appraising how Jews, Christians, and Muslims shaped the history of medieval Spain and (2) mastering the craft of Spanish paleography, the skill of identifying Spanish handwriting in the 11th- through 15th-century manuscripts. Through the lens of the medieval history of Burgos, we dedicate 75% percent of our efforts to developing pragmatic expertise in the interpretation of Carolingian/French/Gothic handwriting. \n\nSpecifically, the course explores how the royal Castilian city of Burgos influenced, and was influenced by, Jews, Christians, and Muslims. We closely evaluate the Spanish Christian Reconquest, the Plague and the 14th-century Castilian civil war, anti-Jewish pogroms, the emergence of elite conversos (Jewish converts to Christianity), and the role of the king and Roman Catholic Church in the creation of Catholic Spain. Through onsite interviews in archives and museums in Burgos, we experience the medieval city, artifacts, and manuscripts. While we teach using Spanish manuscripts, very little or no knowledge of the Spanish language is necessary to complete the course.\n\nUsing an intensive array of paleography practices, exams, independent projects, and collaborative efforts, you will garner exceptional skills that you can apply to interpreting any medieval European handwriting. To demonstrate your mastery of paleography you will (1) create a 14th-15th-century alphabet, numeral, and abbreviation guide using manuscript images, and (2) transcribe one selection from a medieval manuscript. | H97: violence; composite artifact colors; war; history; r&d management; decipherment; blood; inference; pragmatics; numbers (spreadsheet) | I97: Non Specialization | J97: Non Specialization | K97: Non Specialization | L97: Non Specialization | M97: [11.9, 32.8] | N97: None | O97: English | P97: arts-and-humanities | Q97: history | R97: _cHtPiOaEeeKwApqLpluBg | S97: Non Specialization | T97: FALSE
A98: Organising an Empire: The Assyrian Way | B98: Ludwig-Maximilians-Universität München (LMU) | C98: Beginner | D98: 17.4 | E98: 4.8 | F98: https://www.coursera.org/learn/organising-empire-assyrian-way | G98: Discover the mighty kingdom of Assyria, which came to be the world’s first great empire three thousand years ago. From the 9th to the 7th centuries BC, during the imperial phase of Assyria’s long history, modern day northern Iraq was the central region of a state reaching from the Mediterranean Sea to the Persian Gulf, and incorporating what is now Iraq, Syria, and Lebanon, as well as half of Israel, and wide parts of south-eastern Turkey, and Western Iran.\n\nIn its geographical extent, this state was unprecedentedly large, and the distinct geography of the Middle East, with deserts and high mountain ranges, posed challenges to communication and cohesion. What were the mechanisms that kept the Empire running? This course explores the methods the Assyrian government employed to ensure unity and maintain loyalty across vast distances, using traditional as well as innovative strategies. Some of these imperial techniques have marked parallels in the ways modern multi-national corporations are operating, others will strike you as profoundly alien.\n\nThis course focusses on how the Assyrians organised their empire by analysing key aspects, namely:\n\n· The CEO – the king, a religious, political and military leader, who is charged to govern by his master, the god Assur;\n\n· Home Office – the royal palace in the central region and the royal court that form the administrative centre of the state;\n\n· The Regional Managers – the governors and client-rulers to whom local power is delegated;\n\n· Human Resources – the Empire’s people are its most precious assets, its consumers and its key product, as the goal of the imperial project was to create “Assyrians”; an approach with lasting repercussions that still reverberate in the Middle East today; and finally\n\n· The Fruits of Empire – it takes a lot of effort, so what are the rewards?\n\nWhen we explore these topics we will contextualise them with information about the lives led by ordinary Assyrian families.\n\nTaking this course will provide you with an overview of the political, social, religious, and military history of the world’s first superpower. It will give you insight into the geography and climatic conditions of the Middle East and contribute to your understanding of the opportunities and challenges of that region. It will present you with a vision of the Middle East at a time when its political and religious structures were very different from today. | H98: Risk; palaces; telecommunications network; war; history; eunuch; Art History; organizing (management); historiography; middle east | I98: Non Specialization | J98: Non Specialization | K98: Non Specialization | L98: Non Specialization | M98: [11.2, 18.6] | N98: Spanish; Hungarian; Romanian | O98: English | P98: arts-and-humanities | Q98: history | R98: Icx1sO9tEeazSA5wR2W_EA | S98: Non Specialization | T98: FALSE
A99: Gabriel García Márquez entre el poder, la historia y el amor | B99: Universidad de los Andes | C99: Beginner | D99: 15.2 | E99: 4.9 | F99: https://www.coursera.org/learn/gabriel-garcia-marquez-poder-historia-amor | G99: En este curso usted podrá identificar los aportes narrativos del escritor colombiano Gabriel García Márquez a la literatura universal a través del estudio de tres de las grandes obsesiones del autor: el poder, la historia y el amor.\n\nUsted tendrá la oportunidad de gozar de la lectura de las siguientes obras: La increíble y triste historia de la cándida Eréndira y su abuela deslamada (1972), El Otoño del patriarca (1975), Crónica de una muerte anunciada (1981), El amor en los tiempos del cólera (1985), El general en su laberinto (1989) y Del amor y otros demonios (1994).\n\nAl estudiar de forma cronológica estas obras publicadas después de Cien años de soledad (1963), usted reconocerá la evolución narrativa de García Márquez.\n\nAdicionalmente, usted tendrá la oportunidad de profundizar en diferentes temas como: la novela del dictador, las particularidades de la nueva novela histórica, las influencias literarias del autor, el tema de la vejez, entre otras.\n\nFinalmente, al profundizar en el universo narrativo de García Márquez después de Macondo, usted se dejará seducir por la riqueza de su lenguaje y entenderá por qué este escritor es considerado uno de los grandes genios literarios de todos los tiempos.\n\nA través del estudio de estas obras usted:\n1. Valorará la obra de Gabriel García Márquez\n2. Apreciará la forma en que evoluciona\n3. Desarrollará la capacidad de relacionar sus diferentes obras\n4. Identificará algunos de los elementos centrales de su obra\n\nEste curso está dirigido a personas que disfrutan de la literatura y no requiere ningún tipo de conocimiento previo. \n\nSi desea conocer mejor las obras anteriores a estas como La hojarasca (1955), El coronel no tiene quien le escriba (1961), La mala hora (1962), Los funerales de la Mamá Grande (1962) y Cien años de soledad (1967) le recomendamos hacer primero el curso Leer a Macondo: la obra de Gabriel García Márquez que encuentra en este enlace: https://www.coursera.org/learn/macondo-gabriel-garcia-marquez | H99: risk compensation; shared decision-making; Human Learning; ulysses pact; wait list control group; trial and error; mental accounting; medical expenditure panel survey; decision fatigue; gabriel garcía márquez | I99: Non Specialization | J99: Non Specialization | K99: Non Specialization | L99: Non Specialization | M99: [7.3, 20.6] | N99: None | O99: Spanish | P99: arts-and-humanities | Q99: history | R99: i4lCti8mEeadCQq-_15rRQ | S99: Non Specialization | T99: FALSE
A100: Transmedia Writing | B100: Michigan State University | C100: Beginner | D100: 23.5 | E100: 4.1 | F100: https://www.coursera.org/learn/transmedia-writing | G100: Do you have a desire to write a novel, write a screenplay, design a video game? In this project-centered course you will develop your own, original, intellectual property (IP) into a transmedia project containing written versions of your IP on various platforms. You will begin your novel, adapt the first chapters of your novel into the opening scenes of a film or TV show and create a game design concept of your IP.\n\nLearner review: "So much AMAZING information! The teacher and content are wonderful. Learned so much!"\n\nThis is a course is based in "Active Learning" so that most of the actual learning takes place within your own activities - that is, writing! You will learn by doing.\n\nI am a proponent of experiential learning (also known as active learning). My lectures are short and succinct, designed in a step-by-step process essential to your success as a writer. I will guide you, I will show you how to get there, hopefully I will inspire you, but I won’t show you how to write or what to write. That is up to you, you are the only one who can illustrate your creative thoughts, by writing them! I firmly believe that the only way to become a writer is to write, write, write. You need to unleash your creativity and my plan is to help you to do exactly that!\n\nLearner review: "This is the most challenging writing course that I have done so far! But, it actually made me write the first two chapters of my novel and now, I am now looking forward to finishing the novel and getting it published."\n\nAll of the assignments on this course are peer review. At each stage of the process, whether creating your novel, your screenplay or your video game, you will post your written work and review the works of your peers. Peer review is an extremely important element of this course. Giving feedback and getting feedback is essential to the development of your critical thinking and your growth as a writer. It is as important as the writing itself.\n\nThis course is designed to tap into your creativity and help you to develop your skills in expressing that creativity through written words.\n\nLearner review: "It made me stay up to 4AM a few times, but its incredible. You will learn a lot, and it is a very fun class"\n\nWriting is a truly beautiful, amazing, satisfying thing. Imagine, putting your own words on a page to tell a story which enters your readers minds and allows them to share the thoughts, emotions and lives of your characters. It is a very rewarding experience.\n\nLearner review: "This course really pushed me to my limits and it is an eye opener for me that there are goals that I can still achieve and accomplish through the world of writing." | H100: grammar; Writing; joie de vivre; determination; Short Story Writing; screenwriting; adaptation; creative writing; dialogue; film | I100: Non Specialization | J100: Non Specialization | K100: Non Specialization | L100: Non Specialization | M100: [14.0, 30.8] | N100: Spanish | O100: English | P100: arts-and-humanities | Q100: history | R100: wIiu6ShLEeabkA6A3tuC4Q | S100: Non Specialization | T100: FALSE
A101: The Kennedy Half Century | B101: University of Virginia | C101: Beginner | D101: 9.6 | E101: 4.6 | F101: https://www.coursera.org/learn/kennedy | G101: When John F. Kennedy entered the presidential limousine at Love Field in Dallas, Texas on November 22, 1963, he began his ride into history. That journey continues even today and we call it the Kennedy legacy. \n\nThis course will explore the Presidency, assassination, and lasting legacy of President John F. Kennedy. Students will learn how JFK’s life, administration, and tragic death have influenced the general public, the media, and each of the nine U.S. presidents who followed.\n\nUnderstanding the Kennedy legacy and being able to identify elements of his legacy within the context of modern politics helps understand many of the vexing problems that developed over the last half century as well as many of the challenges that confront us today. \n \nNovember 22, 1963 was so powerful a moment that in the fifty years since the assassination, every U.S. President that followed JFK has used Kennedy’s words and actions in an effort to craft their own political image. Why does Kennedy’s influence persist, and will it continue? What are the effects? \n\nWe’ll address these questions and more as we explore The Kennedy Half Century. \n\nFollow on Twitter: @JFKclass. | H101: elections; crisis; political science; history; Causality; Leadership and Management; Critical Thinking; public administration; friendship; religion | I101: Non Specialization | J101: Non Specialization | K101: Non Specialization | L101: Non Specialization | M101: [6.8, 12.6] | N101: Spanish | O101: English | P101: arts-and-humanities | Q101: history | R101: lf2q-R6UEeSzvSIAC0KYCQ | S101: Non Specialization | T101: FALSE
A102: Feminism and Social Justice | B102: University of California, Santa Cruz | C102: Beginner | D102: 3.1 | E102: 4.8 | F102: https://www.coursera.org/learn/feminism-social-justice | G102: "Feminism and Social Justice" is an adaptation of Distinguished Professor Bettina Aptheker's long-running course at UC Santa Cruz. In the course, Professor Aptheker presents a broad definition of feminism that serves to frame three significant events in the history of feminism and social justice: the Empire Zinc strike of 1951, the 1971-1972 trial of Angela Davis, and the #metoo Movement. | H102: crime statistics; justice; analysis; history; blacklisting; social justice; art; Art History; music; film | I102: Non Specialization | J102: Non Specialization | K102: Non Specialization | L102: Non Specialization | M102: [1.6, 3.8] | N102: None | O102: English | P102: arts-and-humanities | Q102: history | R102: eFChULUZEeiYLwouRmATLA | S102: Non Specialization | T102: FALSE
A103: 中國古代歷史與人物：秦始皇（Qin Shi Huang) | B103: National Taiwan University | C103: Not Calibrated | D103: 19.9 | E103: 4.9 | F103: https://www.coursera.org/learn/qin-shi-huang | G103: 在近代以前，歷史學是培養各種領袖與人才的必備教育，因為它能夠使人對過去「稽其興壞成敗之理」（《史記‧太史公自序》）。「中國古代歷史與人物」這門課程希望回到歷史學的原點，藉由具體的事例，來探索「讀歷史到底有什麼用？」。\n\n從東周到秦漢是中國歷史上承先啟後的鉅變時期，更是一個英雄輩出、波瀾壯闊的大時代。而秦始皇正是主導這個時代，且令後世爭議不絕的歷史關鍵人物之一。本課程將利用現代歷史學的各種取徑，以原典史料為中心，結合考古成果、古代文物等，對歷史人物進行多角度的剖析，探索秦始皇及其統治集團成功和失敗的祕密究竟何在，並希望使同學藉此明瞭歷史學的功用與價值。 | H103: language and computers; controlled natural language; translation software; language documentation; chinese language; code page; character encoding; character sets; lexical databases; sbcs | I103: Non Specialization | J103: Non Specialization | K103: Non Specialization | L103: Non Specialization | M103: [14.9, 23.4] | N103: Chinese | O103: Chinese (Traditional) | P103: arts-and-humanities | Q103: history | R103: UwNrlYaGEeS8XCIACzASlQ | S103: Non Specialization | T103: FALSE
A104: The Mediterranean, a Space of Exchange (from the Renaissance to Enlightenment) | B104: Universitat de Barcelona | C104: Not Calibrated | D104: 12.7 | E104: 4.2 | F104: https://www.coursera.org/learn/mediterraneanhistory | G104: The course The Mediterranean, a Space of Exchange (from Renaissance to Enlightenment) aims to explain the Mediterranean, using history and the analysis of the past, as a space generated by routes and circulation. We consider it crucial to disclose mobility as a historical factor: a mobility comprised of four major elements, namely people, objects, ideas and practices. In our analysis of Mediterranean reality between the fifteenth and sixteenth centuries, from the Renaissance to the Enlightenment, we will pay particular attention to its western shores, an area seething with transfers and exchanges, in the social and economic spheres as well as the political and cultural, with the Iberian Peninsula, the various islands and the Italian Peninsula, all spaces of great dynamism.\n\nEl curso El Mediterráneo, espacio de intercambios (del Renacimiento a la Ilustración) quiere explicar, desde la historia y el análisis del pasado, el Mediterráneo como un espacio generado por las rutas y las circulaciones. Consideramos necesario divulgar la movilidad como factor histórico. Una movilidad centrada en cuatro grandes ámbitos: las personas, los objetos, las ideas y las prácticas. Al analizar la realidad mediterránea entre los siglos XV y XIX, del Renacimiento a la Ilustración, ponemos un foco especial en su orilla occidental, un área abocada a la transferencia y el intercambio, tanto en el ámbito social y económico como en el político y cultural, con la Península Ibérica, las islas y la Península Itálica como espacios de gran dinamismo. | H104: Writing; art; history; aphasia; late talker; vista; Critical Thinking; Collaboration; Art History; deafness | I104: Non Specialization | J104: Non Specialization | K104: Non Specialization | L104: Non Specialization | M104: [7.1, 14.0] | N104: English | O104: Spanish | P104: arts-and-humanities | Q104: history | R104: UShq4HPgEeWi0g6YoSAL-w | S104: Non Specialization | T104: FALSE
A105: The Holocaust - An Introduction (I): Nazi Germany: Ideology, The Jews and the World | B105: Tel Aviv University | C105: Not Calibrated | D105: 7 | E105: 4.8 | F105: https://www.coursera.org/learn/holocaust-introduction-1 | G105: The Holocaust was an inconceivable historical event, which forever robbed Western culture of its innocence. As civilized human beings, we fail to understand how events of such horror could have taken place, and how an idea so inhumanly warped could have spread like wildfire through an entire continent, instigating the systematic annihilation of millions of Jews.\n\nThis free online course was produced jointly by Tel Aviv University and Yad Vashem – the World Holocaust Remembrance Center. The course tracks the history of the Holocaust and has two parts. "The Holocaust - An Introduction (I): Nazi Germany: Ideology, The Jews and the World" is the first of the two courses and covers the following themes in its three weeks:\n\nWeek 1: From Hatred to Core Ideology\nWe will try to delve into Nazi ideology and the special place of Jews and Judaism in it. We will also discuss how the National Socialist Party converted the German Democracy of the Weimar Republic into a totalitarian regime within a short period of time, and its meaning for Jews and non-Jewish citizens.\n\nWeek 2: The World and the Jews in World War II\nWe will try to examine the broader contexts of the Holocaust and to place it, as part of World War 2. In this meeting we will also refer to the vital Jewish world to be found under various Nazi occupations and influences.\n\nWeek 3: The Isolation Abyss - the Perspective of the Individual\nWe will try to reveal different aspects of Jewish life in the face of the badge of shame, ghettos and segregation, as well as the formation of individual, societies’ and leader’s reactions in the face of a consistent policy of dispossession and discrimination.\n\nOnce you’ve completed this course, you can continue your learning with The Holocaust - An Introduction (II): The Final Solution (https://www.coursera.org/learn/holocaust-introduction-2/home/welcome)\n\n\nThis online course is offered in an innovative, multi-level format, comprising:\n\n* Comprehensive lectures by leading researchers from Tel Aviv University and Yad Vashem.\n* A wealth of voices and viewpoints presented by guest lecturers.\n* Numerous documents, photos, testimonies and works of art from the time of the Holocaust.\n* Novel learning experience: Crowd sourcing – involving the learners themselves in the act of collecting and shaping information, via unique, exciting online assignments.\n\nREQUIREMENTS:\nThis course is designed for anyone with an interest in the Holocaust, including students, teachers, academics and policy-makers. | H105: history; Human Learning; photography; israel; historical method; arts and humanities; Art History; holocaust; religion; nazi germany | I105: Non Specialization | J105: Non Specialization | K105: Non Specialization | L105: Non Specialization | M105: [4.5, 8.8] | N105: Polish; Hebrew; Spanish | O105: English | P105: arts-and-humanities | Q105: history | R105: VfuJSYYDEeW99gozy_2pgw | S105: Non Specialization | T105: FALSE
A106: Magic in the Middle Ages | B106: Universitat de Barcelona | C106: Beginner | D106: 12.4 | E106: 4.5 | F106: https://www.coursera.org/learn/magic-middle-ages | G106: Magical thought has always attracted human imagination. In this course we will introduce you to the Middle Ages through a wide conception of magic. Students will have an approach to medieval culture, beliefs and practices from the perspective of History and History of Science. Popular magic, as well as learned magic (alchemy, geomancy and necromancy) will be addressed. Moreover, we will also deal with how eastern practices and texts influenced western culture. In July 2016, the course will contain a brand-new module devoted to astrology. Magic in the Middle Ages offers a captivating overview of medieval society and promotes reflection about certain stereotypes associated with this period.\n\nAt the end of the course, the students:\n\na) will have overcome the usual prejudices about the Middle Ages, \nb) will be able to analyze historical documentation from the Middle Ages and recognize the most common patterns of juridical documents regarding witchcraft, and \nc) will be capable of distinguishing between popular magic and the magic of the learned people; will have a notion of which spiritual practices were allowed in medieval Europe and which ones were related to the devil, and will be aware of the link between a cultural product and the society that produced it.\n\nThis course is taught in English, although subtitles in English, Catalan and Spanish will also be provided.\n\nCOURSE SYLLABUS\n\nWeek 1. Introduction to medieval magic (Pau Castell).\n\nWeek 2. Magic & Heresy (Delfi I. Nieto-Isabel).\n\nWeek 3. From Magic to Witchcraft (Pau Castell).\n\nWeek 4. Magic in Islam (Godefroid de Callataÿ and Sébastien Moureau).\n\nWeek 5. Astrology & Geomancy (Theo Loinaz, Delfi I. Nieto-Isabel, Godefroid de Callataÿ and Blanca Villuendas).\n\n© Gemma Pellissa Prades (coord.), Delfi I. Nieto-Isabel and Joana Palau Mumany\nMagic in the Middle Ages by Gemma Pellissa Prades (coord.), Delfi I. Nieto-Isabel and Joana Palau Mumany is licensed under a Creative Commons Attribution-NonCommercial-NoDerivatives 4.0 International License. | H106: witchcraft; analysis; history; astrology; ageing; art; religion; middle age; middle east; astronomy | I106: Non Specialization | J106: Non Specialization | K106: Non Specialization | L106: Non Specialization | M106: [8.1, 14.4] | N106: Romanian; German; Chinese; Spanish | O106: English | P106: arts-and-humanities | Q106: history | R106: WRmBJpeLEeWiKgp3mpfjeQ | S106: Non Specialization | T106: FALSE
A107: Ислам: история, культура, практика (Islam: history, culture, praxis) | B107: Saint Petersburg State University | C107: Intermediate | D107: 25.1 | E107: 4.8 | F107: https://www.coursera.org/learn/islam-istoriya-kultura | G107: Данный курс поможет слушателям разобраться в тонкостях современного функционирования стран культуры ислама. Понимание культурных особенностей невозможно без знаний в области истории. Авторы познакомят учащихся с историей возникновения религиозного учения, формированием основных школ ислама, с первыми мусульманскими династиями и движениями, с правами граждан и особенностями политического устройства в арабо-мусульманских странах, а также с развитием искусства ислама. По результатам обучения слушатели будут обладать знаниями в терминологии рассматриваемой области, в области культуры и истории ислама, навыками анализа документальных источников. | H107: history; gustave le bon; conceptual framework | I107: Non Specialization | J107: Non Specialization | K107: Non Specialization | L107: Non Specialization | M107: [14.2, 28.9] | N107: None | O107: Russian | P107: arts-and-humanities | Q107: history | R107: zfZ1eLJIEee1URLG_iv35A | S107: Non Specialization | T107: FALSE
A108: Understanding Russians: Contexts of Intercultural Communication | B108: National Research University Higher School of Economics | C108: Advanced | D108: 25.2 | E108: 4.5 | F108: https://www.coursera.org/learn/intercultural-communication-russians | G108: In the course “Understanding Russians: Contexts of Intercultural Communications": we will:\n\n1)\tBuild skills in the analysis of the intercultural communication process using Russian-Western communication as an example. \n2)\tApply the knowledge of interrelations between different contexts of communication (cultural, institutional, professional, social, interpersonal, etc.) to the cultural history and national psychology of Russians.\n\nThe purpose of the course is to provide the students with a broad overview of the basic principles governing the past, the present and the future interactions between Russia and the West, with a focus on the culture and national psychology of Russians and Western Europeans.\n\nFor example, we will look at the cases when basic cultural values of Russians show up through the linguistic choices shaping language production which is consequently misattributed by Western partners. No matter what the language of intercultural communication is – Russian, or English – the meaning of many linguistic expressions may be reconstructed wrongly by the representatives of another culture.\n\nSome of the basic questions we will tackle are:\n\n•\tWhat are the concepts of culture that have the strongest influence on communication?\n•\tWhat are Russian basic cultural values and how they shape modern Russian consciousness?\n•\tWhat are the specific communication patterns of modern Russians, including those of public and electronic discourse?\n•\tWhat is important to know about communication with Russians in organizational contexts?\n\nImportantly, this course is NOT just a list of practical instructions of dos and don’ts of dealing with Russians. The course contains a substantial academic component introducing the key notions and concepts of the Theory of Communication, which will be extensively introduced throughout the first few modules of the course. These theoretical grounds will be further on used as a tool for analyzing the intercultural communications with Russians.\n\nDo you have technical problems? Write to us: coursera@hse.ru | H108: Russian; language; Culture; linguistics; interpersonal communication; Communication; Educational Programs; friendship; cross-cultural communication; intercultural communication | I108: Non Specialization | J108: Non Specialization | K108: Non Specialization | L108: Non Specialization | M108: [11.9, 36.6] | N108: None | O108: English | P108: arts-and-humanities | Q108: history | R108: Ghed6Re6Eea2RhIcpmzQWw | S108: Non Specialization | T108: FALSE
A109: Violences et religions | B109: University of Geneva | C109: Intermediate | D109: 31.6 | E109: 4.8 | F109: https://www.coursera.org/learn/violences-religions | G109: La question « violences et religions » est d’actualité, et pas seulement depuis les attentats d’Al-Qaïda ou de Daech. Pour bien la comprendre, ce cours propose de prendre du recul et de l’envisager sous un angle historique et comparatiste. Le domaine concerné étant l’espace euro-méditerranéen, ce sont essentiellement le christianisme et l’islam qui seront traités (quelques séquences sont également consacrées au judaïsme).\nNotre approche commencera avec quelques-uns des textes les plus difficiles de la Bible et du Coran puis vous entraînera dans un survol historique : christianisation de l’Europe et islamisation du monde méditerranéen, avec leurs cortèges de contraintes religieuses ; répression des hérésies, croisades, statut des minorités dans le monde arabo-musulman ; guerres de religion en Europe, puis tentatives d’établir la liberté de conscience ; l’islam moderne, et ses courants réformistes, du wahhabisme à la Nahda (Lumières) ; réflexions et défis d’aujourd’hui, avec le concours de plusieurs personnalités du monde de la philosophie, du droit, de la psychanalyse, de la théologie…\nCe cours fait appel à 25 spécialistes de Suisse, de France, de Belgique, du Canada et du Maroc. Quelques-uns s’expriment en arabe, mais la grande majorité des séquences est en français (les séquences sont intégralement sous-titrées en français et en arabe).\n\n\nObjectifs d’apprentissage généraux\nAu terme du parcours, l’étudiant(e) sera capable de :\n•\tposer le problème des liens entre violence et religion\n•\tmesurer l’intérêt d’une approche historico-critique de la question « violences et religions »\n•\ténoncer, dans leurs grandes lignes, quelques positions de penseurs chrétiens et musulmans sur la violence\n•\tidentifier les facteurs, notamment politiques, qui génèrent la violence religieuse\n•\tcomprendre comment la liberté de conscience contribue à résoudre le problème de la violence religieuse\n•\tformuler une appréciation personnelle et argumentée sur la violence dans l’histoire du christianisme et de l’islam | H109: language; bible; violence; interpretation; ascii art; mean integrated squared error; Culture; Critical Thinking; nous; religion | I109: Non Specialization | J109: Non Specialization | K109: Non Specialization | L109: Non Specialization | M109: [21.3, 37.9] | N109: Arabic | O109: French | P109: arts-and-humanities | Q109: history | R109: x6Oz5CsoEeeW5RJUyz1uFA | S109: Non Specialization | T109: FALSE
A110: Religions and Society in China | B110: National Research University Higher School of Economics | C110: Intermediate | D110: 15.5 | E110: 4.2 | F110: https://www.coursera.org/learn/religions-society-china | G110: This course provides an introduction to the study of the history, major teachings, and practices of the major Chinese religions and spiritual practices and is deigned to give conceptual tools to appreciate diverse religious practice in East. It covers the development of Buddhism, Daoism, Confucianism and wide range of popular and local religions. From historical perspective we will also explore the development of key theological, religious and philosophical doctrines as well as associated practices. An effort will be made to spend time on each tradition according to its importance to Asia as a whole. \n\nWe will explore the role of religions in politics and social relations in East and South, South East Asia and China in particular, and will analyze the origins, central teachings, divisions and branches, rituals and practices, influences on culture, and responses to modern challenges for each tradition. \n\nThe emphasis throughout the course is on the hermeneutic difficulties attendant upon the study of religion in general, and Asian religions in particular. We will explore new Asian religions as dynamic, ongoing forces in the lives of individuals and in the collective experience of modern societies.\n\nDo you have technical problems? Write to us: coursera@hse.ru | H110: mythology; history; chinese language; immortality; Influencing; doctrine; art; philosophy; religion; sources | I110: Non Specialization | J110: Non Specialization | K110: Non Specialization | L110: Non Specialization | M110: [5.6, 21.6] | N110: Romanian | O110: English | P110: arts-and-humanities | Q110: history | R110: EWNSlDOeEeaM_Qrev0-7TQ | S110: Non Specialization | T110: FALSE
A111: Getting Started with Essay Writing | B111: University of California, Irvine | C111: Intermediate | D111: 12.9 | E111: 4.6 | F111: https://www.coursera.org/learn/getting-started-with-essay-writing | G111: Course 2: Getting Started with Essay Writing\n\nThis is the second course in the Academic English: Writing specialization. By introducing you to three types of academic essays, this course will especially help prepare you for work in college classes, but anyone who wants to improve his or her writing skills can benefit from this course.\n\nAfter completing this course, you will be able to:\n - create effective thesis statements for your essays\n - plan and write compare/contrast, cause/effect, and argument essays\n - write well-developed body paragraphs\n\nNote: The lectures and practice activities are available for free, but you must upgrade to the pay version in order to take the quizzes and get feedback on writing assignments. | H111: grammar; Writing; interest; essay writing; english grammar; english language; academic writing; creative writing; SPSS; psychology | I111: Academic English: Writing | J111: 2 | K111: https://www.coursera.org/specializations/academic-english | L111: The skills taught in this Specialization will empower you to succeed in any college-level course or professional field. You’ll learn to conduct rigorous academic research and to express your ideas clearly in an academic format. In the final Capstone Project, all the knowledge that you’ve gained over the span of these courses will culminate into an academic research paper on an issue of your choice. | M111: [8.1, 15.8] | N111: Spanish; Arabic | O111: English | P111: arts-and-humanities | Q111: music-and-art | R111: HbD0pCZVEeW6YBLN1oULHQ | S111: _DKB-EeMEeWpwg5iaKtymQ | T111: FALSE
A112: Introduction to Research for Essay Writing | B112: University of California, Irvine | C112: Intermediate | D112: 9.4 | E112: 4.7 | F112: https://www.coursera.org/learn/introduction-to-research-for-essay-writing | G112: Course 4: Introduction to Research for Essay Writing\n\nThis is the last course in the Academic Writing specialization before the capstone project. By the end of this course, you will be able to complete all the steps in planning a research paper.\n\nAfter completing this course, you will be able to:\n - choose appropriate research topics for college classes\n - write detailed outlines for research papers\n - find source material for research papers\n - take and organize good notes for research\n - use appropriate academic tone and language\n - document sources by creating a Works Cited list in MLA format\n - avoid plagiarizing your sources | H112: Note Taking; grammar; Writing; formal language; english grammar; english language; essay writing; college; academic writing; sources | I112: Academic English: Writing | J112: 4 | K112: https://www.coursera.org/specializations/academic-english | L112: The skills taught in this Specialization will empower you to succeed in any college-level course or professional field. You’ll learn to conduct rigorous academic research and to express your ideas clearly in an academic format. In the final Capstone Project, all the knowledge that you’ve gained over the span of these courses will culminate into an academic research paper on an issue of your choice. | M112: [5.4, 11.9] | N112: Hindi; Spanish; Persian | O112: English | P112: arts-and-humanities | Q112: music-and-art | R112: 7Sx79iWNEeWs4gorU6Q1Yw | S112: _DKB-EeMEeWpwg5iaKtymQ | T112: FALSE
A113: Pixel Art for Video Games | B113: Michigan State University | C113: Intermediate | D113: 17.7 | E113: 3.8 | F113: https://www.coursera.org/learn/pixel-art-video-games | G113: This course is aimed to give you the tools and knowledge you need to start creating simple art for video games made in the Unity game engine. Through the aesthetic of pixel art we will explore artistic principals like shape language, color theory, and composition as well as show you a step by step workflow for creating assets that you can use to make your own games. The course is broken into 4 main modules, props, environments, characters, and animation. Each of these courses will have a series of video lessons alternating between artistic and technical skills culminating in a peer-reviewed project based assignment. The last module will challenge you to take the knowledge learned in the previous 4 and use it to create your own pixel art asset pack.\n\nThis course is aimed at art novices who are interested in creating art for their own games or contributing to game projects. If you are a game designer or programmer, you will find this course helps give you a glimpse into the world of game art. You will be able to better work with artists, or create your own prototype or final artwork. If you are an artist or visual designer who is interested in bringing your style to the world of video game development, this course will give you the workflow to properly interface with a game engine and help contextualize how your artistic sensibilities can enable gameplay.\n\nIf you have ever wanted to start making art for video games but have no idea how to start, this course is the perfect for giving you a solid foundation while teaching you usable practical skills. Our goal is to give you a sense of the whole pipeline from creation to setting up in a game engine. | H113: zbrush; game design; pixel art; pixel; video game development; Color Theory; art; adobe photoshop; computer animation; asset | I113: Art for Games | J113: 1 | K113: https://www.coursera.org/specializations/art-for-games | L113: In this beginner focused specialization we will show you the essentials of 2d and 3d game art production as well as concept art for games and current gen game art workflow. While each of the four courses will build your knowledge of the practice of game art, each module is a self contained unit designed to teach a specific area.\n\nBy the end of the Specialization, you will have a thorough knowledge of the creation of high-quality game art assets. Through these courses, you will be using Maya, Unity, Photoshop, Sketchup, ZBrush, Marmoset Toolbag, and Substance Painter. | M113: [12.4, 21.0] | N113: None | O113: English | P113: arts-and-humanities | Q113: music-and-art | R113: uIroEhfpEeiB3A7OOgvs1g | S113: 6TzPpmhbEemJGA6VEWsGHg | T113: FALSE
A114: Low Poly Art For Video Games | B114: Michigan State University | C114: Advanced | D114: 22.4 | E114: 3.8 | F114: https://www.coursera.org/learn/low-poly-art-video-games | G114: This course is aimed to give you the tools and knowledge you need to start creating simple 3D art for video games made in the Unity game engine. Through the aesthetic of pixel art we will explore artistic principals like shape language, color theory, and composition as well as show you a step by step workflow for creating assets that you can use to make your own games. The course is broken into 4 main modules, props, environments, characters, and animation. Each of these courses will have a series of video lessons alternating between artistic and technical skills culminating in a peer-reviewed project based assignment. The last module will challenge you to take the knowledge learned in the previous 4 and use it to create your own pixel art asset pack.\n\nThis course is aimed at art novices who are interested in creating art for their own games or contributing to game projects. If you are a game designer or programmer, you will find this course helps give you a glimpse into the world of game art. You will be able to better work with artists, or create your own prototype or final artwork. If you are an artist or visual designer who is interested in bringing your style to the world of video game development, this course will give you the workflow to properly interface with a game engine and help contextualize how your artistic sensibilities can enable gameplay.\n\nIf you have ever wanted to start making art for video games but have no idea how to start, this course is the perfect for giving you a solid foundation while teaching you usable practical skills. Our goal is to give you a sense of the whole pipeline from creation to setting up in a game engine. | H114: game mechanics; game engine; rockbox; pixel art; adobe photoshop; low poly; mod (video gaming); redos; computer animation; asset | I114: Art for Games | J114: 2 | K114: https://www.coursera.org/specializations/art-for-games | L114: In this beginner focused specialization we will show you the essentials of 2d and 3d game art production as well as concept art for games and current gen game art workflow. While each of the four courses will build your knowledge of the practice of game art, each module is a self contained unit designed to teach a specific area.\n\nBy the end of the Specialization, you will have a thorough knowledge of the creation of high-quality game art assets. Through these courses, you will be using Maya, Unity, Photoshop, Sketchup, ZBrush, Marmoset Toolbag, and Substance Painter. | M114: [12.2, 31.0] | N114: None | O114: English | P114: arts-and-humanities | Q114: music-and-art | R114: xNL0TVkTEei-TBLgOSj5Og | S114: 6TzPpmhbEemJGA6VEWsGHg | T114: FALSE
A115: Current Gen 3D Game Prop Production | B115: Michigan State University | C115: Advanced | D115: 16.9 | E115: 4.8 | F115: https://www.coursera.org/learn/3d-game-prop-production | G115: In this course you will learn to create a photo-real game prop using modern game art production techniques. You will gather reference, generate a base model, create a high polygon model, bake details onto a low poly model, and then texture and present a final portfolio piece. This course is aimed at students who have some knowledge in 3d and game art and would like to learn more advanced techniques employed in the creation of modern game assets. We will be using Maya, Zbrush, Marmoset, and Substance Painter extensively throughout the course. When you are finished you will have your own model based of of a real-world prop suitable for use in modern game engines. | H115: baking; polygon mesh; modeling; subdivision surface; box modeling; low poly; uv mapping; Map; high-resolution scheme; Geometry | I115: Art for Games | J115: 3 | K115: https://www.coursera.org/specializations/art-for-games | L115: In this beginner focused specialization we will show you the essentials of 2d and 3d game art production as well as concept art for games and current gen game art workflow. While each of the four courses will build your knowledge of the practice of game art, each module is a self contained unit designed to teach a specific area.\n\nBy the end of the Specialization, you will have a thorough knowledge of the creation of high-quality game art assets. Through these courses, you will be using Maya, Unity, Photoshop, Sketchup, ZBrush, Marmoset Toolbag, and Substance Painter. | M115: [6.6, 21.7] | N115: None | O115: English | P115: arts-and-humanities | Q115: music-and-art | R115: 2v9qtlkUEeiRYBKSsYzhZg | S115: 6TzPpmhbEemJGA6VEWsGHg | T115: FALSE
A116: Concept Art for Video Games | B116: Michigan State University | C116: Beginner | D116: 10.6 | E116: 4.5 | F116: https://www.coursera.org/learn/concept-art-video-games | G116: In this course we will talk about Concept Art. As a final project we will create a fully finished environment concept, ready for presentation. Throughout the 4 week modules will dive deeply into composition and digital painting techniques to bring your art skills to the next level! So, let's get started! | H116: joie de vivre; denominación de origen; gustave le bon; minc; adobe photoshop; art; computer animation; edward de bono; sketchup; film | I116: Art for Games | J116: 4 | K116: https://www.coursera.org/specializations/art-for-games | L116: In this beginner focused specialization we will show you the essentials of 2d and 3d game art production as well as concept art for games and current gen game art workflow. While each of the four courses will build your knowledge of the practice of game art, each module is a self contained unit designed to teach a specific area.\n\nBy the end of the Specialization, you will have a thorough knowledge of the creation of high-quality game art assets. Through these courses, you will be using Maya, Unity, Photoshop, Sketchup, ZBrush, Marmoset Toolbag, and Substance Painter. | M116: [6.1, 13.3] | N116: None | O116: English | P116: arts-and-humanities | Q116: music-and-art | R116: byYNTFkVEei-TBLgOSj5Og | S116: 6TzPpmhbEemJGA6VEWsGHg | T116: FALSE
A117: What is news? | B117: Michigan State University | C117: Beginner | D117: 11.4 | E117: 4.7 | F117: https://www.coursera.org/learn/what-is-news | G117: This course will guide you through the basic elements of professional journalism and the news values and ethics of covering real-world issues and events. The overview and examples of the types of news coverage helps introduce the different types of journalism, such as social media, multimedia, print, visual and broadcast, and how professional journalists effectively use each format. | H117: news; ethics; Writing; Journalism; network news transfer protocol; Photojournalism; propaganda; News Writing; credibility; audience | I117: Become a Journalist: Report the News! | J117: 1 | K117: https://www.coursera.org/specializations/become-a-journalist | L117: This Specialization will develop and enhance your understanding of the global field of journalism. You'll learn best practices and ethical standards for newsgathering processes and compiling a news report through hands-on projects, peer-to-peer feedback, and issue exploration. You will also study journalism's impact on societal issues and trends, plus explore career opportunities in newspapers, magazine, social media, Internet multimedia, television, radio, corporate and community journalism. The final Capstone project will guide you through the journalistic portfolio process, where you will conceptualize, report and complete a professional-quality news report. | M117: [7.1, 13.9] | N117: Greek; Arabic | O117: English | P117: arts-and-humanities | Q117: music-and-art | R117: 6Fa6w3EjEeWbbw5cIAKQrw | S117: V8ODvrL5EeW3mhLW1_Ertw | T117: FALSE
A118: Gathering and Developing the News | B118: Michigan State University | C118: Intermediate | D118: 8.6 | E118: 4.7 | F118: https://www.coursera.org/learn/gathering-the-news | G118: Journalists develop information through interviews and sources. The most successful journalists quickly master these important skill sets. The production of journalism relies on several elements: newsgathering, interviewing sources, researching and trying to find as much information as possible. The course will also teach you how to where to find information, interviewing skills and how to process information from various sources for publication. | H118: news; resource; sink; Journalism; constructive journalism; network news transfer protocol; interview; quotation; Social Media; sources | I118: Become a Journalist: Report the News! | J118: 2 | K118: https://www.coursera.org/specializations/become-a-journalist | L118: This Specialization will develop and enhance your understanding of the global field of journalism. You'll learn best practices and ethical standards for newsgathering processes and compiling a news report through hands-on projects, peer-to-peer feedback, and issue exploration. You will also study journalism's impact on societal issues and trends, plus explore career opportunities in newspapers, magazine, social media, Internet multimedia, television, radio, corporate and community journalism. The final Capstone project will guide you through the journalistic portfolio process, where you will conceptualize, report and complete a professional-quality news report. | M118: [5.3, 10.8] | N118: None | O118: English | P118: arts-and-humanities | Q118: music-and-art | R118: 893hvnH8EeWLqw7zlLhRzQ | S118: V8ODvrL5EeW3mhLW1_Ertw | T118: FALSE
A119: Effectively delivering the news to your audience | B119: Michigan State University | C119: Intermediate | D119: 7.6 | E119: 4.8 | F119: https://www.coursera.org/learn/deliver-the-news | G119: Being a successful journalist is more than hunting down information. How journalists process the information, then put it together, are key steps for news reports. You will learn the process, planning, requirements of how journalists develop their news reports. There are many ways to report news reports, and you will learn different forms of how to perform reporting and writing to serve different audiences. This course also explains the different formats within journalism, beyond the written word and how they are best utilized. | H119: news; Journalism; Writing; want; securities research; network news transfer protocol; quotation; multimedia; audience; numbers (spreadsheet) | I119: Become a Journalist: Report the News! | J119: 3 | K119: https://www.coursera.org/specializations/become-a-journalist | L119: This Specialization will develop and enhance your understanding of the global field of journalism. You'll learn best practices and ethical standards for newsgathering processes and compiling a news report through hands-on projects, peer-to-peer feedback, and issue exploration. You will also study journalism's impact on societal issues and trends, plus explore career opportunities in newspapers, magazine, social media, Internet multimedia, television, radio, corporate and community journalism. The final Capstone project will guide you through the journalistic portfolio process, where you will conceptualize, report and complete a professional-quality news report. | M119: [4.7, 9.2] | N119: None | O119: English | P119: arts-and-humanities | Q119: music-and-art | R119: Kz1Vwnd_EeWKsgrp3VnvAw | S119: V8ODvrL5EeW3mhLW1_Ertw | T119: FALSE
A120: Journalism, the future, and you! | B120: Michigan State University | C120: Intermediate | D120: 15.5 | E120: 4.8 | F120: https://www.coursera.org/learn/international-journalism | G120: You will learn about the career paths that are available in journalism, and what opportunities the skill sets of a journalist can offer in other fields. You will explore areas such as being an international correspondent, self-publishing in journalism, as well as how to freelance in the field. You will be empowered to develop your own path in journalism, from being an active and informed consumer, to being a journalist.\n\nThe worlds of business, communications, politics, education and marketing all utilize elements of journalism. This course also examines how to keep the trust of audiences through ethical, and responsible, journalistic practices. Sometimes, journalists need to be aware of their own safety. We will intelligently discuss how journalists around the world handle pressure, threats and other dangers while doing their jobs.\n\nJournalism - and journalists - are agents of change. Are you ready to become one too? | H120: resource; news; Journalism; constructive journalism; network news transfer protocol; well; violent crime; home; usn journal; self-interest | I120: Become a Journalist: Report the News! | J120: 4 | K120: https://www.coursera.org/specializations/become-a-journalist | L120: This Specialization will develop and enhance your understanding of the global field of journalism. You'll learn best practices and ethical standards for newsgathering processes and compiling a news report through hands-on projects, peer-to-peer feedback, and issue exploration. You will also study journalism's impact on societal issues and trends, plus explore career opportunities in newspapers, magazine, social media, Internet multimedia, television, radio, corporate and community journalism. The final Capstone project will guide you through the journalistic portfolio process, where you will conceptualize, report and complete a professional-quality news report. | M120: [9.6, 19.3] | N120: None | O120: English | P120: arts-and-humanities | Q120: music-and-art | R120: goJ9vXd_EeWtpg5GoAM5Iw | S120: V8ODvrL5EeW3mhLW1_Ertw | T120: FALSE
A121: Capstone: Create your own professional journalistic portfolio | B121: Michigan State University | C121: Beginner | D121: 11.5 | E121: 4.8 | F121: https://www.coursera.org/learn/become-a-journalist-capstone | G121: This is it! It is time for YOU to be the journalist, and practice and display the skills you have learned through this Specialization journey. You will create your own professional journalistic portfolio, culminating in the creation of your own news report from start to finish. You will go through all the steps and skills used by professional journalists: conceptualizing a news report idea, reporting, interviewing, researching, and then compiling the information for an audience. Your learner community, along with the Michigan State Journalism team, will be with you every step of the way. Having a professional portfolio will help you market yourself as a journalist, showing off your work product, as well as practice and hone your journalistic skill set. You will receive an exclusive premium "Journalism" badge for social media, to display your Capstone completion. | H121: ethics; Journalism; Writing; constructive journalism; evolution; network news transfer protocol; Communication; opinion; sources; News Writing | I121: Become a Journalist: Report the News! | J121: 5 | K121: https://www.coursera.org/specializations/become-a-journalist | L121: This Specialization will develop and enhance your understanding of the global field of journalism. You'll learn best practices and ethical standards for newsgathering processes and compiling a news report through hands-on projects, peer-to-peer feedback, and issue exploration. You will also study journalism's impact on societal issues and trends, plus explore career opportunities in newspapers, magazine, social media, Internet multimedia, television, radio, corporate and community journalism. The final Capstone project will guide you through the journalistic portfolio process, where you will conceptualize, report and complete a professional-quality news report. | M121: [6.8, 13.0] | N121: None | O121: English | P121: arts-and-humanities | Q121: music-and-art | R121: 1AAvk3H7EeWIfhKr_WcYsQ | S121: V8ODvrL5EeW3mhLW1_Ertw | T121: FALSE
A122: Creative Writing: The Craft of Plot | B122: Wesleyan University | C122: Beginner | D122: 11.9 | E122: 4.6 | F122: https://www.coursera.org/learn/craft-of-plot | G122: In this course aspiring writers will be introduced to perhaps the most elemental and often the most challenging element of story: plot. We will learn what keeps it moving, how it manipulates our feelings, expectations, and desires. We will examine the choices storytellers make to snag our imaginations, drag them into a fictional world, and keep them there. We will learn how to outline and structure a plot, discuss narrative arc, pacing and reversals and reveal the inevitable surprise: connecting the beginning, middle and end. | H122: Writing; Fiction Writing; thought; editing; Human Learning; Short Story Writing; well; Creativity; creative writing; dialogue | I122: Creative Writing | J122: 1 | K122: https://www.coursera.org/specializations/creative-writing | L122: This Specialization covers elements of three major creative writing genres: short story, narrative essay, and memoir. You will master the techniques that good writers use to compose a bracing story, populated with memorable characters in an interesting setting, written in a fresh descriptive style. You will analyze and constructively evaluate peer writing. In the Capstone, you will draft, rewrite, and complete a substantial original story in the genre of your choosing.\n\nOur courses are designed for anyone from the aspiring short story writer to established novelist. Whether you have a finished novel sitting on your desk calling for a fresh look or have had the germ of an idea for a decade, this Specialization gives you tools to achieve your goal. Through 4 courses focused on a key aspect of writing, and taken in any order you choose, you will develop a stronger ability to not only refine your writing, but critique writing in general and find inspiration in the works you are already reading.\n\nThanks to our sponsors, upon completion of their first assignment, learners in each course will receive up to an 80% discount from Write-Bros and a 30% discount off their first purchase from Scrivener to use on their writing software. Additionally, learners who complete an assignment will receive 30% off membership at the online writing community Scribophile. For more information about our partners, see the FAQ below. | M122: [8.1, 14.3] | N122: French | O122: English | P122: arts-and-humanities | Q122: music-and-art | R122: 3KNgoXgcEeWrAxJQXw-8PQ | S122: Z3IV2rMAEeW3mhLW1_Ertw | T122: FALSE
A123: Creative Writing: The Craft of Character | B123: Wesleyan University | C123: Intermediate | D123: 11.7 | E123: 4.5 | F123: https://www.coursera.org/learn/craft-of-character | G123: At the center of a good story are the characters in it. In this course aspiring writers will discover how to build and bring to life complex, vivid and unforgettable characters. We will study the choices a writer makes to bring all characters to life on the page, and we will perform written exercises in order to develop a variety of writing and pre-writing techniques, in order to create a variety of characters. We will learn how to use our own life experiences, and the people we know (and how not to!). We will develop inner (thoughts and feelings) and outer (appearance, habits, behavior) lives for our characters and see how that can lead us to richer and more interesting stories. We will breathe life into our characters and let them surprise us. | H123: Fiction Writing; Writing; Human Learning; pov-ray; well; Short Story Writing; Drama; Creativity; creative writing; dialogue | I123: Creative Writing | J123: 2 | K123: https://www.coursera.org/specializations/creative-writing | L123: This Specialization covers elements of three major creative writing genres: short story, narrative essay, and memoir. You will master the techniques that good writers use to compose a bracing story, populated with memorable characters in an interesting setting, written in a fresh descriptive style. You will analyze and constructively evaluate peer writing. In the Capstone, you will draft, rewrite, and complete a substantial original story in the genre of your choosing.\n\nOur courses are designed for anyone from the aspiring short story writer to established novelist. Whether you have a finished novel sitting on your desk calling for a fresh look or have had the germ of an idea for a decade, this Specialization gives you tools to achieve your goal. Through 4 courses focused on a key aspect of writing, and taken in any order you choose, you will develop a stronger ability to not only refine your writing, but critique writing in general and find inspiration in the works you are already reading.\n\nThanks to our sponsors, upon completion of their first assignment, learners in each course will receive up to an 80% discount from Write-Bros and a 30% discount off their first purchase from Scrivener to use on their writing software. Additionally, learners who complete an assignment will receive 30% off membership at the online writing community Scribophile. For more information about our partners, see the FAQ below. | M123: [8.0, 14.0] | N123: German; Spanish | O123: English | P123: arts-and-humanities | Q123: music-and-art | R123: 9a6pC3gcEeWxvQr3acyajw | S123: Z3IV2rMAEeW3mhLW1_Ertw | T123: FALSE
A124: Creative Writing: The Craft of Setting and Description | B124: Wesleyan University | C124: Intermediate | D124: 11.6 | E124: 4.7 | F124: https://www.coursera.org/learn/craft-of-setting-and-description | G124: In this course aspiring writers will be introduced to the techniques that masters of fiction use to ground a story in a concrete world. From the most realist settings to the most fantastical, writers will learn how to describe the physical world in sharp, sensory detail. We will also learn how to build credibility through research, and to use creative meditation exercises to deepen our own understanding of our story worlds, so that our readers can see all that we imagine. | H124: Writing; copywriting; Human Learning; Copy Editing; Fiction Writing; Short Story Writing; meditation; screenwriting; Drama; creative writing | I124: Creative Writing | J124: 3 | K124: https://www.coursera.org/specializations/creative-writing | L124: This Specialization covers elements of three major creative writing genres: short story, narrative essay, and memoir. You will master the techniques that good writers use to compose a bracing story, populated with memorable characters in an interesting setting, written in a fresh descriptive style. You will analyze and constructively evaluate peer writing. In the Capstone, you will draft, rewrite, and complete a substantial original story in the genre of your choosing.\n\nOur courses are designed for anyone from the aspiring short story writer to established novelist. Whether you have a finished novel sitting on your desk calling for a fresh look or have had the germ of an idea for a decade, this Specialization gives you tools to achieve your goal. Through 4 courses focused on a key aspect of writing, and taken in any order you choose, you will develop a stronger ability to not only refine your writing, but critique writing in general and find inspiration in the works you are already reading.\n\nThanks to our sponsors, upon completion of their first assignment, learners in each course will receive up to an 80% discount from Write-Bros and a 30% discount off their first purchase from Scrivener to use on their writing software. Additionally, learners who complete an assignment will receive 30% off membership at the online writing community Scribophile. For more information about our partners, see the FAQ below. | M124: [8.0, 13.6] | N124: None | O124: English | P124: arts-and-humanities | Q124: music-and-art | R124: EZVzungdEeWi0g6YoSAL-w | S124: Z3IV2rMAEeW3mhLW1_Ertw | T124: FALSE
A125: Creative Writing: The Craft of Style | B125: Wesleyan University | C125: Intermediate | D125: 11.6 | E125: 4.7 | F125: https://www.coursera.org/learn/craft-of-style | G125: Your style is as unique and distinctive as your face, your voice, except that you can choose it, you can can work on it, enhance it. In this course we will introduce aspiring writers to the art of putting pressure on written language. We will study the use of metaphor and imagery, and demonstrate how clarity, grace, and inventiveness in word choice are imperative to a story’s success. Writers will emerge with the revision skills essential to all writers of good stories and good prose. | H125: Writing; concreteness; language; copywriting; Fiction Writing; Copy Editing; Short Story Writing; cleanliness; Drama; creative writing | I125: Creative Writing | J125: 4 | K125: https://www.coursera.org/specializations/creative-writing | L125: This Specialization covers elements of three major creative writing genres: short story, narrative essay, and memoir. You will master the techniques that good writers use to compose a bracing story, populated with memorable characters in an interesting setting, written in a fresh descriptive style. You will analyze and constructively evaluate peer writing. In the Capstone, you will draft, rewrite, and complete a substantial original story in the genre of your choosing.\n\nOur courses are designed for anyone from the aspiring short story writer to established novelist. Whether you have a finished novel sitting on your desk calling for a fresh look or have had the germ of an idea for a decade, this Specialization gives you tools to achieve your goal. Through 4 courses focused on a key aspect of writing, and taken in any order you choose, you will develop a stronger ability to not only refine your writing, but critique writing in general and find inspiration in the works you are already reading.\n\nThanks to our sponsors, upon completion of their first assignment, learners in each course will receive up to an 80% discount from Write-Bros and a 30% discount off their first purchase from Scrivener to use on their writing software. Additionally, learners who complete an assignment will receive 30% off membership at the online writing community Scribophile. For more information about our partners, see the FAQ below. | M125: [8.1, 13.8] | N125: French | O125: English | P125: arts-and-humanities | Q125: music-and-art | R125: xtpKLngcEeWrAxJQXw-8PQ | S125: Z3IV2rMAEeW3mhLW1_Ertw | T125: FALSE
A126: Capstone: Your Story | B126: Wesleyan University | C126: Beginner | D126: 12.9 | E126: 4.6 | F126: https://www.coursera.org/learn/story-writing-project | G126: Everything comes together in the Capstone. You will draft a complete story, narrative essay, or memoir of 8–15 pages. With the advice of your peer readers, you will revise, rewrite, and complete it. The skills you’ve learned of plotting, setting, physical description, characterization, and stylistic clarity and innovation will culminate in an original work of art all your own. We’ll discuss the steps that professional writers take to bring their work into the public world. Along the way you’ll learn the patient habits of revision that make up the writer’s life. | H126: grammar; Writing; Fiction Writing; copywriting; Short Story Writing; screenwriting; Drama; creative writing; dialogue; criticism | I126: Creative Writing | J126: 5 | K126: https://www.coursera.org/specializations/creative-writing | L126: This Specialization covers elements of three major creative writing genres: short story, narrative essay, and memoir. You will master the techniques that good writers use to compose a bracing story, populated with memorable characters in an interesting setting, written in a fresh descriptive style. You will analyze and constructively evaluate peer writing. In the Capstone, you will draft, rewrite, and complete a substantial original story in the genre of your choosing.\n\nOur courses are designed for anyone from the aspiring short story writer to established novelist. Whether you have a finished novel sitting on your desk calling for a fresh look or have had the germ of an idea for a decade, this Specialization gives you tools to achieve your goal. Through 4 courses focused on a key aspect of writing, and taken in any order you choose, you will develop a stronger ability to not only refine your writing, but critique writing in general and find inspiration in the works you are already reading.\n\nThanks to our sponsors, upon completion of their first assignment, learners in each course will receive up to an 80% discount from Write-Bros and a 30% discount off their first purchase from Scrivener to use on their writing software. Additionally, learners who complete an assignment will receive 30% off membership at the online writing community Scribophile. For more information about our partners, see the FAQ below. | M126: [9.3, 14.8] | N126: None | O126: English | P126: arts-and-humanities | Q126: music-and-art | R126: K6ho2ngdEeWi0g6YoSAL-w | S126: Z3IV2rMAEeW3mhLW1_Ertw | T126: FALSE
A127: Developing Your Musicianship | B127: Berklee College of Music | C127: Intermediate | D127: 17.1 | E127: 4.8 | F127: https://www.coursera.org/learn/develop-your-musicianship | G127: Learn the basic concepts and approaches needed to understand, create, and perform contemporary music.\n\nIf you have a passion for music and are curious about how it works, or if you are a musician who learned to play by ear without formal study, this course will provide you with an engaging introduction to key concepts and approaches needed to understand, create, and perform contemporary music. Taught by Berklee College of Music professor George W. Russell, Jr., the course includes six lessons that delve into harmony and ear training—two areas of intensive focus for every entering Berklee student. \n\nThe course will teach you the major scale and minor pentatonic scale, and how they are constructed. You will learn what intervals are, how to sing them, and how to find them in music. The course explores tonal centers and how to find the key a song is in, in addition to common time signatures such as 4/4 and 3/4. You will learn how to build chords—major and minor triads, and major and dominant seventh chords—and how to build a common chord progression—the I IV V. You will also learn how to recognize the blues and AABA song forms, and write a basic chord sheet to express your song ideas. \n\nIn addition to the video lectures, each lesson features Berklee student performances and interviews. The students share their musical journey and offer advice for those wanting to study music. The course culminates with an assignment that asks you to compose and perform a riff blues tune using the minor pentatonic scale. Above all, the course is designed to share the joy of creating music and sharing it with others.\n\nSamy Elgazzar, a graduate of Berklee College of Music and a successful composer, will be your Teaching Assistant (TA) for the course. | H127: Scaling; gauss markov theorem; ear; Training; piano; chord; jazz; signature; harmony; music | I127: Developing Your Musicianship | J127: 1 | K127: https://www.coursera.org/specializations/musicianship-specialization | L127: Nurture your love for, and understanding of, music with this specialization. Learn the fundamentals of music theory, including major and minor tonalities, chord scales, song forms, and chord qualities. You’ll also practice training your ear to hear and recognize various intervals, chord progressions, and chord qualities. For the Capstone project, you will directly apply the knowledge you’ve gained to write and perform a short musical composition. This specialization begins with the basics of music and builds to more advanced concepts, providing you the knowledge you need to improve your skills as a musician. | M127: [10.2, 19.5] | N127: Lithuanian; Chinese; Spanish; Ukrainian; Portuguese | O127: English | P127: arts-and-humanities | Q127: music-and-art | R127: pkE92hJhEearKQowajWNkQ | S127: fqiWw0nNEeaRwQoJx4fxEw | T127: FALSE
A128: Musicianship: Chord Charts, Diatonic Chords, and Minor Keys | B128: Berklee College of Music | C128: Advanced | D128: 13.2 | E128: 4.8 | F128: https://www.coursera.org/learn/musicianship-chords | G128: After a tremendous response from learners on Coursera, Berklee Online has created a Developing Your Musicianship specialization, and this course is the second course in the series. If you have a basic knowledge of music theory or if you have completed Developing Your Musicianship I, this course will continue to help you understand key musical concepts, enabling you to create and perform contemporary music. Taught by Berklee College of Music professor George W. Russell, Jr., the course includes four lessons that delve into the next level of harmony and ear training. \n\nThe course will introduce you to new key signatures, including minor tonalities, and how they are constructed. You will train your ear to hear minor intervals and 7th chords. You will learn how to build 7th chords, and how to build common chord progressions. You will also learn the major pentatonic scale and how to construct melodies using this scale. \n\nThe course culminates with an assignment that asks you to compose and perform an 8-measure composition using popular chord progressions and the Major pentatonic scale. Just like Developing Your Musicianship I, the course is designed to impart the joy of creating music and sharing it with others. | H128: Chart; ear; Writing; Training; g-code; Scaling; chord; piano; jazz; music | I128: Developing Your Musicianship | J128: 2 | K128: https://www.coursera.org/specializations/musicianship-specialization | L128: Nurture your love for, and understanding of, music with this specialization. Learn the fundamentals of music theory, including major and minor tonalities, chord scales, song forms, and chord qualities. You’ll also practice training your ear to hear and recognize various intervals, chord progressions, and chord qualities. For the Capstone project, you will directly apply the knowledge you’ve gained to write and perform a short musical composition. This specialization begins with the basics of music and builds to more advanced concepts, providing you the knowledge you need to improve your skills as a musician. | M128: [8.3, 14.9] | N128: Catalan; German; Spanish | O128: English | P128: arts-and-humanities | Q128: music-and-art | R128: 7g2jVkeREeabNQ5k0FBNlQ | S128: fqiWw0nNEeaRwQoJx4fxEw | T128: FALSE
A129: Musicianship: Tensions, Harmonic Function, and Modal Interchange | B129: Berklee College of Music | C129: Advanced | D129: 12.6 | E129: 4.8 | F129: https://www.coursera.org/learn/musicianship-harmony | G129: After a tremendous response from learners on Coursera, Berklee Online has created a Developing Your Musicianship specialization, and this course is the third course in the series. If you have a general understanding of music theory or if you have completed Developing Your Musicianship I and II, this course will continue to help you understand musical concepts, enabling you to create and perform contemporary music. Taught by Berklee College of Music professor George W. Russell, Jr., the course includes four lessons that delve into an intermediate level of harmony and ear training. \n\nThe course will introduce you to new key signatures, and explore how they are constructed. You will continue to train your ear, learning to differentiate between the various intervals and chords that were explored in Developing Your Musicianship I and II. You will learn how to borrow chords from parallel tonalities (modal interchange), and how to write more common chord progressions. \n\nThe course culminates with an assignment that asks you to compose and perform a composition using popular chord progressions. As with Developing Your Musicianship I and II, this course is designed to share the joy of creating music. | H129: ear; chord; piano; jazz; Audio Recording; sleep mode; harmony; music; film; ordered pair | I129: Developing Your Musicianship | J129: 3 | K129: https://www.coursera.org/specializations/musicianship-specialization | L129: Nurture your love for, and understanding of, music with this specialization. Learn the fundamentals of music theory, including major and minor tonalities, chord scales, song forms, and chord qualities. You’ll also practice training your ear to hear and recognize various intervals, chord progressions, and chord qualities. For the Capstone project, you will directly apply the knowledge you’ve gained to write and perform a short musical composition. This specialization begins with the basics of music and builds to more advanced concepts, providing you the knowledge you need to improve your skills as a musician. | M129: [7.5, 14.2] | N129: Catalan | O129: English | P129: arts-and-humanities | Q129: music-and-art | R129: CMriWkeSEea9IA5mW7znqQ | S129: fqiWw0nNEeaRwQoJx4fxEw | T129: FALSE
A130: Developing Your Musicianship: Final Project | B130: Berklee College of Music | C130: Advanced | D130: 11.3 | E130: 4.8 | F130: https://www.coursera.org/learn/musicianship-final-project | G130: This course will guide you through the final project for the Developing Your Musicianship Specialization. This course will continue to help you apply the musical concepts you learned throughout the specialization, enabling you to create and perform a 36-measure composition. Taught by Berklee College of Music professor George W. Russell, Jr., the course includes four videos in which George models each stage of the project. Through peer feedback and discussion, practice, and applying what you’ve learned, this final project will hone your skills as a musician. | H130: software; hearing; Human Learning; want; experience; piano; relative change and difference; jazz; well; music | I130: Developing Your Musicianship | J130: 4 | K130: https://www.coursera.org/specializations/musicianship-specialization | L130: Nurture your love for, and understanding of, music with this specialization. Learn the fundamentals of music theory, including major and minor tonalities, chord scales, song forms, and chord qualities. You’ll also practice training your ear to hear and recognize various intervals, chord progressions, and chord qualities. For the Capstone project, you will directly apply the knowledge you’ve gained to write and perform a short musical composition. This specialization begins with the basics of music and builds to more advanced concepts, providing you the knowledge you need to improve your skills as a musician. | M130: [6.3, 13.2] | N130: Catalan; Spanish | O130: English | P130: arts-and-humanities | Q130: music-and-art | R130: IjzcekeSEeaL3g5tgt_P6Q | S130: fqiWw0nNEeaRwQoJx4fxEw | T130: FALSE
A131: Desarrollando tu musicalidad | B131: Berklee College of Music | C131: Intermediate | D131: 18.4 | E131: 4.8 | F131: https://www.coursera.org/learn/desarrollo-musicalidad | G131: Aprende los conceptos básicos y enfoques necesarios para entender, crear e interpretar música contemporánea.\n\nEsta obra fue financiada con una donación del Banco Inter-Americano de Desarrollo con recursos del Fondo Coreano para la Reducción de la Pobreza. \n\nLas opiniones expresadas en esta obra son exclusivamente de los autores y no necesariamente reflejan el punto de vista del Banco Interamericano de Desarrollo, de su Directorio Ejecutivo ni de los países que representa.\n\nEl Banco Interamericano de Desarrollo no garantiza la veracidad de la data incorporada en esta obra.\n\n\n\nPuedes cambiar el idioma en Coursera de inglés al español utilizando la página de ajustes de tu cuenta. Para cambiar los ajustes en tu cuenta de Coursera sigue los siguientes pasos:\n\n1. Ve a coursera.org\n2. En la esquina derecha superior haz click en el pequeño triángulo invertido que está a lado de tu nombre y foto.\n3. Haz click en ‘Settings’.\n4. Selecciona el recuadro debajo de ‘Language’ (idioma), selecciona español y salva los cambios realizados.\n\nCoursera ofrece ayuda financiera a los estudiantes que no pueden pagar los cursos y necesiten de una beca. Los estudiantes con ayuda financiera podrán tener acceso a todo el contenido del curso y completar todo el trabajo requerido para adquirir el Certificado de Coursera. La ayuda financiera solo aplica al curso en el que se aprobó la solicitud de ayuda financiera. Para aplicar haz click en la opción “Learn More and Apply” (aprende mas y aplica) debajo del menú a la izquierda. | H131: gauss markov theorem; ear; language; Scaling; Training; chord; piano; computational economics; computational linguistics; music | I131: El Músico Moderno | J131: 1 | K131: https://www.coursera.org/specializations/musico-moderno | L131: La industria de la música está sufriendo enormes cambios, y como consecuencia de ello, los músicos necesitan aumentar sus habilidades en varias áreas diferentes para triunfar. El Programa Especializado para el Músico Moderno está diseñada para proporcionarte las bases de la teoría de la música, la producción musical, y la composición, y te dotará de las herramientas que necesitas para escribir y producir tu propia música. | M131: [12.6, 21.6] | N131: English | O131: Spanish | P131: arts-and-humanities | Q131: music-and-art | R131: _AAoM1DLEeW02w4zzsdA1Q | S131: tu1zsWF5EeWUyhJQRJHhNQ | T131: FALSE
A132: Introducción a la producción de música | B132: Berklee College of Music | C132: Beginner | D132: 41.5 | E132: 4.7 | F132: https://www.coursera.org/learn/produccion-musical | G132: Aprende sobre el proceso de producción de música -incluyendo la grabación, la edición y la mezcla- y sobre las herramientas disponibles para crear música contemporánea en tu computadora.\n\n\n\nEsta obra fue financiada con una donación del Banco Inter-Americano de Desarrollo con recursos del Fondo Coreano para la Reducción de la Pobreza. \n\nLas opiniones expresadas en esta obra son exclusivamente de los autores y no necesariamente reflejan el punto de vista del Banco Interamericano de Desarrollo, de su Directorio Ejecutivo ni de los países que representa.\n\nEl Banco Interamericano de Desarrollo no garantiza la veracidad de la data incorporada en esta obra.\n\n\n\nPuedes cambiar el idioma en Coursera de inglés al español utilizando la página de ajustes de tu cuenta. Para cambiar los ajustes en tu cuenta de Coursera sigue los siguientes pasos:\n\n1. Ve a coursera.org\n2. En la esquina derecha superior haz click en el pequeño triángulo invertido que está a lado de tu nombre y foto.\n3. Haz click en ‘Settings’.\n4. Selecciona el recuadro debajo de ‘Language’ (idioma), selecciona español y salva los cambios realizados.\n\nCoursera ofrece ayuda financiera a los estudiantes que no pueden pagar los cursos y necesiten de una beca. Los estudiantes con ayuda financiera podrán tener acceso a todo el contenido del curso y completar todo el trabajo requerido para adquirir el Certificado de Coursera. La ayuda financiera solo aplica al curso en el que se aprobó la solicitud de ayuda financiera. Para aplicar haz click en la opción “Learn More and Apply” (aprende mas y aplica) debajo del menú a la izquierda. | H132: Sound Design; Cabling; signal processing; Human Learning; editing; piano; acting in; sound; scalable vector graphics; music | I132: El Músico Moderno | J132: 2 | K132: https://www.coursera.org/specializations/musico-moderno | L132: La industria de la música está sufriendo enormes cambios, y como consecuencia de ello, los músicos necesitan aumentar sus habilidades en varias áreas diferentes para triunfar. El Programa Especializado para el Músico Moderno está diseñada para proporcionarte las bases de la teoría de la música, la producción musical, y la composición, y te dotará de las herramientas que necesitas para escribir y producir tu propia música. | M132: [29.9, 49.3] | N132: Chinese; Portuguese; English | O132: Spanish | P132: arts-and-humanities | Q132: music-and-art | R132: etUml1ZbEeWQVQr3-Nu12w | S132: tu1zsWF5EeWUyhJQRJHhNQ | T132: FALSE
A133: Composición de canciones | B133: Berklee College of Music | C133: Intermediate | D133: 31.4 | E133: 4.6 | F133: https://www.coursera.org/learn/composicion-canciones | G133: Aprende un proceso eficiente y efectivo para escribir canciones que expresen tus ideas y emociones, incluyendo una gama de herramientas que giren alrededor del concepto de prosodia; la adecuación de letra y música para apoyar tu mensaje subyacente.\n\n\n\nEsta obra fue financiada con una donación del Banco Inter-Americano de Desarrollo con recursos del Fondo Coreano para la Reducción de la Pobreza. \n\nLas opiniones expresadas en esta obra son exclusivamente de los autores y no necesariamente reflejan el punto de vista del Banco Interamericano de Desarrollo, de su Directorio Ejecutivo ni de los países que representa.\n\nEl Banco Interamericano de Desarrollo no garantiza la veracidad de la data incorporada en esta obra.\n\n\n\nPuedes cambiar el idioma en Coursera de inglés al español utilizando la página de ajustes de tu cuenta. Para cambiar los ajustes en tu cuenta de Coursera sigue los siguientes pasos:\n\n1. Ve a coursera.org\n2. En la esquina derecha superior haz click en el pequeño triángulo invertido que está a lado de tu nombre y foto.\n3. Haz click en ‘Settings’.\n4. Selecciona el recuadro debajo de ‘Language’ (idioma), selecciona español y salva los cambios realizados.\n\nCoursera ofrece ayuda financiera a los estudiantes que no pueden pagar los cursos y necesiten de una beca. Los estudiantes con ayuda financiera podrán tener acceso a todo el contenido del curso y completar todo el trabajo requerido para adquirir el Certificado de Coursera. La ayuda financiera solo aplica al curso en el que se aprobó la solicitud de ayuda financiera. Para aplicar haz click en la opción “Learn More and Apply” (aprende mas y aplica) debajo del menú a la izquierda. | H133: chord; imx (tv series); cmos; formulaic language; uan; character sets; Artistic Figure Drawing; E-Newsletter Writing; music; ordered pair | I133: El Músico Moderno | J133: 3 | K133: https://www.coursera.org/specializations/musico-moderno | L133: La industria de la música está sufriendo enormes cambios, y como consecuencia de ello, los músicos necesitan aumentar sus habilidades en varias áreas diferentes para triunfar. El Programa Especializado para el Músico Moderno está diseñada para proporcionarte las bases de la teoría de la música, la producción musical, y la composición, y te dotará de las herramientas que necesitas para escribir y producir tu propia música. | M133: [22.2, 38.5] | N133: Portuguese; English | O133: Spanish | P133: arts-and-humanities | Q133: music-and-art | R133: Hm73dlDLEeWeiwqPB940Pw | S133: tu1zsWF5EeWUyhJQRJHhNQ | T133: FALSE
A134: Proyecto final de Músico moderno | B134: Berklee College of Music | C134: Beginner | D134: 9.9 | E134: 4.6 | F134: https://www.coursera.org/learn/proyecto-musico | G134: La industria de la música está experimentando enormes cambios, y como resultado de ello, los músicos necesitan cada vez más habilidades en un número de áreas diferentes para tener éxito. El programa especializado de Músico moderno está diseñado para proporcionarle una base de conocimientos sobre teoría musical, producción de música y composición de canciones, lo que le proporciona las herramientas que necesita para escribir y producir su propia música.\n\n\n\nEsta obra fue financiada con una donación del Banco Inter-Americano de Desarrollo con recursos del Fondo Coreano para la Reducción de la Pobreza. \n\nLas opiniones expresadas en esta obra son exclusivamente de los autores y no necesariamente reflejan el punto de vista del Banco Interamericano de Desarrollo, de su Directorio Ejecutivo ni de los países que representa.\n\nEl Banco Interamericano de Desarrollo no garantiza la veracidad de la data incorporada en esta obra.\n\n\n\nPuedes cambiar el idioma en Coursera de inglés al español utilizando la página de ajustes de tu cuenta. Para cambiar los ajustes en tu cuenta de Coursera sigue los siguientes pasos:\n\n1. Ve a coursera.org\n2. En la esquina derecha superior haz click en el pequeño triángulo invertido que está a lado de tu nombre y foto.\n3. Haz click en ‘Settings’.\n4. Selecciona el recuadro debajo de ‘Language’ (idioma), selecciona español y salva los cambios realizados.\n\nCoursera ofrece ayuda financiera a los estudiantes que no pueden pagar los cursos y necesiten de una beca. Los estudiantes con ayuda financiera podrán tener acceso a todo el contenido del curso y completar todo el trabajo requerido para adquirir el Certificado de Coursera. La ayuda financiera solo aplica al curso en el que se aprobó la solicitud de ayuda financiera. Para aplicar haz click en la opción “Learn More and Apply” (aprende mas y aplica) debajo del menú a la izquierda. | H134: taxon; lichen; bioluminescence; corpora; morphological parsing; ovipositor; clade; mating; cloaca; exoskeleton | I134: El Músico Moderno | J134: 4 | K134: https://www.coursera.org/specializations/musico-moderno | L134: La industria de la música está sufriendo enormes cambios, y como consecuencia de ello, los músicos necesitan aumentar sus habilidades en varias áreas diferentes para triunfar. El Programa Especializado para el Músico Moderno está diseñada para proporcionarte las bases de la teoría de la música, la producción musical, y la composición, y te dotará de las herramientas que necesitas para escribir y producir tu propia música. | M134: [6.1, 11.7] | N134: English; Portuguese | O134: Spanish | P134: arts-and-humanities | Q134: music-and-art | R134: vFsLYmJaEeWpHwqwM9Gg0w | S134: tu1zsWF5EeWUyhJQRJHhNQ | T134: FALSE
A135: The Technology of Music Production | B135: Berklee College of Music | C135: Intermediate | D135: 25.9 | E135: 4.8 | F135: https://www.coursera.org/learn/technology-of-music-production | G135: Learn about the music production process—including recording, editing, and mixing—and the tools available to you to create contemporary music on your computer.\n\nWith the recent introduction of high-quality-low-cost software and hardware, the tools of music production are now available to the masses. Albums are made in bedrooms as well as studios. On the surface this is liberating. Anyone can make an album for the low cost of a couple pieces of gear and a software package. But, if you dig deeper, you will find that it is not so easy. Producing music requires knowledge, dedication, and creativity.\n \nKnowledge is where this course comes in. No matter what kind of music you are making, there is a large set of tools that you will need to use. Each lesson of this course will demonstrate a different set of music production tools, loosely following along the music production process of recording, editing, and mixing. \n\nWe will start with some background on the nature of sound and how we perceive it. We will then examine the components necessary to record audio into a computer, so that you understand the devices that sound must travel through in a music production process. \n \nOnce recorded, sound must be organized along a timeline, a process known as editing. It allows us to give the impression of perfect performances and create many of the sounds we hear in contemporary music. The contemporary editing tool is the Digital Audio Workstation (DAW), a piece of software that stores and organizes all the assets of a musical project. We will focus on the editing tools that are essential in contemporary music production and that all DAWs provide. \n\nAfter editing, sounds must be combined or mixed together, so we look to the mixing board—a very creative place if you know how to use it. We will explore the basic functionality of both hardware and software mixing boards, including volume, pan, mute, solo, busses, inserts, sends, and submixes. The mixing process, however, includes more tools than the mixing board provides on its own. Sound must also be processed, modified from its recorded state to fit the context of the music. We will look at compression, equalization, and delay, and examine the many audio effects that are offshoots of these devices and how they are used in a musical context.\n \nIn the end, the music production process relies on your creativity. Creativity is a product of the mind and will stay there, unexpressed, until the right tools are used in the right way to share it with the world. If you have an idea in your head, it will take numerous steps, each with an important tool, to reach your audience. You bring the dedication and creativity, and this course will bring you the knowledge to make that happen. | H135: microphone; Cabling; Boosting (Machine Learning); guitar; amplitude; sound; Audio Editing; ableton; Audio Production; music | I135: Electronic Music Production | J135: 1 | K135: https://www.coursera.org/specializations/electronic-music-production | L135: In the Electronic Music Production specialization, you will learn the tricks of the trade to create high-quality, professional sounding music. You’ll begin by learning about the nature of sound and how a signal flows through a home studio setup. Additionally, you’ll learn how to create your own custom musical sounds through music synthesis. You’ll explore how to record MIDI and real instruments into the flexible and agile Digital Audio Workstation, Ableton Live. You’ll also learn to professionally record, produce, edit, and mix a vocal track with the Grammy-winning producer, Prince Charles Alexander. | M135: [18.0, 29.9] | N135: Chinese; Spanish; Portuguese | O135: English | P135: arts-and-humanities | Q135: music-and-art | R135: e9PicBJhEeaoZBKRisF_Dw | S135: 2KkR_3WQEemPfw4P9nDoLg | T135: FALSE
A136: Introduction to Ableton Live | B136: Berklee College of Music | C136: Advanced | D136: 14 | E136: 4.8 | F136: https://www.coursera.org/learn/ableton-live | G136: The new version of Introduction to Ableton Live featuring Ableton Live 10 will launch on April 20!\n\nIn the past, Digital Audio Workstations (DAWs) were programs used only by audio engineers with a highly specific knowledge base, on machines inaccessible to most people. But over the past 10-15 years, DAWs and the act of recording music have evolved from being a luxury of the few to being available to the masses. Ableton Live is one such application. Used by an extremely broad range of music creators, Ableton Live not only facilitates the work of engineers, producers, and writers in professional, home, and mobile studio settings, but it is also a powerful platform for musicians on stage, in the DJ booth, and elsewhere.\n\nIn this Ableton Certified Training Center course developed by Berklee Online, you will explore some of Live’s most powerful and useful functionality: MIDI programming, audio recording, warping and processing, looping editing, mixing, performing, file management, and troubleshooting. Meant to be a springboard for those who are new to Ableton Live and/or DAWs in general, this three-week course will provide you with a strong knowledge base for using Live to take your musical ideas from conception to final recording. The course breaks down the many barriers of entry into music technology and encourages all those who wish, to create fearlessly.\n\nNote: If you do not own Ableton Live 10, you can download the free, fully featured Ableton Live Trial. The trial version will allow you to save and export your work for 30 days. If you use the trial version, do not download it until the course is scheduled to begin. | H136: Troubleshooting; personality; Sound Design; saving; hand; sound; evaluation; electronic music; ableton; music | I136: Electronic Music Production | J136: 2 | K136: https://www.coursera.org/specializations/electronic-music-production | L136: In the Electronic Music Production specialization, you will learn the tricks of the trade to create high-quality, professional sounding music. You’ll begin by learning about the nature of sound and how a signal flows through a home studio setup. Additionally, you’ll learn how to create your own custom musical sounds through music synthesis. You’ll explore how to record MIDI and real instruments into the flexible and agile Digital Audio Workstation, Ableton Live. You’ll also learn to professionally record, produce, edit, and mix a vocal track with the Grammy-winning producer, Prince Charles Alexander. | M136: [9.4, 16.7] | N136: None | O136: English | P136: arts-and-humanities | Q136: music-and-art | R136: -nRRAPmuEeSndSIAC7LTLQ | S136: 2KkR_3WQEemPfw4P9nDoLg | T136: FALSE
